Ref No,Fund Type,Dept,Cost Centre Description    ,Description    ,Creditor Name    ,GL Code Net Amount,Payment date        
2,Revenue,CAHD,Bed Purchasing - North,Permanent Nursing,.,4800.00, 13-Mar-2018
3,Revenue,CAHD,Bed Purchasing - Southmead Hospital,Permanent Nursing,.,4862.40, 13-Mar-2018
4,Revenue,CAHD,Bed Purchasing - South,Permanent Nursing,.,2516.48, 13-Mar-2018
5,Revenue,CAHD,Bed Purchasing - Elderly S117- North,Permanent Nursing,.,3901.76, 13-Mar-2018
6,Revenue,CAHD,Bed Purchasing - South,Permanent Residential,.,4200.00, 13-Mar-2018
7,Revenue,CAHD,Bed Purchasing - Elderly S117- North,Permanent Nursing,.,4229.28, 13-Mar-2018
8,Revenue,CAHD,Bed Purchasing - North,Permanent Nursing,.,4862.40, 13-Mar-2018
9,Revenue,CAHD,Bed Purchasing - Elderly S117- North,Permanent Nursing,.,5420.20, 13-Mar-2018
10,Revenue,CAHD,Bed Purchasing - South,Permanent Nursing,.,4800.00, 13-Mar-2018
11,Revenue,CAHD,Bed Purchasing - North,Permanent Nursing,.,3294.28, 13-Mar-2018
12,Revenue,CAHD,South Glos Users in South Glos Homes,Permanent Nursing,.,620.20, 13-Mar-2018
13,Revenue,CAHD,Bed Purchasing - South,Permanent Nursing,.,3349.56, 13-Mar-2018
14,Revenue,CAHD,South Glos Users in South Glos Homes,Permanent Nursing,.,620.20, 13-Mar-2018
15,Revenue,CAHD,Bed Purchasing - North,Permanent Nursing,.,4400.00, 13-Mar-2018
16,Revenue,CAHD,South Glos Users in South Glos Homes,Permanent Nursing,.,620.20, 13-Mar-2018
17,Revenue,CAHD,South Glos Users in South Glos Homes,Permanent Nursing,.,841.70, 13-Mar-2018
18,Revenue,CAHD,Bed Purchasing - South,Permanent Nursing,.,4400.00, 13-Mar-2018
19,Revenue,CAHD,Bed Purchasing - South,Permanent Nursing,.,4400.00, 13-Mar-2018
20,Revenue,CAHD,Bed Purchasing - South,Permanent Nursing,.,3294.28, 13-Mar-2018
21,Revenue,CAHD,South Glos Users in South Glos Homes,Permanent Nursing,.,620.20, 13-Mar-2018
22,Revenue,CAHD,Bed Purchasing - Southmead Hospital,Permanent Nursing,.,4800.00, 13-Mar-2018
23,Revenue,CAHD,South Glos Users in South Glos Homes,Permanent Nursing,.,620.20, 13-Mar-2018
24,Revenue,CAHD,South Glos Users in South Glos Homes,Permanent Nursing,.,620.20, 13-Mar-2018
25,Revenue,CAHD,Bed Purchasing - North,Permanent Residential,.,4254.60, 13-Mar-2018
26,Revenue,CAHD,South Glos Users in South Glos Homes,Permanent Nursing,.,620.20, 13-Mar-2018
27,Revenue,CAHD,Bed Purchasing - South,Permanent Nursing,.,3621.48, 13-Mar-2018
28,Revenue,CAHD,South Glos Users in South Glos Homes,Permanent Nursing,.,620.20, 13-Mar-2018
29,Revenue,CAHD,Bed Purchasing - North,Permanent Nursing,.,4400.00, 13-Mar-2018
30,Revenue,CAHD,Bed Purchasing - North,Fees & Charges Income - General,.,653.04, 13-Mar-2018
31,Revenue,CAHD,Bed Purchasing - Southmead Hospital,Permanent Nursing,.,3824.08, 13-Mar-2018
32,Revenue,CAHD,South Glos Users in South Glos Homes,Permanent Nursing,.,620.20, 13-Mar-2018
33,Revenue,CAHD,South Glos Users in South Glos Homes,Permanent Nursing,.,620.20, 13-Mar-2018
34,Revenue,CAHD,South Glos Users in South Glos Homes,Permanent Nursing,.,620.20, 13-Mar-2018
35,Revenue,CAHD,Bed Purchasing - North,Permanent Nursing,.,4025.14, 13-Mar-2018
36,Revenue,CAHD,Bed Purchasing - North,Fees & Charges Income - General,.,633.84, 13-Mar-2018
37,Revenue,CAHD,South Glos Users in South Glos Homes,Permanent Nursing,.,620.20, 13-Mar-2018
38,Revenue,CAHD,South Glos Users in South Glos Homes,Permanent Nursing,.,620.20, 13-Mar-2018
39,Revenue,CAHD,Bed Purchasing - North,Permanent Nursing,.,4228.56, 13-Mar-2018
40,Revenue,CAHD,South Glos Users in South Glos Homes,Permanent Nursing,.,620.20, 13-Mar-2018
41,Revenue,CAHD,South Glos Users in South Glos Homes,Permanent Nursing,.,620.20, 13-Mar-2018
42,Revenue,CAHD,South Glos Users in South Glos Homes,Permanent Nursing,.,620.20, 13-Mar-2018
43,Revenue,CAHD,South Glos Users in South Glos Homes,Permanent Nursing,.,620.20, 13-Mar-2018
44,Revenue,CAHD,South Glos Users in South Glos Homes,Permanent Nursing,.,620.20, 13-Mar-2018
45,Revenue,CAHD,South Glos Users in South Glos Homes,Permanent Nursing,.,620.20, 13-Mar-2018
46,Revenue,CAHD,Bed Purchasing - North,Permanent Nursing,.,4400.00, 13-Mar-2018
47,Revenue,CAHD,South Glos Users in South Glos Homes,Permanent Nursing,.,620.20, 13-Mar-2018
48,Revenue,CAHD,South Glos Users in South Glos Homes,Permanent Nursing,.,620.20, 13-Mar-2018
49,Revenue,CAHD,South Glos Users in South Glos Homes,Permanent Nursing,.,620.20, 13-Mar-2018
50,Revenue,CAHD,Bed Purchasing - North,Permanent Nursing,.,4179.80, 13-Mar-2018
51,Revenue,CAHD,South Glos Users in South Glos Homes,Permanent Nursing,.,620.20, 13-Mar-2018
52,Revenue,CAHD,South Glos Users in South Glos Homes,Permanent Nursing,.,620.20, 13-Mar-2018
53,Revenue,CAHD,South Glos Users in South Glos Homes,Permanent Nursing,.,620.20, 13-Mar-2018
54,Revenue,CAHD,South Glos Users in South Glos Homes,Permanent Nursing,.,620.20, 13-Mar-2018
55,Revenue,CAHD,South Glos Users in South Glos Homes,Permanent Nursing,.,620.20, 13-Mar-2018
56,Revenue,CAHD,South Glos Users in South Glos Homes,Permanent Nursing,.,620.20, 13-Mar-2018
57,Revenue,CAHD,South Glos Users in South Glos Homes,Permanent Nursing,.,620.20, 13-Mar-2018
58,Revenue,CAHD,Bed Purchasing - North,Permanent Nursing,.,19800.00, 13-Mar-2018
59,Revenue,CAHD,Bed Purchasing - North,Permanent Nursing,.,13200.00, 13-Mar-2018
60,Revenue,CAHD,Bed Purchasing - North,Permanent Nursing,.,3300.00, 13-Mar-2018
61,Revenue,CAHD,Bed Purchasing - North,Fees & Charges Income - General,.,1578.96, 13-Mar-2018
62,Revenue,CAHD,Bed Purchasing - North,Fees & Charges Income - General,.,3011.04, 13-Mar-2018
63,Revenue,CAHD,South Glos Users in South Glos Homes,Permanent Nursing,.,620.20, 13-Mar-2018
64,Revenue,CAHD,South Glos Users in South Glos Homes,Permanent Nursing,.,620.20, 13-Mar-2018
65,Revenue,CAHD,South Glos Users in South Glos Homes,Permanent Nursing,.,4474.30, 13-Mar-2018
66,Revenue,CAHD,South Glos Users in South Glos Homes,Permanent Nursing,.,620.20, 13-Mar-2018
67,Revenue,CAHD,South Glos Users in South Glos Homes,Permanent Nursing,.,620.20, 13-Mar-2018
68,Revenue,CAHD,South Glos Users in South Glos Homes,Permanent Nursing,.,1594.80, 13-Mar-2018
69,Revenue,CAHD,South Glos Users in South Glos Homes,Permanent Nursing,.,620.20, 13-Mar-2018
70,Revenue,CAHD,South Glos Users in South Glos Homes,Permanent Nursing,.,620.20, 13-Mar-2018
71,Revenue,CAHD,Bed Purchasing - North,Permanent Nursing,.,3114.96, 13-Mar-2018
72,Revenue,CAHD,South Glos Users in South Glos Homes,Permanent Nursing,.,620.20, 13-Mar-2018
73,Revenue,CAHD,Bed Purchasing - South,Permanent Nursing,.,3779.80, 13-Mar-2018
74,Revenue,CAHD,South Glos Users in South Glos Homes,Permanent Nursing,.,620.20, 13-Mar-2018
75,Revenue,CAHD,South Glos Users in South Glos Homes,Permanent Nursing,.,620.20, 13-Mar-2018
76,Revenue,CAHD,Bed Purchasing - North,Permanent Nursing,.,3294.28, 13-Mar-2018
77,Revenue,CAHD,South Glos Users in South Glos Homes,Permanent Nursing,.,620.20, 13-Mar-2018
78,Revenue,CAHD,South Glos Users in South Glos Homes,Permanent Nursing,.,620.20, 13-Mar-2018
79,Revenue,CAHD,Bed Purchasing - Southmead Hospital,Permanent Nursing,.,3824.08, 13-Mar-2018
80,Revenue,CAHD,South Glos Users in South Glos Homes,Permanent Nursing,.,620.20, 13-Mar-2018
81,Revenue,CAHD,South Glos Users in South Glos Homes,Permanent Nursing,.,620.20, 13-Mar-2018
82,Revenue,CAHD,South Glos Users in South Glos Homes,Permanent Nursing,.,620.20, 13-Mar-2018
83,Revenue,CAHD,South Glos Users in South Glos Homes,Permanent Nursing,.,620.20, 13-Mar-2018
84,Revenue,CAHD,Bed Purchasing - North,Permanent Residential,.,3545.52, 13-Mar-2018
85,Revenue,CAHD,Bed Purchasing - North,Permanent Nursing,.,12400.00, 13-Mar-2018
86,Revenue,CAHD,Bed Purchasing - South,Permanent Residential,.,3039.00, 13-Mar-2018
87,Revenue,CAHD,Bed Purchasing - South,Permanent Nursing,.,2880.00, 13-Mar-2018
88,Revenue,CAHD,Bed Purchasing - North,Permanent Residential,.,11517.14, 13-Mar-2018
89,Revenue,CAHD,Bed Purchasing - North,Permanent Residential,.,2780.00, 13-Mar-2018
90,Revenue,CAHD,Bed Purchasing - North,Permanent Residential,.,3600.00, 13-Mar-2018
91,Revenue,CAHD,Bed Purchasing - North,Permanent Residential,.,3600.00, 13-Mar-2018
92,Revenue,CAHD,Bed Purchasing - South,Respite Planned - Residential,.,1157.14, 13-Mar-2018
93,Revenue,CAHD,Bed Purchasing - South,Respite Planned - Residential,.,642.86, 13-Mar-2018
94,Revenue,CAHD,Bed Purchasing - North,Permanent Residential,.,3600.00, 13-Mar-2018
95,Revenue,CAHD,Bed Purchasing - North,Permanent Residential,.,3600.00, 13-Mar-2018
96,Revenue,CAHD,Bed Purchasing - North,Permanent Residential,.,8485.72, 13-Mar-2018
97,Revenue,CAHD,Bed Purchasing - North,Permanent Residential,.,3600.00, 13-Mar-2018
98,Revenue,CAHD,Bed Purchasing - North,Fees & Charges Income - General,.,716.53, 13-Mar-2018
99,Revenue,CAHD,Bed Purchasing - North,Permanent Residential,.,4242.86, 13-Mar-2018
100,Revenue,CAHD,Bed Purchasing - North,Permanent Residential,.,3600.00, 13-Mar-2018
101,Revenue,CAHD,Bed Purchasing - North,Respite Planned - Residential,.,3600.00, 13-Mar-2018
102,Revenue,CAHD,Bed Purchasing - North,Respite Planned - Residential,.,1285.71, 13-Mar-2018
103,Revenue,CAHD,Bed Purchasing - North,Permanent Nursing,.,13938.53, 13-Mar-2018
104,Revenue,CAHD,18-25 Year Olds,Permanent Residential,1 St Georges House,12778.20, 13-Mar-2018
105,Revenue,CAHD,CSC - Care Leavers Independent Living,Adults - Family Support,1625 Independent People,1616.16, 02-Mar-2018
106,Revenue,CAHD,Supporting People Programme,Grants to Voluntary Bodies,1625 Independent People,14536.00, 01-Mar-2018
107,Revenue,CAHD,Bed Purchasing - Southmead Hospital,Permanent Residential,1St Floor Lingfield House,2600.00, 13-Mar-2018
108,Revenue,CAHD,Bed Purchasing - North,Permanent Residential,1St Floor Lingfield House,2600.00, 13-Mar-2018
109,Revenue,CAHD,Home Care - Elderly - South,Day Care / Social Activities,3 Trees Community Support Ltd,93.40, 08-Mar-2018
110,Revenue,CAHD,Home Care - Elderly - North,Day Care / Social Activities,3 Trees Community Support Ltd,1144.15, 08-Mar-2018
111,Revenue,CAHD,Home Care - Elderly - North,Other Small Contracts,3 Trees Community Support Ltd,574.41, 08-Mar-2018
112,Revenue,CAHD,Home Care - Elderly - North,Supported Living,3 Trees Community Support Ltd,7437.98, 08-Mar-2018
113,Revenue,CAHD,Home Care - Elderly - South,Day Care / Social Activities,3 Trees Community Support Ltd,93.40, 08-Mar-2018
114,Revenue,CAHD,Home Care - Elderly - North,Day Care / Social Activities,3 Trees Community Support Ltd,1144.15, 08-Mar-2018
115,Revenue,CAHD,Home Care - Elderly - North,Other Small Contracts,3 Trees Community Support Ltd,705.17, 08-Mar-2018
116,Revenue,CAHD,Home Care - Elderly - North,Supported Living,3 Trees Community Support Ltd,7424.76, 08-Mar-2018
117,Revenue,CAHD,Home Care - Elderly - North,Day Care / Social Activities,3 Trees Community Support Ltd,691.16, 20-Mar-2018
118,Revenue,CAHD,Home Care - Elderly - North,Other Small Contracts,3 Trees Community Support Ltd,579.08, 20-Mar-2018
119,Revenue,CAHD,Home Care - Elderly - North,Supported Living,3 Trees Community Support Ltd,7258.68, 20-Mar-2018
120,Revenue,CAHD,Home Care - Elderly - South,Day Care / Social Activities,3 Trees Community Support Ltd,93.40, 22-Mar-2018
121,Revenue,CAHD,Home Care - Elderly - North,Day Care / Social Activities,3 Trees Community Support Ltd,1148.82, 22-Mar-2018
122,Revenue,CAHD,Home Care - Elderly - North,Other Small Contracts,3 Trees Community Support Ltd,700.50, 22-Mar-2018
123,Revenue,CAHD,Home Care - Elderly - North,Supported Living,3 Trees Community Support Ltd,7433.72, 22-Mar-2018
124,Revenue,CAHD,Home Care - Elderly - South,Day Care / Social Activities,3 Trees Community Support Ltd,93.40, 26-Mar-2018
125,Revenue,CAHD,Home Care - Elderly - North,Day Care / Social Activities,3 Trees Community Support Ltd,1153.49, 26-Mar-2018
126,Revenue,CAHD,Home Care - Elderly - North,Other Small Contracts,3 Trees Community Support Ltd,709.84, 26-Mar-2018
127,Revenue,CAHD,Home Care - Elderly - North,Supported Living,3 Trees Community Support Ltd,7277.26, 26-Mar-2018
128,Revenue,CAHD,18-25 Year Olds,Permanent Residential,5Th Floor Harlech Court,14619.64, 13-Mar-2018
129,Revenue,CAHD,18-25 Year Olds,Permanent Residential,5Th Floor Harlech Court,14760.00, 13-Mar-2018
130,Revenue,CAHD,18-25 Year Olds,Permanent Residential,5Th Floor Harlech Court,13130.76, 13-Mar-2018
131,Revenue,CAHD,Bed Purchasing - North,Permanent Residential,5Th Floor Harlech Court,15870.60, 13-Mar-2018
132,Revenue,CAHD,18-25 Year Olds,Permanent Residential,5Th Floor Harlech Court,17460.56, 13-Mar-2018
133,Revenue,CAHD,Bed Purchasing - North,Permanent Residential,5Th Floor Harlech Court,13240.48, 13-Mar-2018
134,Revenue,CAHD,18-25 Year Olds,Permanent Residential,5Th Floor Harlech Court,13253.64, 13-Mar-2018
135,Revenue,CAHD,Bed Purchasing - North,Permanent Residential,5Th Floor Harlech Court,14104.28, 13-Mar-2018
136,Revenue,CAHD,Jointly Funded H&SC Packages,Permanent Residential,5Th Floor Harlech Court,3490.16, 13-Mar-2018
137,Revenue,CAHD,18-25 Year Olds,Permanent Residential,5Th Floor Harlech Court,16704.04, 13-Mar-2018
138,Revenue,CAHD,Bed Purchasing - South,Permanent Residential,5Th Floor Harlech Court,15973.00, 13-Mar-2018
139,Revenue,CAHD,Bed Purchasing - South,Permanent Residential,5Th Floor Harlech Court,9985.60, 13-Mar-2018
140,Revenue,CAHD,Bed purchasing - S28A Under 65 - South,Permanent Residential,5Th Floor Harlech Court,10450.56, 13-Mar-2018
141,Revenue,CAHD,Bed Purchasing - South,Permanent Residential,5Th Floor Harlech Court,10960.12, 13-Mar-2018
142,Revenue,CAHD,EARLY YEARS DEPRIVATION PAYMENT,Preventative Assistance,Abacus @ Baileys Court Activity Centre,744.67, 16-Mar-2018
143,Revenue,CAHD,EARLY YEARS DEPRIVATION PAYMENT,Preventative Assistance,Abacus @ Filton Hill,744.67, 16-Mar-2018
144,Revenue,CAHD,EARLY YEARS DEPRIVATION PAYMENT,Preventative Assistance,Abacus Pre-School (Meadowbrook),521.27, 16-Mar-2018
145,Revenue,CAHD,EARLY YEARS DEPRIVATION PAYMENT,Preventative Assistance,Abbeywood Tots Day Nursery Ltd,558.51, 16-Mar-2018
146,Revenue,CAHD,Bed Purchasing - North,Permanent Nursing,ABI Development Limited,7591.84, 13-Mar-2018
147,Revenue,CAHD,Bed and Breakfast,Storage & Removal,Ablemove-Wottons,455.00, 19-Mar-2018
148,Revenue,CAHD,Home Care - Elderly - South,Day Care / Social Activities,About Me Care and Support Limited,1489.24, 13-Mar-2018
149,Revenue,CAHD,Home Care - Elderly - South,Day Care / Social Activities,About Me Care and Support Limited,1359.04, 21-Mar-2018
150,Revenue,CAHD,Home Care - Elderly - North,Day Care / Social Activities,About Me Care and Support Limited,613.76, 21-Mar-2018
151,Revenue,CAHD,Home Care - Elderly - South,Day Care / Social Activities,About Me Care and Support Limited,832.96, 21-Mar-2018
152,Revenue,CAHD,Training - Adult Services,Training Expenses,Acorn Health & Safety Limited,673.00, 08-Mar-2018
153,Revenue,CAHD,Training - Adult Services,Training Expenses,Acorn Health & Safety Limited,465.00, 08-Mar-2018
154,Revenue,CAHD,CSC - Agency Fostering,Foster Parent Allowances,Action for Children,6975.00, 21-Mar-2018
155,Revenue,CAHD,CSC - Agency Fostering,Foster Parent Allowances,Action for Children,3352.34, 22-Mar-2018
156,Revenue,CAHD,Bed and Breakfast,Storage & Removal,Advanced Removals and Storage,481.25, 22-Mar-2018
157,Revenue,CAHD,Home Care - Elderly - South,Other Small Contracts,Advantedge Commercial Finance Limited,510.72, 23-Mar-2018
158,Revenue,CAHD,Home Care - Elderly - South,Other Small Contracts,Advantedge Commercial Finance Limited,2298.24, 23-Mar-2018
159,Revenue,CAHD,CSC - Allowances,Membership Fees,After Adoption,4190.00, 27-Mar-2018
160,Revenue,CAHD,Home Care - Elderly - South,Other Small Contracts,Agincare UK Limited,1700.40, 08-Mar-2018
161,Revenue,CAHD,Home Care - Elderly - North,Other Small Contracts,Agincare UK Limited,1512.92, 08-Mar-2018
162,Revenue,CAHD,Home Care - Elderly - South,Other Small Contracts,Agincare UK Limited,1905.32, 26-Mar-2018
163,Revenue,CAHD,Home Care - Elderly - North,Other Small Contracts,Agincare UK Limited,1395.20, 26-Mar-2018
164,Revenue,CAHD,Home Care - Elderly - South,Other Small Contracts,Agincare UK Limited,2023.04, 26-Mar-2018
165,Revenue,CAHD,Home Care - Elderly - North,Other Small Contracts,Agincare UK Limited,1430.08, 26-Mar-2018
166,Revenue,CAHD,Home Care - Elderly - South,Other Small Contracts,Agincare UK Limited,1809.40, 29-Mar-2018
167,Revenue,CAHD,Home Care - Elderly - North,Other Small Contracts,Agincare UK Limited,1268.76, 29-Mar-2018
168,Revenue,CAHD,Home Care - Elderly - South,Other Small Contracts,Agincare UK Limited,1979.44, 26-Mar-2018
169,Revenue,CAHD,Home Care - Elderly - North,Other Small Contracts,Agincare UK Limited,1403.92, 26-Mar-2018
170,Revenue,CAHD,Extra Care Housing,Private & Voluntary Home Care,Agincare UK Limited,21920.39, 01-Mar-2018
171,Revenue,CAHD,Extra Care Housing,Private & Voluntary Home Care,Agincare UK Limited,21920.39, 29-Mar-2018
172,Revenue,CAHD,Extra Care Housing,Private & Voluntary Home Care,Agincare UK Limited,10674.56, 01-Mar-2018
173,Revenue,CAHD,Extra Care Housing,Private & Voluntary Home Care,Agincare UK Limited,10674.56, 29-Mar-2018
174,Revenue,CAHD,Extra Care Housing,Private & Voluntary Home Care,Agincare UK Limited,25811.00, 02-Mar-2018
175,Revenue,CAHD,Extra Care Housing,Private & Voluntary Home Care,Agincare UK Limited,1200.63, 28-Mar-2018
176,Revenue,CAHD,Extra Care Housing,Private & Voluntary Home Care,Agincare UK Limited,1159.71, 22-Mar-2018
177,Revenue,CAHD,Extra Care Housing,Private & Voluntary Home Care,Agincare UK Limited,3085.49, 22-Mar-2018
178,Revenue,CAHD,Extra Care Housing,Private & Voluntary Home Care,Agincare UK Limited,2837.71, 22-Mar-2018
179,Revenue,CAHD,Prison Assessments & Costs,Other Supplies & Services,Agincare UK Limited,5342.75, 26-Mar-2018
180,Revenue,CAHD,CSC - Section 17 0-25,Preventative Assistance,Individual,626.00, 02-Mar-2018
181,Revenue,CAHD,Home Care - Elderly - South,Supported Living,Alexandra Homes (Bristol) Limited,864.70, 01-Mar-2018
182,Revenue,CAHD,Home Care - Elderly - South,Other Small Contracts,AliMo Care Ltd,855.68, 08-Mar-2018
183,Revenue,CAHD,Home Care - Elderly - South,Other Small Contracts,AliMo Care Ltd,779.52, 08-Mar-2018
184,Revenue,CAHD,Home Care - Elderly - South,Other Small Contracts,AliMo Care Ltd,869.12, 21-Mar-2018
185,Revenue,CAHD,Home Care - Elderly - South,Other Small Contracts,AliMo Care Ltd,976.64, 29-Mar-2018
186,Revenue,CAHD,Bed Purchasing - Southmead Hospital,Permanent Nursing,Allambie Court,2223.80, 13-Mar-2018
187,Revenue,CAHD,Bed Purchasing - Southmead Hospital,Permanent Nursing,Allambie Court,2223.80, 13-Mar-2018
188,Revenue,CAHD,Bed Purchasing - Southmead Hospital,Permanent Nursing,Allambie Court,1985.54, 13-Mar-2018
189,Revenue,CAHD,ASSIST - Health Promotion in Schools,Other Supplies & Services,AlterEgo Creative Solutions Ltd,4870.00, 07-Mar-2018
190,Revenue,CAHD,Bed Purchasing - South,Permanent Nursing,Ambleside Nusing Home,2126.16, 13-Mar-2018
191,Revenue,CAHD,Bed Purchasing - Southmead Hospital,Permanent Nursing,Amerind Grove Nursing Home,2593.60, 13-Mar-2018
192,Revenue,CAHD,CSC - Agency Fostering,Foster Parent Allowances,Amicus Foster Care Ltd,5398.14, 21-Mar-2018
193,Revenue,CAHD,CSC - Agency Fostering,Foster Parent Allowances,Amicus Foster Care Ltd,4879.00, 22-Mar-2018
194,Revenue,CAHD,Supporting People Programme,Grants to Voluntary Bodies,Anchor Housing,812.50, 01-Mar-2018
195,Revenue,CAHD,CSC - Section 17 0-25,Preventative Assistance,Angel Care Support Limited,2964.00, 23-Mar-2018
196,Revenue,CAHD,Training Budget - Children`s Social Serv,Training Expenses,Individual,650.00, 02-Mar-2018
197,Revenue,CAHD,CSC - Management & Support,Complaints External Expenses,Individual,3517.80, 22-Mar-2018
198,Revenue,CAHD,"Education, Learning and Skills",Catering,Aquaterra Leisure,1066.75, 13-Mar-2018
199,Revenue,CAHD,Schools Specific Grant Income,Other Public Bodies,Arc Schools,500.00, 29-Mar-2018
200,Revenue,CAHD,Bed Purchasing - North,Permanent Residential,Ark Care Homes Ltd,11266.84, 13-Mar-2018
201,Revenue,CAHD,School Admissions Related Expenses,Public Transport - Staff,Asend Limited,126.15, 02-Mar-2018
202,Revenue,CAHD,School Admissions Related Expenses,Subsistence,Asend Limited,500.00, 02-Mar-2018
203,Revenue,CAHD,Bed Purchasing - South,Permanent Nursing,Ash Grove House,2836.40, 13-Mar-2018
204,Revenue,CAHD,Jointly Funded H&SC Packages,Permanent Residential,Ash View House,1065.12, 13-Mar-2018
205,Revenue,CAHD,Bed Purchasing - South,Permanent Residential,Ash View House,5195.24, 13-Mar-2018
206,Revenue,CAHD,S117 Placements PCT,Permanent Residential,Ash View House,7241.60, 13-Mar-2018
207,Revenue,CAHD,18-25 Year Olds,Permanent Residential,Ash View House,6803.84, 13-Mar-2018
208,Revenue,CAHD,Section 117 Placements MH Younger,Permanent Residential,Ash View House,4719.08, 13-Mar-2018
209,Revenue,CAHD,Jointly Funded H&SC Packages,Permanent Residential,Ash View House,2022.48, 13-Mar-2018
210,Revenue,CAHD,Bed purchasing - Elderly S117 - South,Permanent Residential,Ash View House,6414.04, 13-Mar-2018
211,Revenue,CAHD,18-25 Year Olds,Permanent Residential,Ash View House,6340.00, 13-Mar-2018
212,Revenue,CAHD,Bed Purchasing - North,Permanent Residential,Aspects 2 Limited,6930.72, 13-Mar-2018
213,Revenue,CAHD,Supporting People Programme,Grants to Voluntary Bodies,Aspects and Milestones Trust,3298.58, 01-Mar-2018
214,Revenue,CAHD,Supporting People Programme,Grants to Voluntary Bodies,Aspects and Milestones Trust,1653.75, 01-Mar-2018
215,Revenue,CAHD,Supporting People Programme,Grants to Voluntary Bodies,Aspects and Milestones Trust,2014.33, 01-Mar-2018
216,Revenue,CAHD,Supporting People Programme,Grants to Voluntary Bodies,Aspects and Milestones Trust,650.00, 01-Mar-2018
217,Revenue,CAHD,Supporting People Programme,Grants to Voluntary Bodies,Aspects and Milestones Trust,650.00, 01-Mar-2018
218,Revenue,CAHD,CSC - Vinney Green Secure Unit,R & M by Departments,ASSA Abloy Ltd,7671.72, 01-Mar-2018
219,Revenue,CAHD,"Strategy, Advice and Public Protection",Radio Pager/Mobile Phones,AST Connections Limited,795.00, 02-Mar-2018
220,Revenue,CAHD,Home Care - Elderly - South,Adults - Family Support,Ategi Limited,532.64, 09-Mar-2018
221,Revenue,CAHD,Shared Lives,Other Supplies & Services,Ategi Limited,61310.00, 29-Mar-2018
222,Revenue,CAHD,Bed Purchasing - South,Permanent Residential,Ategi Limited,12464.92, 15-Mar-2018
223,Revenue,CAHD,Independent Special Placements - Pre 16,Other Private Contractors,Aurora Hedgeway School,6972.38, 14-Mar-2018
224,Revenue,CAHD,Bed Purchasing - South,Permanent Residential,Autism Specialised Care Homes,6235.88, 13-Mar-2018
225,Revenue,CAHD,CSC - Adoption Support Fund,Post Adoption,Individual,561.00, 09-Mar-2018
226,Revenue,CAHD,Bed Purchasing - Southmead Hospital,Fees & Charges Income - General,Avery Homes Downend Limited,507.86, 13-Mar-2018
227,Revenue,CAHD,Younger Adult Mental Health,Health Services (Third Party Payments),Avon & Wiltshire Mental Health,1693.33, 15-Mar-2018
228,Revenue,CAHD,CSC - Vinney Green Secure Unit,Support Services Recharges (above line),Barnardo Services Limited,3780.00, 08-Mar-2018
229,Revenue,CAHD,CSC - Safeguarding Board,Training Expenses,Barnardo Services Limited,1000.00, 22-Mar-2018
230,Revenue,CAHD,Children & Young People�s Health,Other Small Contracts,Barnardos,8333.00, 16-Mar-2018
231,Revenue,CAHD,Purchase of RAC places,Other L.A.'s - General,Bath & North East Somerset Council,1417.60, 28-Mar-2018
232,Revenue,CAHD,Purchase of RAC places,Other L.A.'s - General,Bath & North East Somerset Council,966.08, 28-Mar-2018
233,Revenue,CAHD,Pensions - Non DSG,Annual Pension,Bath & North East Somerset Council,107820.04, 27-Mar-2018
234,Revenue,CAHD,Independent Special Placements - Pre 16,Other Private Contractors,Bath Road Priory,77550.00, 26-Mar-2018
235,Revenue,CAHD,Early Years Development,Catering,Bawa Healthcare & Leisure,933.91, 14-Mar-2018
236,Revenue,CAHD,Early Years Development,Premises Hire,Bawa Healthcare & Leisure,1140.00, 14-Mar-2018
237,Revenue,CAHD,Pathway 3 - (Complex Beds),Permanent Nursing,Beaufort Care Ltd,16017.00, 19-Mar-2018
238,Revenue,CAHD,South Glos Users in South Glos Homes,Permanent Nursing,Beaufort Grange Care Home,620.20, 13-Mar-2018
239,Revenue,CAHD,South Glos Users in South Glos Homes,Permanent Nursing,Beaufort Grange Care Home,620.20, 13-Mar-2018
240,Revenue,CAHD,Bed Purchasing - Southmead Hospital,Permanent Nursing,Beaufort Grange Care Home,4579.80, 13-Mar-2018
241,Revenue,CAHD,Bed Purchasing - Southmead Hospital,Permanent Nursing,Beaufort Grange Care Home,654.26, 13-Mar-2018
242,Revenue,CAHD,South Glos Users in South Glos Homes,Permanent Nursing,Beaufort Grange Care Home,2702.30, 13-Mar-2018
243,Revenue,CAHD,South Glos Users in South Glos Homes,Permanent Nursing,Beaufort Grange Care Home,620.20, 13-Mar-2018
244,Revenue,CAHD,South Glos Users in South Glos Homes,Permanent Nursing,Beaufort Grange Care Home,620.20, 13-Mar-2018
245,Revenue,CAHD,South Glos Users in South Glos Homes,Permanent Nursing,Beaufort Grange Care Home,620.20, 13-Mar-2018
246,Revenue,CAHD,South Glos Users in South Glos Homes,Permanent Nursing,Beaufort Grange Care Home,620.20, 13-Mar-2018
247,Revenue,CAHD,South Glos Users in South Glos Homes,Permanent Nursing,Beaufort Grange Care Home,620.20, 13-Mar-2018
248,Revenue,CAHD,South Glos Users in South Glos Homes,Permanent Nursing,Beaufort Grange Care Home,620.20, 13-Mar-2018
249,Revenue,CAHD,South Glos Users in South Glos Homes,Permanent Nursing,Beaufort Grange Care Home,620.20, 13-Mar-2018
250,Revenue,CAHD,South Glos Users in South Glos Homes,Permanent Nursing,Beaufort Grange Care Home,620.20, 13-Mar-2018
251,Revenue,CAHD,Bed Purchasing - Elderly S117- North,Permanent Nursing,Beaufort Grange Care Home,4673.92, 13-Mar-2018
252,Revenue,CAHD,South Glos Users in South Glos Homes,Permanent Nursing,Beaufort Grange Care Home,620.20, 13-Mar-2018
253,Revenue,CAHD,South Glos Users in South Glos Homes,Permanent Nursing,Beaufort Grange Care Home,620.20, 13-Mar-2018
254,Revenue,CAHD,South Glos Users in South Glos Homes,Permanent Nursing,Beaufort Grange Care Home,620.20, 13-Mar-2018
255,Revenue,CAHD,South Glos Users in South Glos Homes,Permanent Nursing,Beaufort Grange Care Home,620.20, 13-Mar-2018
256,Revenue,CAHD,South Glos Users in South Glos Homes,Permanent Nursing,Beaufort Grange Care Home,620.20, 13-Mar-2018
257,Revenue,CAHD,Bed Purchasing - North,Permanent Residential,Beaufort House,2443.36, 13-Mar-2018
258,Revenue,CAHD,Bed Purchasing - Southmead Hospital,Permanent Residential,Beaufort House,2660.00, 13-Mar-2018
259,Revenue,CAHD,Bed Purchasing - North,Permanent Residential,Beaufort House,2464.28, 13-Mar-2018
260,Revenue,CAHD,Bed Purchasing - South,Permanent Residential,Beaufort House,2431.20, 13-Mar-2018
261,Revenue,CAHD,Bed Purchasing - South,Permanent Residential,Beaufort House,2339.40, 13-Mar-2018
262,Revenue,CAHD,Bed Purchasing - Southmead Hospital,Respite Planned - Residential,Beaufort House,2660.00, 13-Mar-2018
263,Revenue,CAHD,Bed Purchasing - North,Permanent Residential,Beaufort House,2407.80, 13-Mar-2018
264,Revenue,CAHD,Bed Purchasing - Southmead Hospital,Permanent Residential,Beaufort House,2660.00, 13-Mar-2018
265,Revenue,CAHD,Bed Purchasing - Southmead Hospital,Permanent Residential,Beaufort House,2600.00, 13-Mar-2018
266,Revenue,CAHD,Bed Purchasing - North,Respite Planned - Residential,Beaufort House,2660.00, 13-Mar-2018
267,Revenue,CAHD,Bed Purchasing - North,Respite Planned - Residential,Beaufort House,760.00, 13-Mar-2018
268,Revenue,CAHD,Bed Purchasing - North,Permanent Residential,Beaufort House,2587.48, 13-Mar-2018
269,Revenue,CAHD,Bed Purchasing - South,Permanent Residential,Beaufort House,2600.00, 13-Mar-2018
270,Revenue,CAHD,Bed Purchasing - Southmead Hospital,Permanent Residential,Beaufort House,2464.28, 13-Mar-2018
271,Revenue,CAHD,Bed Purchasing - Southmead Hospital,Permanent Residential,Beaufort House,2633.80, 13-Mar-2018
272,Revenue,CAHD,South Glos Users in South Glos Homes,Permanent Nursing,Beech House,620.20, 13-Mar-2018
273,Revenue,CAHD,Bed Purchasing - South,Permanent Residential,Beech House,2836.40, 13-Mar-2018
274,Revenue,CAHD,South Glos Users in South Glos Homes,Permanent Nursing,Beech House,620.20, 13-Mar-2018
275,Revenue,CAHD,South Glos Users in South Glos Homes,Permanent Nursing,Beech House,620.20, 13-Mar-2018
276,Revenue,CAHD,South Glos Users in South Glos Homes,Permanent Nursing,Beech House,620.20, 13-Mar-2018
277,Revenue,CAHD,South Glos Users in South Glos Homes,Permanent Nursing,Beech House,620.20, 13-Mar-2018
278,Revenue,CAHD,Bed Purchasing - North,Permanent Nursing,Beech House,2709.76, 13-Mar-2018
279,Revenue,CAHD,South Glos Users in South Glos Homes,Permanent Nursing,Beech House,620.20, 13-Mar-2018
280,Revenue,CAHD,South Glos Users in South Glos Homes,Permanent Nursing,Beech House,620.20, 13-Mar-2018
281,Revenue,CAHD,South Glos Users in South Glos Homes,Permanent Nursing,Beech House,620.20, 13-Mar-2018
282,Revenue,CAHD,Bed Purchasing - North,Permanent Nursing,Beech House,3031.04, 13-Mar-2018
283,Revenue,CAHD,South Glos Users in South Glos Homes,Permanent Nursing,Beech House,620.20, 13-Mar-2018
284,Revenue,CAHD,Bed Purchasing - North,Permanent Nursing,Beech House,3400.00, 13-Mar-2018
285,Revenue,CAHD,South Glos Users in South Glos Homes,Permanent Nursing,Beech House,620.20, 13-Mar-2018
286,Revenue,CAHD,Bed Purchasing - North,Permanent Residential,Beech House,2836.40, 13-Mar-2018
287,Revenue,CAHD,South Glos Users in South Glos Homes,Permanent Nursing,Beech House,620.20, 13-Mar-2018
288,Revenue,CAHD,South Glos Users in South Glos Homes,Permanent Nursing,Beech House,620.20, 13-Mar-2018
289,Revenue,CAHD,South Glos Users in South Glos Homes,Permanent Nursing,Beech House,620.20, 13-Mar-2018
290,Revenue,CAHD,South Glos Users in South Glos Homes,Permanent Nursing,Beech House,620.20, 13-Mar-2018
291,Revenue,CAHD,South Glos Users in South Glos Homes,Permanent Nursing,Beech House,620.20, 13-Mar-2018
292,Revenue,CAHD,South Glos Users in South Glos Homes,Permanent Nursing,Beech House,620.20, 13-Mar-2018
293,Revenue,CAHD,South Glos Users in South Glos Homes,Permanent Nursing,Beech House,620.20, 13-Mar-2018
294,Revenue,CAHD,South Glos Users in South Glos Homes,Permanent Nursing,Beech House,620.20, 13-Mar-2018
295,Revenue,CAHD,Bed Purchasing - Southmead Hospital,Permanent Residential,Beech House,3680.00, 13-Mar-2018
296,Revenue,CAHD,South Glos Users in South Glos Homes,Permanent Nursing,Beech House,620.20, 13-Mar-2018
297,Revenue,CAHD,South Glos Users in South Glos Homes,Permanent Nursing,Beech House,620.20, 13-Mar-2018
298,Revenue,CAHD,Bed Purchasing - North,Permanent Nursing,Beech House,3300.00, 13-Mar-2018
299,Revenue,CAHD,South Glos Users in South Glos Homes,Permanent Nursing,Beech House,620.20, 13-Mar-2018
300,Revenue,CAHD,Bed Purchasing - North,Permanent Nursing,Beech House,3169.68, 13-Mar-2018
301,Revenue,CAHD,South Glos Users in South Glos Homes,Permanent Nursing,Beech House,620.20, 13-Mar-2018
302,Revenue,CAHD,South Glos Users in South Glos Homes,Permanent Nursing,Beech House,620.20, 13-Mar-2018
303,Revenue,CAHD,South Glos Users in South Glos Homes,Permanent Nursing,Beech House,620.20, 13-Mar-2018
304,Revenue,CAHD,South Glos Users in South Glos Homes,Permanent Nursing,Beech House,620.20, 13-Mar-2018
305,Revenue,CAHD,South Glos Users in South Glos Homes,Permanent Nursing,Beech House,620.20, 13-Mar-2018
306,Revenue,CAHD,Statemented Support Payments to OLAs,Other L.A.'s - General,Beechen Cliff School,715.65, 01-Mar-2018
307,Revenue,CAHD,Statemented Support Payments to OLAs,Other L.A.'s - General,Beechen Cliff School,715.65, 27-Mar-2018
308,Revenue,CAHD,CSC - Residential Placements,Permanent Residential,Beechwood Court Ltd,13916.32, 22-Mar-2018
309,Revenue,CAHD,Independent Special Placements - Pre 16,Other Private Contractors,Belgrave School,5533.00, 14-Mar-2018
310,Revenue,CAHD,Independent Special Placements - Pre 16,Other Private Contractors,Belgrave School,5295.33, 14-Mar-2018
311,Revenue,CAHD,Independent Special Placements - Post 16,Other Private Contractors,Belgrave School,6290.00, 14-Mar-2018
312,Revenue,CAHD,Independent Special Placements - Pre 16,Other Private Contractors,Belgrave School,4318.00, 13-Mar-2018
313,Revenue,CAHD,CSC - Care Leavers Support Costs,"Provisions (Food, etc)",Big Yellow Self Storage Company Limited,1711.01, 13-Mar-2018
314,Revenue,CAHD,CSC - Vinney Green Secure Unit,Training Expenses,Blackhorse Sports and Community Association,720.00, 15-Mar-2018
315,Revenue,CAHD,Bed purchasing - Elderly S117 - South,Permanent Nursing,Blossom Field,4179.80, 13-Mar-2018
316,Revenue,CAHD,South Glos Users in South Glos Homes,Permanent Nursing,Blossom Field,620.20, 13-Mar-2018
317,Revenue,CAHD,Bed Purchasing - North,Permanent Nursing,Blossom Field,3523.92, 13-Mar-2018
318,Revenue,CAHD,South Glos Users in South Glos Homes,Permanent Nursing,Blossom Field,620.20, 13-Mar-2018
319,Revenue,CAHD,Bed Purchasing - Elderly S117- North,Permanent Nursing,Blossom Field,3539.76, 13-Mar-2018
320,Revenue,CAHD,South Glos Users in South Glos Homes,Permanent Nursing,Blossom Field,620.20, 13-Mar-2018
321,Revenue,CAHD,South Glos Users in South Glos Homes,Permanent Nursing,Blossom Field,620.20, 13-Mar-2018
322,Revenue,CAHD,South Glos Users in South Glos Homes,Permanent Nursing,Blossom Field,620.20, 13-Mar-2018
323,Revenue,CAHD,South Glos Users in South Glos Homes,Permanent Nursing,Blossom Field,620.20, 13-Mar-2018
324,Revenue,CAHD,South Glos Users in South Glos Homes,Permanent Nursing,Blossom Field,1218.25, 13-Mar-2018
325,Revenue,CAHD,South Glos Users in South Glos Homes,Permanent Nursing,Blossom Field,620.20, 13-Mar-2018
326,Revenue,CAHD,South Glos Users in South Glos Homes,Permanent Nursing,Blossom Field,620.20, 13-Mar-2018
327,Revenue,CAHD,South Glos Users in South Glos Homes,Permanent Nursing,Blossom Field,1107.50, 13-Mar-2018
328,Revenue,CAHD,South Glos Users in South Glos Homes,Permanent Nursing,Blossom Field,620.20, 13-Mar-2018
329,Revenue,CAHD,South Glos Users in South Glos Homes,Permanent Nursing,Blossom Field,620.20, 13-Mar-2018
330,Revenue,CAHD,Bed purchasing - Elderly S117 - South,Permanent Nursing,Blossom Field,4400.00, 13-Mar-2018
331,Revenue,CAHD,South Glos Users in South Glos Homes,Permanent Nursing,Blossom Field,620.20, 13-Mar-2018
332,Revenue,CAHD,South Glos Users in South Glos Homes,Permanent Nursing,Blossom Field,620.20, 13-Mar-2018
333,Revenue,CAHD,South Glos Users in South Glos Homes,Permanent Nursing,Blossom Field,620.20, 13-Mar-2018
334,Revenue,CAHD,Bed purchasing - Elderly S117 - South,Permanent Nursing,Blossom Field,4468.56, 13-Mar-2018
335,Revenue,CAHD,South Glos Users in South Glos Homes,Permanent Nursing,Blossom Field,620.20, 13-Mar-2018
336,Revenue,CAHD,Bed Purchasing - Southmead Hospital,Permanent Nursing,Blossom Field,4000.00, 13-Mar-2018
337,Revenue,CAHD,Bed Purchasing - Southmead Hospital,Permanent Nursing,Blossom Field,1428.57, 13-Mar-2018
338,Revenue,CAHD,Bed Purchasing - South,Permanent Nursing,Blossom Field,4229.28, 13-Mar-2018
339,Revenue,CAHD,South Glos Users in South Glos Homes,Permanent Nursing,Blossom Field,620.20, 13-Mar-2018
340,Revenue,CAHD,South Glos Users in South Glos Homes,Permanent Nursing,Blossom Field,620.20, 13-Mar-2018
341,Revenue,CAHD,South Glos Users in South Glos Homes,Permanent Nursing,Blossom Field,620.20, 13-Mar-2018
342,Revenue,CAHD,South Glos Users in South Glos Homes,Permanent Nursing,Blossom Field,3056.70, 13-Mar-2018
343,Revenue,CAHD,South Glos Users in South Glos Homes,Permanent Nursing,Blossom Field,620.20, 13-Mar-2018
344,Revenue,CAHD,South Glos Users in South Glos Homes,Permanent Nursing,Blossom Field,620.20, 13-Mar-2018
345,Revenue,CAHD,South Glos Users in South Glos Homes,Permanent Nursing,Blossom Field,620.20, 13-Mar-2018
346,Revenue,CAHD,South Glos Users in South Glos Homes,Permanent Nursing,Blossom Field,620.20, 13-Mar-2018
347,Revenue,CAHD,South Glos Users in South Glos Homes,Permanent Nursing,Blossom Field,620.20, 13-Mar-2018
348,Revenue,CAHD,South Glos Users in South Glos Homes,Permanent Nursing,Blossom Field,620.20, 13-Mar-2018
349,Revenue,CAHD,South Glos Users in South Glos Homes,Permanent Nursing,Blossom Field,620.20, 13-Mar-2018
350,Revenue,CAHD,South Glos Users in South Glos Homes,Permanent Nursing,Blossom Field,1173.95, 13-Mar-2018
351,Revenue,CAHD,South Glos Users in South Glos Homes,Permanent Nursing,Blossom Field,620.20, 13-Mar-2018
352,Revenue,CAHD,Bed Purchasing - North,Permanent Nursing,Blossom Field,4179.80, 13-Mar-2018
353,Revenue,CAHD,South Glos Users in South Glos Homes,Permanent Nursing,Blossom Field,620.20, 13-Mar-2018
354,Revenue,CAHD,Bed Purchasing - North,Permanent Nursing,Blossom Field,3824.08, 13-Mar-2018
355,Revenue,CAHD,South Glos Users in South Glos Homes,Permanent Nursing,Blossom Field,620.20, 13-Mar-2018
356,Revenue,CAHD,South Glos Users in South Glos Homes,Permanent Nursing,Blossom Field,620.20, 13-Mar-2018
357,Revenue,CAHD,Bed Purchasing - North,Permanent Nursing,Blossom Field,3483.56, 13-Mar-2018
358,Revenue,CAHD,South Glos Users in South Glos Homes,Permanent Nursing,Blossom Field,620.20, 13-Mar-2018
359,Revenue,CAHD,South Glos Users in South Glos Homes,Permanent Nursing,Blossom Field,620.20, 13-Mar-2018
360,Revenue,CAHD,South Glos Users in South Glos Homes,Permanent Nursing,Blossom Fields,620.20, 09-Mar-2018
361,Revenue,CAHD,South Glos Users in South Glos Homes,Permanent Nursing,Blossom Fields,620.20, 09-Mar-2018
362,Revenue,CAHD,Bed Purchasing - North,Permanent Nursing,Blossom Fields,1880.20, 09-Mar-2018
363,Revenue,CAHD,Bed Purchasing - North,Permanent Nursing,Blossom Fields,2688.00, 09-Mar-2018
364,Revenue,CAHD,EARLY YEARS DEPRIVATION PAYMENT,Preventative Assistance,Bluebells Pre School,843.97, 16-Mar-2018
365,Revenue,CAHD,Home Care - Elderly - South,Other Small Contracts,Bluebird Care (South Gloucestershire),221.88, 08-Mar-2018
366,Revenue,CAHD,Home Care - Elderly - North,Other Small Contracts,Bluebird Care (South Gloucestershire),1220.87, 08-Mar-2018
367,Revenue,CAHD,Home Care - Elderly - South,Other Small Contracts,Bluebird Care (South Gloucestershire),221.88, 20-Mar-2018
368,Revenue,CAHD,Home Care - Elderly - North,Other Small Contracts,Bluebird Care (South Gloucestershire),1195.07, 20-Mar-2018
369,Revenue,CAHD,Home Care - Elderly - South,Other Small Contracts,Bluebird Care (South Gloucestershire),227.04, 15-Mar-2018
370,Revenue,CAHD,Home Care - Elderly - North,Other Small Contracts,Bluebird Care (South Gloucestershire),1295.99, 15-Mar-2018
371,Revenue,CAHD,Home Care - Elderly - South,Other Small Contracts,Bluebird Care (South Gloucestershire),165.12, 20-Mar-2018
372,Revenue,CAHD,Home Care - Elderly - North,Other Small Contracts,Bluebird Care (South Gloucestershire),908.17, 20-Mar-2018
373,Revenue,CAHD,Home Care - Elderly - South,Other Small Contracts,Bluebird Care (South Gloucestershire),232.20, 26-Mar-2018
374,Revenue,CAHD,Home Care - Elderly - North,Other Small Contracts,Bluebird Care (South Gloucestershire),1248.30, 26-Mar-2018
375,Revenue,CAHD,Home Care - Elderly - South,Other Small Contracts,Bluebird Care (South Gloucestershire),216.72, 28-Mar-2018
376,Revenue,CAHD,Home Care - Elderly - North,Other Small Contracts,Bluebird Care (South Gloucestershire),1245.53, 28-Mar-2018
377,Revenue,CAHD,Training - Adult Services,Training Expenses,Bob Dawson,600.00, 26-Mar-2018
378,Revenue,CAHD,CSC - Vinney Green Secure Unit,"Provisions (Food, etc)",Booker Cash & Carry,529.97, 19-Mar-2018
379,Revenue,CAHD,Bed purchasing - S28A Under 65 - South,Permanent Residential,Bradbury House,4854.16, 13-Mar-2018
380,Revenue,CAHD,Bed Purchasing - South,Permanent Residential,Bradbury House,8375.20, 13-Mar-2018
381,Revenue,CAHD,18-25 Year Olds,Permanent Residential,Bradbury House,9504.08, 13-Mar-2018
382,Revenue,CAHD,Bed Purchasing - North,Permanent Residential,Bradbury House,5952.84, 13-Mar-2018
383,Revenue,CAHD,Jointly Funded H&SC Packages,Permanent Residential,Bradbury House,8223.16, 13-Mar-2018
384,Revenue,CAHD,Bed Purchasing - North,Permanent Residential,Bradbury House,2700.00, 13-Mar-2018
385,Revenue,CAHD,Home Care - Elderly - North,Other Small Contracts,Bramble Home Care Limited,1215.00, 16-Mar-2018
386,Revenue,CAHD,Home Care - Elderly - North,Other Small Contracts,Bramble Home Care Limited,1140.00, 22-Mar-2018
387,Revenue,CAHD,Home Care - Elderly - North,Other Small Contracts,Bramble Home Care Limited,1055.76, 26-Mar-2018
388,Revenue,CAHD,Home Care - Elderly - North,Other Small Contracts,Bramble Home Care Limited,806.76, 13-Mar-2018
389,Revenue,CAHD,Home Care - Elderly - North,Other Small Contracts,Bramble Home Care Limited,936.24, 23-Mar-2018
390,Revenue,CAHD,Home Care - Elderly - North,Other Small Contracts,Bramble Home Care Limited,781.86, 13-Mar-2018
391,Revenue,CAHD,Home Care - Elderly - North,Other Small Contracts,Bramble Home Care Limited,1394.40, 13-Mar-2018
392,Revenue,CAHD,Home Care - Elderly - North,Other Small Contracts,Bramble Home Care Limited,667.32, 22-Mar-2018
393,Revenue,CAHD,Home Care - Elderly - North,Other Small Contracts,Bramble Home Care Limited,1319.70, 13-Mar-2018
394,Revenue,CAHD,Home Care - Elderly - North,Other Small Contracts,Bramble Home Care Limited,788.42, 13-Mar-2018
395,Revenue,CAHD,CSC - Residential Placements,Permanent Residential,Branas ISAF Ltd,18000.00, 16-Mar-2018
396,Revenue,CAHD,CSC - Residential Placements,Permanent Residential,Branas ISAF Ltd,19000.00, 16-Mar-2018
397,Revenue,CAHD,CSC - Residential Placements,Permanent Residential,Branas ISAF Ltd,18000.00, 16-Mar-2018
398,Revenue,CAHD,Social Lettings Agency,Fees - General,Individual,11.41, 02-Mar-2018
399,Revenue,CAHD,Social Lettings Agency,Other Supplies & Services,Individual,746.54, 02-Mar-2018
400,Revenue,CAHD,Bed Purchasing - Southmead Hospital,Permanent Residential,Bridge House Care Home,2423.08, 13-Mar-2018
401,Revenue,CAHD,Bed Purchasing - North,Permanent Residential,Bridge House Care Home,2382.12, 13-Mar-2018
402,Revenue,CAHD,Bed Purchasing - Southmead Hospital,Permanent Residential,Bridge House Care Home,2464.00, 13-Mar-2018
403,Revenue,CAHD,Bed Purchasing - North,Permanent Residential,Bridge House Care Home,2496.04, 13-Mar-2018
404,Revenue,CAHD,Bed Purchasing - North,Permanent Residential,Bridge House Care Home,2191.80, 13-Mar-2018
405,Revenue,CAHD,CSC - Vinney Green Secure Unit,Training Expenses,Bridgwater and Taunton College,2573.00, 28-Mar-2018
406,Revenue,CAHD,CSC - Vinney Green Secure Unit,Training Expenses,Bridgwater and Taunton College,2573.00, 29-Mar-2018
407,Revenue,CAHD,CSC - Vinney Green Secure Unit,Training Expenses,Bridgwater and Taunton College,2573.00, 29-Mar-2018
408,Revenue,CAHD,Bed Purchasing - North,Permanent Residential,Bridgwater Court,10324.96, 13-Mar-2018
409,Revenue,CAHD,EARLY YEARS DEPRIVATION PAYMENT,Preventative Assistance,Bright Sparks Pre School Limited,2258.85, 16-Mar-2018
410,Revenue,CAHD,Early Years Pupil Premium Grant,Preventative Assistance,Bright Sparks Pre School Limited,1157.52, 16-Mar-2018
411,Revenue,CAHD,Early Years Inclusion Fund,Other Public Bodies,Bright Sparks Pre School Ltd,2200.00, 14-Mar-2018
412,Revenue,CAHD,Early Years Inclusion Fund,Other Public Bodies,Bright Sparks Pre-School,2200.00, 14-Mar-2018
413,Revenue,CAHD,Yate Detached,Rent,Brimsham Green School,576.30, 26-Mar-2018
414,Revenue,CAHD,Statemented Support Academies,Schools Funding,Bristol & South Gloucestershire UTC,5162.69, 01-Mar-2018
415,Revenue,CAHD,Statemented Support Academies,Schools Funding,Bristol & South Gloucestershire UTC,5162.69, 27-Mar-2018
416,Revenue,CAHD,CSC - Vinney Green Secure Unit,Operational Equipment,Bristol and Weston Superbounce,500.00, 28-Mar-2018
417,Revenue,CAHD,Transport OLA Special Schools and RB,Client Transport,Bristol City Council,2678.79, 27-Mar-2018
418,Revenue,CAHD,Sexual Health,Other Small Contracts,Bristol City Council,242584.50, 21-Mar-2018
419,Revenue,CAHD,Purchase of RAC places,Other L.A.'s - General,Bristol City Council,1087.20, 09-Mar-2018
420,Revenue,CAHD,Purchase of RAC places,Other L.A.'s - General,Bristol City Council,8643.24, 12-Mar-2018
421,Revenue,CAHD,Schools Specific Grant Income,Other Public Bodies,Bristol City Council,500.00, 05-Mar-2018
422,Revenue,CAHD,Placements OLA Special Schools and RB,Other L.A.'s - General,Bristol City Council - Schools,2578.00, 01-Mar-2018
423,Revenue,CAHD,Placements OLA Special Schools and RB,Other L.A.'s - General,Bristol City Council - Schools,2578.00, 27-Mar-2018
424,Revenue,CAHD,Placements OLA Special Schools and RB,Other L.A.'s - General,Bristol City Council - Schools,1350.17, 01-Mar-2018
425,Revenue,CAHD,Placements OLA Special Schools and RB,Other L.A.'s - General,Bristol City Council - Schools,1350.17, 27-Mar-2018
426,Revenue,CAHD,Statemented Support Payments to OLAs,Other L.A.'s - General,Bristol City Council - Schools,1375.07, 01-Mar-2018
427,Revenue,CAHD,Statemented Support Payments to OLAs,Other L.A.'s - General,Bristol City Council - Schools,1375.07, 27-Mar-2018
428,Revenue,CAHD,Schools Specific Grant Income,Other Public Bodies,Bristol City Council - Schools,500.00, 02-Mar-2018
429,Revenue,CAHD,Schools Specific Grant Income,Other Public Bodies,Bristol City Council - Schools,1731.28, 27-Mar-2018
430,Revenue,CAHD,Statemented Support Payments to OLAs,Other L.A.'s - General,Bristol City Council - Schools,1294.65, 01-Mar-2018
431,Revenue,CAHD,Statemented Support Payments to OLAs,Other L.A.'s - General,Bristol City Council - Schools,1294.65, 27-Mar-2018
432,Revenue,CAHD,Placements OLA Special Schools and RB,Other L.A.'s - General,Bristol City Council - Schools,914.33, 01-Mar-2018
433,Revenue,CAHD,Placements OLA Special Schools and RB,Other L.A.'s - General,Bristol City Council - Schools,914.33, 27-Mar-2018
434,Revenue,CAHD,Placements OLA Special Schools and RB,Other L.A.'s - General,Bristol City Council - Schools,2578.00, 01-Mar-2018
435,Revenue,CAHD,Placements OLA Special Schools and RB,Other L.A.'s - General,Bristol City Council - Schools,2578.00, 27-Mar-2018
436,Revenue,CAHD,Placements OLA Special Schools and RB,Other L.A.'s - General,Bristol City Council - Schools,1305.58, 01-Mar-2018
437,Revenue,CAHD,Placements OLA Special Schools and RB,Other L.A.'s - General,Bristol City Council - Schools,1305.58, 27-Mar-2018
438,Revenue,CAHD,Placements OLA Special Schools and RB,Other L.A.'s - General,Bristol City Council - Schools,1244.17, 01-Mar-2018
439,Revenue,CAHD,Placements OLA Special Schools and RB,Other L.A.'s - General,Bristol City Council - Schools,1244.17, 27-Mar-2018
440,Revenue,CAHD,Placements OLA Special Schools and RB,Other L.A.'s - General,Bristol City Council - Schools,3356.33, 01-Mar-2018
441,Revenue,CAHD,Placements OLA Special Schools and RB,Other L.A.'s - General,Bristol City Council - Schools,3356.33, 27-Mar-2018
442,Revenue,CAHD,Placements OLA Special Schools and RB,Other L.A.'s - General,Bristol City Council - Schools,2578.00, 01-Mar-2018
443,Revenue,CAHD,Placements OLA Special Schools and RB,Other L.A.'s - General,Bristol City Council - Schools,2578.00, 27-Mar-2018
444,Revenue,CAHD,Statemented Support Payments to OLAs,Other L.A.'s - General,Bristol City Council - Schools,908.65, 01-Mar-2018
445,Revenue,CAHD,Statemented Support Payments to OLAs,Other L.A.'s - General,Bristol City Council - Schools,908.65, 27-Mar-2018
446,Revenue,CAHD,Placements OLA Special Schools and RB,Other L.A.'s - General,Bristol City Council - Schools,2578.00, 01-Mar-2018
447,Revenue,CAHD,Placements OLA Special Schools and RB,Other L.A.'s - General,Bristol City Council - Schools,2578.00, 27-Mar-2018
448,Revenue,CAHD,Placements OLA Special Schools and RB,Other L.A.'s - General,Bristol City Council - Schools,1381.00, 01-Mar-2018
449,Revenue,CAHD,Placements OLA Special Schools and RB,Other L.A.'s - General,Bristol City Council - Schools,1381.00, 27-Mar-2018
450,Revenue,CAHD,Placements OLA Special Schools and RB,Other L.A.'s - General,Bristol City Council - Schools,2050.17, 01-Mar-2018
451,Revenue,CAHD,Placements OLA Special Schools and RB,Other L.A.'s - General,Bristol City Council - Schools,914.33, 01-Mar-2018
452,Revenue,CAHD,Placements OLA Special Schools and RB,Other L.A.'s - General,Bristol City Council - Schools,2050.17, 27-Mar-2018
453,Revenue,CAHD,Placements OLA Special Schools and RB,Other L.A.'s - General,Bristol City Council - Schools,914.33, 27-Mar-2018
454,Revenue,CAHD,Placements OLA Special Schools and RB,Other L.A.'s - General,Bristol City Council - Schools,1381.00, 01-Mar-2018
455,Revenue,CAHD,Placements OLA Special Schools and RB,Other L.A.'s - General,Bristol City Council - Schools,1381.00, 27-Mar-2018
456,Revenue,CAHD,Placements OLA Special Schools and RB,Other L.A.'s - General,Bristol City Council - Schools,2050.17, 01-Mar-2018
457,Revenue,CAHD,Placements OLA Special Schools and RB,Other L.A.'s - General,Bristol City Council - Schools,2050.17, 27-Mar-2018
458,Revenue,CAHD,Placements OLA Special Schools and RB,Other L.A.'s - General,Bristol City Council - Schools,2578.00, 01-Mar-2018
459,Revenue,CAHD,Placements OLA Special Schools and RB,Other L.A.'s - General,Bristol City Council - Schools,2578.00, 27-Mar-2018
460,Revenue,CAHD,Placements OLA Special Schools and RB,Other L.A.'s - General,Bristol City Council - Schools,809.00, 01-Mar-2018
461,Revenue,CAHD,Placements OLA Special Schools and RB,Other L.A.'s - General,Bristol City Council - Schools,809.00, 27-Mar-2018
462,Revenue,CAHD,Placements OLA Special Schools and RB,Other L.A.'s - General,Bristol City Council - Schools,883.50, 01-Mar-2018
463,Revenue,CAHD,Placements OLA Special Schools and RB,Other L.A.'s - General,Bristol City Council - Schools,4107.54, 01-Mar-2018
464,Revenue,CAHD,Placements OLA Special Schools and RB,Other L.A.'s - General,Bristol City Council - Schools,883.50, 27-Mar-2018
465,Revenue,CAHD,Placements OLA Special Schools and RB,Other L.A.'s - General,Bristol City Council - Schools,4107.54, 27-Mar-2018
466,Revenue,CAHD,Placements OLA Special Schools and RB,Other L.A.'s - General,Bristol City Council - Schools,1031.20, 01-Mar-2018
467,Revenue,CAHD,Placements OLA Special Schools and RB,Other L.A.'s - General,Bristol City Council - Schools,1031.20, 27-Mar-2018
468,Revenue,CAHD,Placements OLA Special Schools and RB,Other L.A.'s - General,Bristol City Council - Schools,2578.00, 01-Mar-2018
469,Revenue,CAHD,Placements OLA Special Schools and RB,Other L.A.'s - General,Bristol City Council - Schools,2578.00, 27-Mar-2018
470,Revenue,CAHD,Placements OLA Special Schools and RB,Other L.A.'s - General,Bristol City Council - Schools,809.00, 01-Mar-2018
471,Revenue,CAHD,Placements OLA Special Schools and RB,Other L.A.'s - General,Bristol City Council - Schools,809.00, 27-Mar-2018
472,Revenue,CAHD,Placements OLA Special Schools and RB,Other L.A.'s - General,Bristol City Council - Schools,2578.00, 01-Mar-2018
473,Revenue,CAHD,Placements OLA Special Schools and RB,Other L.A.'s - General,Bristol City Council - Schools,2578.00, 27-Mar-2018
474,Revenue,CAHD,Placements OLA Special Schools and RB,Other L.A.'s - General,Bristol City Council - Schools,883.50, 01-Mar-2018
475,Revenue,CAHD,Placements OLA Special Schools and RB,Other L.A.'s - General,Bristol City Council - Schools,883.50, 27-Mar-2018
476,Revenue,CAHD,Placements OLA Special Schools and RB,Other L.A.'s - General,Bristol City Council - Schools,2062.40, 01-Mar-2018
477,Revenue,CAHD,Placements OLA Special Schools and RB,Other L.A.'s - General,Bristol City Council - Schools,2062.40, 27-Mar-2018
478,Revenue,CAHD,Placements OLA Special Schools and RB,Other L.A.'s - General,Bristol City Council - Schools,2578.00, 01-Mar-2018
479,Revenue,CAHD,Placements OLA Special Schools and RB,Other L.A.'s - General,Bristol City Council - Schools,2578.00, 27-Mar-2018
480,Revenue,CAHD,Placements OLA Special Schools and RB,Other L.A.'s - General,Bristol City Council - Schools,2859.33, 01-Mar-2018
481,Revenue,CAHD,Placements OLA Special Schools and RB,Other L.A.'s - General,Bristol City Council - Schools,2859.33, 27-Mar-2018
482,Revenue,CAHD,Placements OLA Special Schools and RB,Other L.A.'s - General,Bristol City Council - Schools,883.50, 01-Mar-2018
483,Revenue,CAHD,Placements OLA Special Schools and RB,Other L.A.'s - General,Bristol City Council - Schools,883.50, 27-Mar-2018
484,Revenue,CAHD,Home Care - Elderly - North,Day Care / Social Activities,Bristol Community Links North,996.32, 13-Mar-2018
485,Revenue,CAHD,CSC - Vinney Green Secure Unit,R & M by Departments,Bristol Electrical Wholesale Limited,812.50, 19-Mar-2018
486,Revenue,CAHD,CSC - Vinney Green Secure Unit,R & M by Departments,Bristol Electrical Wholesale Limited,912.19, 29-Mar-2018
487,Revenue,CAHD,Home Care - Elderly - North,Other Small Contracts,Bristol Houses UK Limited,2220.00, 22-Mar-2018
488,Revenue,CAHD,Home Care - Elderly - South,Day Care / Social Activities,Bristol Houses UK Limited,1349.76, 22-Mar-2018
489,Revenue,CAHD,Home Care - Elderly - South,Day Care / Social Activities,Bristol Houses UK Limited,1345.32, 22-Mar-2018
490,Revenue,CAHD,Home Care - Elderly - South,Day Care / Social Activities,Bristol Houses UK Limited,1349.76, 22-Mar-2018
491,Revenue,CAHD,Home Care - Elderly - South,Day Care / Social Activities,Bristol Houses UK Limited,870.24, 29-Mar-2018
492,Revenue,CAHD,Statemented Support Payments to OLAs,Other L.A.'s - General,Broadlands Academy,1334.86, 01-Mar-2018
493,Revenue,CAHD,Statemented Support Payments to OLAs,Other L.A.'s - General,Broadlands Academy,1334.86, 27-Mar-2018
494,Revenue,CAHD,Supporting People Programme,Grants to Voluntary Bodies,Bromford Housing Group,14395.08, 01-Mar-2018
495,Revenue,CAHD,Pathway 1 - Re-Ablement Home Care,Private & Voluntary Home Care,Brunelcare,24132.35, 05-Mar-2018
496,Revenue,CAHD,Pathway 1 - Re-Ablement Home Care,Private & Voluntary Home Care,Brunelcare,24132.35, 12-Mar-2018
497,Revenue,CAHD,Pathway 1 - Re-Ablement Home Care,Private & Voluntary Home Care,Brunelcare,24132.35, 19-Mar-2018
498,Revenue,CAHD,Pathway 1 - Re-Ablement Home Care,Private & Voluntary Home Care,Brunelcare,24132.35, 26-Mar-2018
499,Revenue,CAHD,Pathway 1 - Re-Ablement Home Care,Private & Voluntary Home Care,Brunelcare,24132.35, 29-Mar-2018
500,Revenue,CAHD,South Glos Users in South Glos Homes,Permanent Nursing,Brunelcare,620.20, 16-Mar-2018
501,Revenue,CAHD,South Glos Users in South Glos Homes,Permanent Nursing,Brunelcare,620.20, 16-Mar-2018
502,Revenue,CAHD,South Glos Users in South Glos Homes,Permanent Nursing,Brunelcare,620.20, 16-Mar-2018
503,Revenue,CAHD,South Glos Users in South Glos Homes,Permanent Nursing,Brunelcare,620.20, 16-Mar-2018
504,Revenue,CAHD,South Glos Users in South Glos Homes,Permanent Nursing,Brunelcare,620.20, 16-Mar-2018
505,Revenue,CAHD,South Glos Users in South Glos Homes,Permanent Nursing,Brunelcare,620.20, 16-Mar-2018
506,Revenue,CAHD,South Glos Users in South Glos Homes,Permanent Nursing,Brunelcare,620.20, 16-Mar-2018
507,Revenue,CAHD,South Glos Users in South Glos Homes,Permanent Nursing,Brunelcare,620.20, 16-Mar-2018
508,Revenue,CAHD,South Glos Users in South Glos Homes,Permanent Nursing,Brunelcare,620.20, 16-Mar-2018
509,Revenue,CAHD,South Glos Users in South Glos Homes,Permanent Nursing,Brunelcare,620.20, 16-Mar-2018
510,Revenue,CAHD,South Glos Users in South Glos Homes,Permanent Nursing,Brunelcare,620.20, 16-Mar-2018
511,Revenue,CAHD,South Glos Users in South Glos Homes,Permanent Nursing,Brunelcare,620.20, 16-Mar-2018
512,Revenue,CAHD,South Glos Users in South Glos Homes,Permanent Nursing,Brunelcare,620.20, 16-Mar-2018
513,Revenue,CAHD,Bed purchasing - Elderly S117 - South,Permanent Nursing,Brunelcare,3176.00, 16-Mar-2018
514,Revenue,CAHD,Bed Purchasing - Elderly S117- North,Permanent Nursing,Brunelcare,3176.00, 16-Mar-2018
515,Revenue,CAHD,Bed Purchasing - Elderly S117- North,Permanent Nursing,Brunelcare,3176.00, 16-Mar-2018
516,Revenue,CAHD,Bed Purchasing - Southmead Hospital,Permanent Nursing,Brunelcare,1932.75, 16-Mar-2018
517,Revenue,CAHD,Bed Purchasing - Southmead Hospital,Permanent Nursing,Brunelcare,2483.72, 16-Mar-2018
518,Revenue,CAHD,Bed Purchasing - Southmead Hospital,Permanent Nursing,Brunelcare,2638.20, 16-Mar-2018
519,Revenue,CAHD,Bed Purchasing - Southmead Hospital,Permanent Nursing,Brunelcare,1701.43, 16-Mar-2018
520,Revenue,CAHD,Bed Purchasing - Southmead Hospital,Permanent Nursing,Brunelcare,949.05, 16-Mar-2018
521,Revenue,CAHD,Bed Purchasing - South,Permanent Nursing,Brunelcare,2631.32, 16-Mar-2018
522,Revenue,CAHD,Bed Purchasing - South,Permanent Nursing,Brunelcare,2330.84, 16-Mar-2018
523,Revenue,CAHD,Bed Purchasing - South,Permanent Nursing,Brunelcare,2442.16, 16-Mar-2018
524,Revenue,CAHD,Bed Purchasing - South,Permanent Nursing,Brunelcare,2465.04, 16-Mar-2018
525,Revenue,CAHD,Bed Purchasing - South,Respite Emergency - Nursing,Brunelcare,2268.57, 16-Mar-2018
526,Revenue,CAHD,Bed Purchasing - North,Permanent Nursing,Brunelcare,2603.64, 16-Mar-2018
527,Revenue,CAHD,Bed Purchasing - North,Permanent Nursing,Brunelcare,2571.52, 16-Mar-2018
528,Revenue,CAHD,Bed Purchasing - North,Permanent Nursing,Brunelcare,1207.83, 16-Mar-2018
529,Revenue,CAHD,Bed Purchasing - North,Permanent Nursing,Brunelcare,542.31, 16-Mar-2018
530,Revenue,CAHD,Bed Purchasing - North,Permanent Nursing,Brunelcare,813.47, 16-Mar-2018
531,Revenue,CAHD,Bed Purchasing - North,Permanent Nursing,Brunelcare,2638.20, 16-Mar-2018
532,Revenue,CAHD,Bed Purchasing - North,Permanent Nursing,Brunelcare,3176.00, 16-Mar-2018
533,Revenue,CAHD,Bed Purchasing - North,Respite Planned - Nursing,Brunelcare,542.31, 16-Mar-2018
534,Revenue,CAHD,Pathway 2 - (Interim Beds),Permanent Nursing,Brunelcare,51751.00, 14-Mar-2018
535,Revenue,CAHD,Pathway 2 - (Interim Beds),Permanent Nursing,Brunelcare,51751.00, 28-Mar-2018
536,Revenue,CAHD,Pathway 2 - (Interim Beds),Permanent Nursing,Brunelcare,17511.00, 19-Mar-2018
537,Revenue,CAHD,Home Care - Elderly - South,Other Small Contracts,Brunelcare,1930.88, 08-Mar-2018
538,Revenue,CAHD,Home Care - Elderly - North,Other Small Contracts,Brunelcare,1102.08, 08-Mar-2018
539,Revenue,CAHD,Home Care - Elderly - South,Other Small Contracts,Brunelcare,1751.68, 08-Mar-2018
540,Revenue,CAHD,Home Care - Elderly - North,Other Small Contracts,Brunelcare,1155.84, 08-Mar-2018
541,Revenue,CAHD,Home Care - Elderly - South,Other Small Contracts,Brunelcare,1886.08, 12-Mar-2018
542,Revenue,CAHD,Home Care - Elderly - North,Other Small Contracts,Brunelcare,1173.76, 12-Mar-2018
543,Revenue,CAHD,Home Care - Elderly - South,Other Small Contracts,Brunelcare,1514.24, 26-Mar-2018
544,Revenue,CAHD,Home Care - Elderly - North,Other Small Contracts,Brunelcare,846.72, 26-Mar-2018
545,Revenue,CAHD,Home Care - Elderly - South,Other Small Contracts,Brunelcare,1908.48, 26-Mar-2018
546,Revenue,CAHD,Home Care - Elderly - North,Other Small Contracts,Brunelcare,788.48, 26-Mar-2018
547,Revenue,CAHD,Bed and Breakfast,Storage & Removal,Brunels Removals LTD,1008.00, 13-Mar-2018
548,Revenue,CAHD,Bed Purchasing - North,Permanent Nursing,Bupa Care Services  Bridge House,1762.64, 13-Mar-2018
549,Revenue,CAHD,Jointly Funded H&SC Packages,Permanent Nursing,Bupa Care Services  Bridge House,4400.48, 13-Mar-2018
550,Revenue,CAHD,South Glos Users in all other LA Homes,Permanent Nursing,Bupa Care Services  Bridge House,853.28, 13-Mar-2018
551,Revenue,CAHD,CSC - Vinney Green Secure Unit,Service Contracts (Premises),BWS Standfast Fire & Security Systems,14061.00, 02-Mar-2018
552,Revenue,CAHD,CSC - Vinney Green Secure Unit,R & M by Departments,BWS Standfast Fire & Security Systems,1088.00, 02-Mar-2018
553,Revenue,CAHD,CSC - Vinney Green Secure Unit,Premises Maintenance by Contractor,BWS Standfast Fire & Security Systems,12416.60, 29-Mar-2018
554,Revenue,CAHD,LSE - Schools Priority Support,Consultants Fees,Cabot Learning Federation,2000.00, 20-Mar-2018
555,Revenue,CAHD,Statemented Support Payments to OLAs,Other L.A.'s - General,Cabot Learning Federation,1101.65, 01-Mar-2018
556,Revenue,CAHD,Schools Specific Grant Income,Other Public Bodies,Cabot Learning Federation,500.00, 02-Mar-2018
557,Revenue,CAHD,Academy Resource Base Funding,Other Public Bodies,Cabot Learning Federation,1202.29, 26-Mar-2018
558,Revenue,CAHD,Academy Resource Base Funding,Other Public Bodies,Cabot Learning Federation,1575.48, 26-Mar-2018
559,Revenue,CAHD,Academy Resource Base Funding,Other Public Bodies,Cabot Learning Federation,1741.27, 26-Mar-2018
560,Revenue,CAHD,Academy Resource Base Funding,Other Public Bodies,Cabot Learning Federation,1202.29, 26-Mar-2018
561,Revenue,CAHD,Academy Resource Base Funding,Other Public Bodies,Cabot Learning Federation,1575.48, 26-Mar-2018
562,Revenue,CAHD,Academy Resource Base Funding,Other Public Bodies,Cabot Learning Federation,1202.29, 26-Mar-2018
563,Revenue,CAHD,Academy Resource Base Funding,Other Public Bodies,Cabot Learning Federation,1575.48, 26-Mar-2018
564,Revenue,CAHD,Academy Resource Base Funding,Other Public Bodies,Cabot Learning Federation,1202.29, 26-Mar-2018
565,Revenue,CAHD,Academy Resource Base Funding,Other Public Bodies,Cabot Learning Federation,663.32, 26-Mar-2018
566,Revenue,CAHD,Academy Resource Base Funding,Other Public Bodies,Cabot Learning Federation,1741.27, 26-Mar-2018
567,Revenue,CAHD,Academy Resource Base Funding,Other Public Bodies,Cabot Learning Federation,1575.48, 26-Mar-2018
568,Revenue,CAHD,Academy Resource Base Funding,Other Public Bodies,Cabot Learning Federation,912.08, 26-Mar-2018
569,Revenue,CAHD,Schools Specific Grant Income,Other Public Bodies,Cabot Learning Federation,500.00, 02-Mar-2018
570,Revenue,CAHD,Schools Specific Grant Income,Other Public Bodies,Cabot Learning Federation,500.00, 02-Mar-2018
571,Revenue,CAHD,Schools Specific Grant Income,Other Public Bodies,Cabot Learning Federation,1731.28, 27-Mar-2018
572,Revenue,CAHD,Schools Specific Grant Income,Other Public Bodies,Cabot Learning Federation,1731.28, 27-Mar-2018
573,Revenue,CAHD,Schools Specific Grant Income,Other Public Bodies,Cabot Learning Federation,500.00, 02-Mar-2018
574,Revenue,CAHD,Schools Specific Grant Income,Other Public Bodies,Cabot Learning Federation,500.00, 02-Mar-2018
575,Revenue,CAHD,Schools Specific Grant Income,Other Public Bodies,Cabot Learning Federation,1731.28, 27-Mar-2018
576,Revenue,CAHD,Schools Specific Grant Income,Other Public Bodies,Cabot Learning Federation,1731.28, 27-Mar-2018
577,Revenue,CAHD,Schools Specific Grant Income,Other Public Bodies,Cabot Learning Federation,500.00, 02-Mar-2018
578,Revenue,CAHD,Schools Specific Grant Income,Other Public Bodies,Cabot Learning Federation,500.00, 02-Mar-2018
579,Revenue,CAHD,Schools Specific Grant Income,Other Public Bodies,Cabot Learning Federation,1731.28, 27-Mar-2018
580,Revenue,CAHD,Schools Specific Grant Income - from OLA,Other Public Bodies,Cabot Learning Federation,633.33, 26-Mar-2018
581,Revenue,CAHD,Schools Specific Grant Income,Other Public Bodies,Cabot Learning Federation,500.00, 02-Mar-2018
582,Revenue,CAHD,Schools Specific Grant Income,Other Public Bodies,Cabot Learning Federation,500.00, 02-Mar-2018
583,Revenue,CAHD,Schools Specific Grant Income,Other Public Bodies,Cabot Learning Federation,1731.28, 27-Mar-2018
584,Revenue,CAHD,Schools Specific Grant Income - from OLA,Other Public Bodies,Cabot Learning Federation,4433.31, 26-Mar-2018
585,Revenue,CAHD,Schools Specific Grant Income,Other Public Bodies,Cabot Learning Federation,500.00, 02-Mar-2018
586,Revenue,CAHD,Schools Specific Grant Income - from OLA,Other Public Bodies,Cabot Learning Federation,1966.66, 26-Mar-2018
587,Revenue,CAHD,Statemented Support Payments to OLAs,Other L.A.'s - General,Cabot Learning Federation,522.65, 01-Mar-2018
588,Revenue,CAHD,Statemented Support Payments to OLAs,Other L.A.'s - General,Cabot Learning Federation,522.65, 27-Mar-2018
589,Revenue,CAHD,Statemented Support Academies,Schools Funding,Cabot Learning Federation,667.40, 01-Mar-2018
590,Revenue,CAHD,Statemented Support Academies,Schools Funding,Cabot Learning Federation,667.40, 27-Mar-2018
591,Revenue,CAHD,Statemented Support Academies,Schools Funding,Cabot Learning Federation,699.57, 01-Mar-2018
592,Revenue,CAHD,Statemented Support Academies,Schools Funding,Cabot Learning Federation,699.57, 27-Mar-2018
593,Revenue,CAHD,Statemented Support Academies,Schools Funding,Cabot Learning Federation,635.23, 01-Mar-2018
594,Revenue,CAHD,Statemented Support Academies,Schools Funding,Cabot Learning Federation,635.23, 27-Mar-2018
595,Revenue,CAHD,Statemented Support Academies,Schools Funding,Cabot Learning Federation,667.40, 01-Mar-2018
596,Revenue,CAHD,Statemented Support Academies,Schools Funding,Cabot Learning Federation,667.40, 27-Mar-2018
597,Revenue,CAHD,Statemented Support Academies,Schools Funding,Cabot Learning Federation,603.07, 01-Mar-2018
598,Revenue,CAHD,Statemented Support Academies,Schools Funding,Cabot Learning Federation,603.07, 27-Mar-2018
599,Revenue,CAHD,Statemented Support Academies,Schools Funding,Cabot Learning Federation,538.73, 01-Mar-2018
600,Revenue,CAHD,Statemented Support Academies,Schools Funding,Cabot Learning Federation,538.73, 27-Mar-2018
601,Revenue,CAHD,Statemented Support Academies,Schools Funding,Cabot Learning Federation,755.86, 01-Mar-2018
602,Revenue,CAHD,Statemented Support Academies,Schools Funding,Cabot Learning Federation,755.86, 27-Mar-2018
603,Revenue,CAHD,Statemented Support Academies,Schools Funding,Cabot Learning Federation,562.86, 01-Mar-2018
604,Revenue,CAHD,Statemented Support Academies,Schools Funding,Cabot Learning Federation,562.86, 27-Mar-2018
605,Revenue,CAHD,Statemented Support Academies,Schools Funding,Cabot Learning Federation,562.86, 01-Mar-2018
606,Revenue,CAHD,Statemented Support Academies,Schools Funding,Cabot Learning Federation,562.86, 27-Mar-2018
607,Revenue,CAHD,Statemented Support Academies,Schools Funding,Cabot Learning Federation,578.94, 01-Mar-2018
608,Revenue,CAHD,Statemented Support Academies,Schools Funding,Cabot Learning Federation,578.94, 27-Mar-2018
609,Revenue,CAHD,Statemented Support Academies,Schools Funding,Cabot Learning Federation,699.57, 01-Mar-2018
610,Revenue,CAHD,Statemented Support Academies,Schools Funding,Cabot Learning Federation,699.57, 27-Mar-2018
611,Revenue,CAHD,Statemented Support Academies,Schools Funding,Cabot Learning Federation,836.28, 01-Mar-2018
612,Revenue,CAHD,Statemented Support Academies,Schools Funding,Cabot Learning Federation,836.28, 27-Mar-2018
613,Revenue,CAHD,Statemented Support Academies,Schools Funding,Cabot Learning Federation,667.40, 01-Mar-2018
614,Revenue,CAHD,Statemented Support Academies,Schools Funding,Cabot Learning Federation,667.40, 27-Mar-2018
615,Revenue,CAHD,Statemented Support Academies,Schools Funding,Cabot Learning Federation,562.86, 01-Mar-2018
616,Revenue,CAHD,Statemented Support Academies,Schools Funding,Cabot Learning Federation,562.86, 27-Mar-2018
617,Revenue,CAHD,Statemented Support Academies,Schools Funding,Cabot Learning Federation,659.36, 01-Mar-2018
618,Revenue,CAHD,Statemented Support Academies,Schools Funding,Cabot Learning Federation,659.36, 27-Mar-2018
619,Revenue,CAHD,Statemented Support Academies,Schools Funding,Cabot Learning Federation,546.78, 01-Mar-2018
620,Revenue,CAHD,Statemented Support Academies,Schools Funding,Cabot Learning Federation,546.78, 27-Mar-2018
621,Revenue,CAHD,Statemented Support Academies,Schools Funding,Cabot Learning Federation,788.03, 01-Mar-2018
622,Revenue,CAHD,Statemented Support Academies,Schools Funding,Cabot Learning Federation,788.03, 27-Mar-2018
623,Revenue,CAHD,Statemented Support Academies,Schools Funding,Cabot Learning Federation,659.36, 01-Mar-2018
624,Revenue,CAHD,Statemented Support Academies,Schools Funding,Cabot Learning Federation,659.36, 27-Mar-2018
625,Revenue,CAHD,Statemented Support Academies,Schools Funding,Cabot Learning Federation,924.73, 01-Mar-2018
626,Revenue,CAHD,Statemented Support Academies,Schools Funding,Cabot Learning Federation,924.73, 27-Mar-2018
627,Revenue,CAHD,Statemented Support Academies,Schools Funding,Cabot Learning Federation,836.28, 01-Mar-2018
628,Revenue,CAHD,Statemented Support Academies,Schools Funding,Cabot Learning Federation,836.28, 27-Mar-2018
629,Revenue,CAHD,Statemented Support Payments to OLAs,Other L.A.'s - General,Cabot Learning Federation,595.03, 01-Mar-2018
630,Revenue,CAHD,Statemented Support Payments to OLAs,Other L.A.'s - General,Cabot Learning Federation,595.03, 27-Mar-2018
631,Revenue,CAHD,Statemented Support Academies,Schools Funding,Cabot Learning Federation,771.94, 01-Mar-2018
632,Revenue,CAHD,Statemented Support Academies,Schools Funding,Cabot Learning Federation,771.94, 27-Mar-2018
633,Revenue,CAHD,Statemented Support Academies,Schools Funding,Cabot Learning Federation,900.61, 01-Mar-2018
634,Revenue,CAHD,Statemented Support Academies,Schools Funding,Cabot Learning Federation,900.61, 27-Mar-2018
635,Revenue,CAHD,Statemented Support Academies,Schools Funding,Cabot Learning Federation,530.69, 01-Mar-2018
636,Revenue,CAHD,Statemented Support Academies,Schools Funding,Cabot Learning Federation,530.69, 27-Mar-2018
637,Revenue,CAHD,Statemented Support Academies,Schools Funding,Cabot Learning Federation,900.61, 01-Mar-2018
638,Revenue,CAHD,Statemented Support Academies,Schools Funding,Cabot Learning Federation,900.61, 27-Mar-2018
639,Revenue,CAHD,Statemented Support Payments to OLAs,Other L.A.'s - General,Cabot Learning Federation,603.07, 01-Mar-2018
640,Revenue,CAHD,Statemented Support Payments to OLAs,Other L.A.'s - General,Cabot Learning Federation,603.07, 27-Mar-2018
641,Revenue,CAHD,Statemented Support Payments to OLAs,Other L.A.'s - General,Cabot Learning Federation,1077.53, 01-Mar-2018
642,Revenue,CAHD,Statemented Support Payments to OLAs,Other L.A.'s - General,Cabot Learning Federation,1077.53, 27-Mar-2018
643,Revenue,CAHD,Statemented Support Payments to OLAs,Other L.A.'s - General,Cabot Learning Federation,586.98, 01-Mar-2018
644,Revenue,CAHD,Statemented Support Payments to OLAs,Other L.A.'s - General,Cabot Learning Federation,586.98, 27-Mar-2018
645,Revenue,CAHD,Statemented Support Academies,Schools Funding,Cabot Learning Federation,812.15, 01-Mar-2018
646,Revenue,CAHD,Statemented Support Academies,Schools Funding,Cabot Learning Federation,812.15, 27-Mar-2018
647,Revenue,CAHD,Tobacco Control,Other Small Contracts,Cadbury Heath Healthcare,3979.00, 02-Mar-2018
648,Revenue,CAHD,Sexual Health,Other Small Contracts,Cadbury Heath Healthcare,1127.00, 09-Mar-2018
649,Revenue,CAHD,Sexual Health,Other Small Contracts,Cadbury Heath Healthcare,1455.62, 09-Mar-2018
650,Revenue,CAHD,Schools Specific Grant Income,Other Public Bodies,Caerphilly County Borough Council,500.00, 29-Mar-2018
651,Revenue,CAHD,Cambrian Green Day Service,Catering - Client Meals/Pupil Sch. Meals,Cambrian Court Dining,533.50, 13-Mar-2018
652,Revenue,CAHD,Cambrian Green Day Service,Catering - Client Meals/Pupil Sch. Meals,Cambrian Court Dining,506.00, 16-Mar-2018
653,Revenue,CAHD,Cambrian Green Day Service,Catering - Client Meals/Pupil Sch. Meals,Cambrian Court Dining,500.50, 13-Mar-2018
654,Revenue,CAHD,Cambrian Green Day Service,Catering - Client Meals/Pupil Sch. Meals,Cambrian Court Dining,511.50, 13-Mar-2018
655,Revenue,CAHD,Home Care - Elderly - North,Day Care / Social Activities,Camphill Communities Thornbury Limited,938.95, 02-Mar-2018
656,Revenue,CAHD,Home Care - Elderly - North,Other Small Contracts,Camphill Communities Thornbury Limited,160.20, 02-Mar-2018
657,Revenue,CAHD,Home Care - Elderly - North,Supported Living,Camphill Communities Thornbury Limited,979.00, 02-Mar-2018
658,Revenue,CAHD,Home Care - Elderly - North,Day Care / Social Activities,Camphill Communities Thornbury Limited,614.10, 09-Mar-2018
659,Revenue,CAHD,Home Care - Elderly - North,Other Small Contracts,Camphill Communities Thornbury Limited,169.10, 09-Mar-2018
660,Revenue,CAHD,Home Care - Elderly - North,Supported Living,Camphill Communities Thornbury Limited,1005.70, 09-Mar-2018
661,Revenue,CAHD,Home Care - Elderly - North,Day Care / Social Activities,Camphill Communities Thornbury Limited,952.30, 16-Mar-2018
662,Revenue,CAHD,Home Care - Elderly - North,Other Small Contracts,Camphill Communities Thornbury Limited,160.20, 16-Mar-2018
663,Revenue,CAHD,Home Care - Elderly - North,Supported Living,Camphill Communities Thornbury Limited,934.50, 16-Mar-2018
664,Revenue,CAHD,Home Care - Elderly - North,Day Care / Social Activities,Camphill Communities Thornbury Limited,983.45, 23-Mar-2018
665,Revenue,CAHD,Home Care - Elderly - North,Other Small Contracts,Camphill Communities Thornbury Limited,160.20, 23-Mar-2018
666,Revenue,CAHD,Home Care - Elderly - North,Supported Living,Camphill Communities Thornbury Limited,551.80, 23-Mar-2018
667,Revenue,CAHD,Home Care - Elderly - North,Day Care / Social Activities,Camphill Communities Thornbury Limited,1072.45, 29-Mar-2018
668,Revenue,CAHD,Home Care - Elderly - North,Other Small Contracts,Camphill Communities Thornbury Limited,106.80, 29-Mar-2018
669,Revenue,CAHD,Home Care - Elderly - North,Supported Living,Camphill Communities Thornbury Limited,992.35, 29-Mar-2018
670,Revenue,CAHD,Bed Purchasing - Elderly S117- North,Permanent Residential,Canjayor,2422.40, 13-Mar-2018
671,Revenue,CAHD,Alexandra Way,Refuse Collection Charges,Cannon Hygiene Limited,514.41, 08-Mar-2018
672,Revenue,CAHD,CSC - Agency Fostering,Foster Parent Allowances,Capstone Foster Care (South West) Limited,3282.88, 02-Mar-2018
673,Revenue,CAHD,CSC - Agency Fostering,Foster Parent Allowances,Capstone Foster Care (South West) Limited,3160.08, 02-Mar-2018
674,Revenue,CAHD,CSC - Agency Fostering,Foster Parent Allowances,Capstone Foster Care (South West) Limited,3160.08, 02-Mar-2018
675,Revenue,CAHD,CSC - Agency Fostering,Foster Parent Allowances,Capstone Foster Care (South West) Limited,3282.88, 02-Mar-2018
676,Revenue,CAHD,Home Care - Elderly - South,Other Small Contracts,Care 1st Homecare,2809.84, 08-Mar-2018
677,Revenue,CAHD,Home Care - Elderly - North,Other Small Contracts,Care 1st Homecare,3098.72, 08-Mar-2018
678,Revenue,CAHD,Younger MH non-res purchasing,Other Small Contracts,Care 1st Homecare,129.92, 08-Mar-2018
679,Revenue,CAHD,Home Care - Elderly - South,Other Small Contracts,Care 1st Homecare,3044.70, 26-Mar-2018
680,Revenue,CAHD,Home Care - Elderly - North,Other Small Contracts,Care 1st Homecare,3300.72, 26-Mar-2018
681,Revenue,CAHD,Younger MH non-res purchasing,Other Small Contracts,Care 1st Homecare,112.00, 26-Mar-2018
682,Revenue,CAHD,Home Care - Elderly - South,Other Small Contracts,Care 1st Homecare,2498.24, 26-Mar-2018
683,Revenue,CAHD,Home Care - Elderly - North,Other Small Contracts,Care 1st Homecare,3259.60, 26-Mar-2018
684,Revenue,CAHD,Younger MH non-res purchasing,Other Small Contracts,Care 1st Homecare,120.96, 26-Mar-2018
685,Revenue,CAHD,Home Care - Elderly - South,Other Small Contracts,Care 1st Homecare,2407.44, 26-Mar-2018
686,Revenue,CAHD,Home Care - Elderly - North,Other Small Contracts,Care 1st Homecare,3273.04, 26-Mar-2018
687,Revenue,CAHD,Younger MH non-res purchasing,Other Small Contracts,Care 1st Homecare,125.44, 26-Mar-2018
688,Revenue,CAHD,Home Care - Elderly - South,Other Small Contracts,Care 1st Homecare,2333.92, 26-Mar-2018
689,Revenue,CAHD,Home Care - Elderly - North,Other Small Contracts,Care 1st Homecare,2852.00, 26-Mar-2018
690,Revenue,CAHD,Younger MH non-res purchasing,Other Small Contracts,Care 1st Homecare,85.12, 26-Mar-2018
691,Revenue,CAHD,Home Care - Elderly - South,Other Small Contracts,Care Horizons Limited,887.04, 08-Mar-2018
692,Revenue,CAHD,Home Care - Elderly - North,Day Care / Social Activities,Care Horizons Limited,388.08, 08-Mar-2018
693,Revenue,CAHD,Home Care - Elderly - North,Other Small Contracts,Care Horizons Limited,328.02, 08-Mar-2018
694,Revenue,CAHD,Home Care - Elderly - South,Other Small Contracts,Care Horizons Limited,873.18, 20-Mar-2018
695,Revenue,CAHD,Home Care - Elderly - North,Day Care / Social Activities,Care Horizons Limited,374.22, 20-Mar-2018
696,Revenue,CAHD,Home Care - Elderly - North,Other Small Contracts,Care Horizons Limited,286.44, 20-Mar-2018
697,Revenue,CAHD,Younger MH non-res purchasing,Other Small Contracts,Care Horizons Limited,60.06, 20-Mar-2018
698,Revenue,CAHD,Home Care - Elderly - South,Other Small Contracts,Care Horizons Limited,891.66, 20-Mar-2018
699,Revenue,CAHD,Home Care - Elderly - North,Day Care / Social Activities,Care Horizons Limited,388.08, 20-Mar-2018
700,Revenue,CAHD,Home Care - Elderly - North,Other Small Contracts,Care Horizons Limited,332.64, 20-Mar-2018
701,Revenue,CAHD,Younger MH non-res purchasing,Other Small Contracts,Care Horizons Limited,184.80, 20-Mar-2018
702,Revenue,CAHD,Home Care - Elderly - South,Other Small Contracts,Care Horizons Limited,916.06, 29-Mar-2018
703,Revenue,CAHD,Home Care - Elderly - North,Day Care / Social Activities,Care Horizons Limited,369.60, 29-Mar-2018
704,Revenue,CAHD,Home Care - Elderly - North,Other Small Contracts,Care Horizons Limited,337.26, 29-Mar-2018
705,Revenue,CAHD,Younger MH non-res purchasing,Other Small Contracts,Care Horizons Limited,189.42, 29-Mar-2018
706,Revenue,CAHD,Home Care - Elderly - South,Other Small Contracts,Caring Comes 1st Ltd,710.40, 13-Mar-2018
707,Revenue,CAHD,Home Care - Elderly - South,Other Small Contracts,Caring Comes 1st Ltd,843.60, 05-Mar-2018
708,Revenue,CAHD,Home Care - Elderly - South,Other Small Contracts,Caring Comes 1st Ltd,1159.95, 13-Mar-2018
709,Revenue,CAHD,Home Care - Elderly - South,Other Small Contracts,Caring Comes 1st Ltd,621.60, 13-Mar-2018
710,Revenue,CAHD,Home Care - Elderly - South,Other Small Contracts,Caring Comes 1st Ltd,888.00, 02-Mar-2018
711,Revenue,CAHD,Home Care - Elderly - South,Other Small Contracts,Caring Comes 1st Ltd,2175.60, 15-Mar-2018
712,Revenue,CAHD,Statemented Support Academies,Schools Funding,Castle School Education Trust,619.15, 01-Mar-2018
713,Revenue,CAHD,Statemented Support Academies,Schools Funding,Castle School Education Trust,619.15, 27-Mar-2018
714,Revenue,CAHD,Statemented Support Academies,Schools Funding,Castle School Education Trust,812.15, 01-Mar-2018
715,Revenue,CAHD,Statemented Support Academies,Schools Funding,Castle School Education Trust,812.15, 27-Mar-2018
716,Revenue,CAHD,Statemented Support Academies,Schools Funding,Castle School Education Trust,916.69, 01-Mar-2018
717,Revenue,CAHD,Statemented Support Academies,Schools Funding,Castle School Education Trust,916.69, 27-Mar-2018
718,Revenue,CAHD,Statemented Support Academies,Schools Funding,Castle School Education Trust,651.32, 01-Mar-2018
719,Revenue,CAHD,Statemented Support Academies,Schools Funding,Castle School Education Trust,651.32, 27-Mar-2018
720,Revenue,CAHD,Statemented Support Academies,Schools Funding,Castle School Education Trust,506.57, 01-Mar-2018
721,Revenue,CAHD,Statemented Support Academies,Schools Funding,Castle School Education Trust,506.57, 27-Mar-2018
722,Revenue,CAHD,Statemented Support Academies,Schools Funding,Castle School Education Trust,1278.57, 01-Mar-2018
723,Revenue,CAHD,Statemented Support Academies,Schools Funding,Castle School Education Trust,1278.57, 27-Mar-2018
724,Revenue,CAHD,Statemented Support Academies,Schools Funding,Castle School Education Trust,964.94, 01-Mar-2018
725,Revenue,CAHD,Statemented Support Academies,Schools Funding,Castle School Education Trust,964.94, 27-Mar-2018
726,Revenue,CAHD,Statemented Support Academies,Schools Funding,Castle School Education Trust,1045.36, 01-Mar-2018
727,Revenue,CAHD,Statemented Support Academies,Schools Funding,Castle School Education Trust,1045.36, 27-Mar-2018
728,Revenue,CAHD,Statemented Support Academies,Schools Funding,Castle School Education Trust,627.19, 01-Mar-2018
729,Revenue,CAHD,Statemented Support Academies,Schools Funding,Castle School Education Trust,627.19, 27-Mar-2018
730,Revenue,CAHD,Statemented Support Academies,Schools Funding,Castle School Education Trust,683.48, 01-Mar-2018
731,Revenue,CAHD,Statemented Support Academies,Schools Funding,Castle School Education Trust,683.48, 27-Mar-2018
732,Revenue,CAHD,Statemented Support Academies,Schools Funding,Castle School Education Trust,932.78, 01-Mar-2018
733,Revenue,CAHD,Statemented Support Academies,Schools Funding,Castle School Education Trust,932.78, 27-Mar-2018
734,Revenue,CAHD,Statemented Support Academies,Schools Funding,Castle School Education Trust,675.44, 01-Mar-2018
735,Revenue,CAHD,Statemented Support Academies,Schools Funding,Castle School Education Trust,675.44, 27-Mar-2018
736,Revenue,CAHD,Statemented Support Academies,Schools Funding,Castle School Education Trust,739.78, 01-Mar-2018
737,Revenue,CAHD,Statemented Support Academies,Schools Funding,Castle School Education Trust,739.78, 27-Mar-2018
738,Revenue,CAHD,Statemented Support Academies,Schools Funding,Castle School Education Trust,562.86, 01-Mar-2018
739,Revenue,CAHD,Statemented Support Academies,Schools Funding,Castle School Education Trust,562.86, 27-Mar-2018
740,Revenue,CAHD,Statemented Support Academies,Schools Funding,Castle School Education Trust,707.61, 01-Mar-2018
741,Revenue,CAHD,Statemented Support Academies,Schools Funding,Castle School Education Trust,707.61, 27-Mar-2018
742,Revenue,CAHD,Statemented Support Academies,Schools Funding,Castle School Education Trust,844.32, 01-Mar-2018
743,Revenue,CAHD,Statemented Support Academies,Schools Funding,Castle School Education Trust,844.32, 27-Mar-2018
744,Revenue,CAHD,Statemented Support Academies,Schools Funding,Castle School Education Trust,860.40, 01-Mar-2018
745,Revenue,CAHD,Statemented Support Academies,Schools Funding,Castle School Education Trust,860.40, 27-Mar-2018
746,Revenue,CAHD,Statemented Support Academies,Schools Funding,Castle School Education Trust,578.94, 01-Mar-2018
747,Revenue,CAHD,Statemented Support Academies,Schools Funding,Castle School Education Trust,578.94, 27-Mar-2018
748,Revenue,CAHD,Statemented Support Academies,Schools Funding,Castle School Education Trust,1125.78, 01-Mar-2018
749,Revenue,CAHD,Statemented Support Academies,Schools Funding,Castle School Education Trust,1125.78, 27-Mar-2018
750,Revenue,CAHD,Statemented Support Academies,Schools Funding,Castle School Education Trust,1005.15, 01-Mar-2018
751,Revenue,CAHD,Statemented Support Academies,Schools Funding,Castle School Education Trust,1005.15, 27-Mar-2018
752,Revenue,CAHD,Statemented Support Academies,Schools Funding,Castle School Education Trust,635.23, 01-Mar-2018
753,Revenue,CAHD,Statemented Support Academies,Schools Funding,Castle School Education Trust,635.23, 27-Mar-2018
754,Revenue,CAHD,Statemented Support Academies,Schools Funding,Castle School Education Trust,675.44, 01-Mar-2018
755,Revenue,CAHD,Statemented Support Academies,Schools Funding,Castle School Education Trust,675.44, 27-Mar-2018
756,Revenue,CAHD,Schools Specific Grant Income,Other Public Bodies,Castle School Education Trust,500.00, 02-Mar-2018
757,Revenue,CAHD,Academy Resource Base Funding,Other Public Bodies,Castle School Education Trust,1741.27, 26-Mar-2018
758,Revenue,CAHD,Academy Resource Base Funding,Other Public Bodies,Castle School Education Trust,1741.27, 26-Mar-2018
759,Revenue,CAHD,Academy Resource Base Funding,Other Public Bodies,Castle School Education Trust,1741.27, 26-Mar-2018
760,Revenue,CAHD,Academy Resource Base Funding,Other Public Bodies,Castle School Education Trust,1741.27, 26-Mar-2018
761,Revenue,CAHD,Schools Specific Grant Income,Other Public Bodies,Castle School Education Trust,500.00, 02-Mar-2018
762,Revenue,CAHD,Schools Specific Grant Income,Other Public Bodies,Castle School Education Trust,500.00, 02-Mar-2018
763,Revenue,CAHD,Schools Specific Grant Income,Other Public Bodies,Castle School Education Trust,500.00, 02-Mar-2018
764,Revenue,CAHD,Schools Specific Grant Income,Other Public Bodies,Castle School Education Trust,500.00, 02-Mar-2018
765,Revenue,CAHD,Schools Specific Grant Income,Other Public Bodies,Castle School Education Trust,1731.28, 27-Mar-2018
766,Revenue,CAHD,Schools Specific Grant Income,Other Public Bodies,Castle School Education Trust,1731.28, 27-Mar-2018
767,Revenue,CAHD,Schools Specific Grant Income,Other Public Bodies,Castle School Education Trust,1731.28, 27-Mar-2018
768,Revenue,CAHD,Schools Specific Grant Income - from OLA,Other Public Bodies,Castle School Education Trust,633.33, 26-Mar-2018
769,Revenue,CAHD,Statemented Support Academies,Schools Funding,Castle School Education Trust,603.07, 01-Mar-2018
770,Revenue,CAHD,Statemented Support Academies,Schools Funding,Castle School Education Trust,603.07, 27-Mar-2018
771,Revenue,CAHD,Statemented Support Academies,Schools Funding,Castle School Education Trust,1294.65, 01-Mar-2018
772,Revenue,CAHD,Statemented Support Academies,Schools Funding,Castle School Education Trust,1294.65, 27-Mar-2018
773,Revenue,CAHD,Statemented Support Academies,Schools Funding,Castle School Education Trust,739.78, 01-Mar-2018
774,Revenue,CAHD,Statemented Support Academies,Schools Funding,Castle School Education Trust,739.78, 27-Mar-2018
775,Revenue,CAHD,Statemented Support Academies,Schools Funding,Castle School Education Trust,667.40, 01-Mar-2018
776,Revenue,CAHD,Statemented Support Academies,Schools Funding,Castle School Education Trust,667.40, 27-Mar-2018
777,Revenue,CAHD,Statemented Support Academies,Schools Funding,Castle School Education Trust,562.86, 01-Mar-2018
778,Revenue,CAHD,Statemented Support Academies,Schools Funding,Castle School Education Trust,562.86, 27-Mar-2018
779,Revenue,CAHD,Statemented Support Academies,Schools Funding,Castle School Education Trust,860.40, 01-Mar-2018
780,Revenue,CAHD,Statemented Support Academies,Schools Funding,Castle School Education Trust,860.40, 27-Mar-2018
781,Revenue,CAHD,Statemented Support Academies,Schools Funding,Castle School Education Trust,1093.61, 01-Mar-2018
782,Revenue,CAHD,Statemented Support Academies,Schools Funding,Castle School Education Trust,1093.61, 27-Mar-2018
783,Revenue,CAHD,Statemented Support Academies,Schools Funding,Castle School Education Trust,1342.90, 01-Mar-2018
784,Revenue,CAHD,Statemented Support Academies,Schools Funding,Castle School Education Trust,1342.90, 27-Mar-2018
785,Revenue,CAHD,Statemented Support Academies,Schools Funding,Castle School Education Trust,981.03, 01-Mar-2018
786,Revenue,CAHD,Statemented Support Academies,Schools Funding,Castle School Education Trust,981.03, 27-Mar-2018
787,Revenue,CAHD,Statemented Support Academies,Schools Funding,Castle School Education Trust,1262.48, 27-Mar-2018
788,Revenue,CAHD,Statemented Support Academies,Schools Funding,Castle School Education Trust,1061.44, 27-Mar-2018
789,Revenue,CAHD,Statemented Support Academies,Schools Funding,Castle School Education Trust,763.90, 27-Mar-2018
790,Revenue,CAHD,Statemented Support Academies,Schools Funding,Castle School Education Trust,804.11, 27-Mar-2018
791,Revenue,CAHD,Statemented Support Academies,Schools Funding,Castle School Education Trust,812.15, 27-Mar-2018
792,Revenue,CAHD,Statemented Support Academies,Schools Funding,Castle School Education Trust,514.61, 01-Mar-2018
793,Revenue,CAHD,Statemented Support Academies,Schools Funding,Castle School Education Trust,514.61, 27-Mar-2018
794,Revenue,CAHD,Post 16 High Needs Placements,Other Private Contractors,Catch 22 Charity Ltd,13779.26, 14-Mar-2018
795,Revenue,CAHD,CSC - Care Leavers Support Costs,Membership Fees,Catch 22 Charity Ltd,525.00, 02-Mar-2018
796,Revenue,CAHD,Social Lettings Agency,Fees - General,Individual,10.53, 01-Mar-2018
797,Revenue,CAHD,Social Lettings Agency,Fees & Charges Income - General,Individual,595.11, 01-Mar-2018
798,Revenue,CAHD,Social Lettings Agency,Fees - General,Individual,10.53, 29-Mar-2018
799,Revenue,CAHD,Social Lettings Agency,Fees & Charges Income - General,Individual,595.11, 29-Mar-2018
800,Revenue,CAHD,Home Care - Elderly - North,Day Care / Social Activities,Causeway House,1180.40, 13-Mar-2018
801,Revenue,CAHD,Home Care - Elderly - South,Day Care / Social Activities,Causeway House,5034.88, 13-Mar-2018
802,Revenue,CAHD,Home Care - Elderly - North,Day Care / Social Activities,Causeway House,4311.60, 13-Mar-2018
803,Revenue,CAHD,Home Care - Elderly - North,Day Care / Social Activities,Causeway House,3729.92, 13-Mar-2018
804,Revenue,CAHD,Home Care - Elderly - North,Day Care / Social Activities,Causeway House,1991.36, 13-Mar-2018
805,Revenue,CAHD,Home Care - Elderly - North,Day Care / Social Activities,Causeway House,3092.16, 13-Mar-2018
806,Revenue,CAHD,Home Care - Elderly - North,Day Care / Social Activities,Causeway House,4606.72, 13-Mar-2018
807,Revenue,CAHD,Home Care - Elderly - North,Day Care / Social Activities,Causeway House,3500.40, 13-Mar-2018
808,Revenue,CAHD,Home Care - Elderly - North,Day Care / Social Activities,Causeway House,3018.24, 13-Mar-2018
809,Revenue,CAHD,Home Care - Elderly - North,Day Care / Social Activities,Causeway House,544.80, 13-Mar-2018
810,Revenue,CAHD,Bed Purchasing - Elderly S117- North,Permanent Nursing,Cedar Care Homes Limited,4352.00, 13-Mar-2018
811,Revenue,CAHD,Bed Purchasing - North,Permanent Residential,Charlton House,1886.24, 13-Mar-2018
812,Revenue,CAHD,Home Care - Elderly - South,Other Small Contracts,Cherish Able Care Limited,8015.41, 02-Mar-2018
813,Revenue,CAHD,Home Care - Elderly - North,Other Small Contracts,Cherish Able Care Limited,3560.90, 02-Mar-2018
814,Revenue,CAHD,Home Care - Elderly - South,Other Small Contracts,Cherish Able Care Limited,7531.57, 08-Mar-2018
815,Revenue,CAHD,Home Care - Elderly - North,Other Small Contracts,Cherish Able Care Limited,3552.96, 08-Mar-2018
816,Revenue,CAHD,Home Care - Elderly - South,Other Small Contracts,Cherish Able Care Limited,7504.69, 15-Mar-2018
817,Revenue,CAHD,Home Care - Elderly - North,Other Small Contracts,Cherish Able Care Limited,3569.86, 15-Mar-2018
818,Revenue,CAHD,Home Care - Elderly - South,Other Small Contracts,Cherish Able Care Limited,7921.33, 21-Mar-2018
819,Revenue,CAHD,Home Care - Elderly - North,Other Small Contracts,Cherish Able Care Limited,3523.42, 21-Mar-2018
820,Revenue,CAHD,Home Care - Elderly - South,Other Small Contracts,Cherish Able Care Limited,8042.29, 29-Mar-2018
821,Revenue,CAHD,Home Care - Elderly - North,Other Small Contracts,Cherish Able Care Limited,3545.42, 29-Mar-2018
822,Revenue,CAHD,Home Care - Elderly - South,Supported Living,Cherry Orchards,5115.84, 02-Mar-2018
823,Revenue,CAHD,Early Years High Needs Support,Other Private Contractors,Cherry Tree Day Nursery,822.05, 01-Mar-2018
824,Revenue,CAHD,Early Years High Needs Support,Other Private Contractors,Cherry Tree Day Nursery,910.13, 27-Mar-2018
825,Revenue,CAHD,Bed purchasing -S28A  Under 65 - North,Permanent Residential,Chescombe Lodge,9357.80, 13-Mar-2018
826,Revenue,CAHD,CSC - LAC Placements,"Holidays, Outings & Visits",Childrens Contact Services Ltd,124.01, 22-Mar-2018
827,Revenue,CAHD,CSC - LAC Placements,"Holidays, Outings & Visits",Childrens Contact Services Ltd,124.01, 22-Mar-2018
828,Revenue,CAHD,CSC - LAC Placements,"Holidays, Outings & Visits",Childrens Contact Services Ltd,124.01, 22-Mar-2018
829,Revenue,CAHD,CSC - LAC Placements,"Holidays, Outings & Visits",Childrens Contact Services Ltd,124.01, 22-Mar-2018
830,Revenue,CAHD,CSC - LAC Placements,"Holidays, Outings & Visits",Childrens Contact Services Ltd,124.02, 22-Mar-2018
831,Revenue,CAHD,CSC - LAC Placements,"Holidays, Outings & Visits",Childrens Contact Services Ltd,243.21, 22-Mar-2018
832,Revenue,CAHD,CSC - LAC Placements,"Holidays, Outings & Visits",Childrens Contact Services Ltd,243.22, 22-Mar-2018
833,Revenue,CAHD,CSC - LAC Placements,"Holidays, Outings & Visits",Childrens Contact Services Ltd,243.21, 22-Mar-2018
834,Revenue,CAHD,CSC - LAC Placements,"Holidays, Outings & Visits",Childrens Contact Services Ltd,243.22, 22-Mar-2018
835,Revenue,CAHD,CSC - LAC Placements,"Holidays, Outings & Visits",Childrens Contact Services Ltd,243.22, 22-Mar-2018
836,Revenue,CAHD,EY Business & Financial Management,Publicity & Promotions,Chipping Sodbury Town FC,550.00, 28-Mar-2018
837,Revenue,CAHD,18-25 Year Olds,Permanent Residential,Chosen Care Ltd  Citibase Watford,7689.72, 13-Mar-2018
838,Revenue,CAHD,Bed Purchasing - Elderly S117- North,Permanent Residential,Chosen Care Ltd  Citibase Watford,5060.64, 13-Mar-2018
839,Revenue,CAHD,Jointly Funded H&SC Packages,Permanent Residential,Chosen Care Ltd  Citibase Watford,5060.64, 13-Mar-2018
840,Revenue,CAHD,18-25 Year Olds,Permanent Residential,Chosen Care Ltd  Citibase Watford,6073.44, 13-Mar-2018
841,Revenue,CAHD,Early Years Inclusion Fund,Other Public Bodies,Christchurch Pre School,1400.00, 09-Mar-2018
842,Revenue,CAHD,Home Care - Elderly - South,Other Small Contracts,Cintre,205.48, 15-Mar-2018
843,Revenue,CAHD,Home Care - Elderly - North,Day Care / Social Activities,Cintre,74.72, 15-Mar-2018
844,Revenue,CAHD,Home Care - Elderly - North,Other Small Contracts,Cintre,742.53, 15-Mar-2018
845,Revenue,CAHD,Home Care - Elderly - South,Other Small Contracts,Cintre,219.49, 15-Mar-2018
846,Revenue,CAHD,Home Care - Elderly - North,Day Care / Social Activities,Cintre,65.38, 15-Mar-2018
847,Revenue,CAHD,Home Care - Elderly - North,Other Small Contracts,Cintre,438.98, 15-Mar-2018
848,Revenue,CAHD,Home Care - Elderly - South,Other Small Contracts,Cintre,256.85, 23-Mar-2018
849,Revenue,CAHD,Home Care - Elderly - North,Day Care / Social Activities,Cintre,46.70, 23-Mar-2018
850,Revenue,CAHD,Home Care - Elderly - North,Other Small Contracts,Cintre,728.52, 23-Mar-2018
851,Revenue,CAHD,Home Care - Elderly - South,Other Small Contracts,Cintre,154.11, 29-Mar-2018
852,Revenue,CAHD,Home Care - Elderly - North,Day Care / Social Activities,Cintre,88.73, 29-Mar-2018
853,Revenue,CAHD,Home Care - Elderly - North,Other Small Contracts,Cintre,579.08, 29-Mar-2018
854,Revenue,CAHD,Learning Difficulties,Premises Hire,Circadian Trust,832.00, 27-Mar-2018
855,Revenue,CAHD,Learning Difficulties,Premises Hire,Circadian Trust,768.00, 27-Mar-2018
856,Revenue,CAHD,Learning Difficulties,Premises Hire,Circadian Trust,518.40, 01-Mar-2018
857,Revenue,CAHD,Learning Difficulties,Premises Hire,Circadian Trust,583.20, 29-Mar-2018
858,Revenue,CAHD,Post 16 High Needs Placements,Other Private Contractors,City of Bristol College,257669.25, 09-Mar-2018
859,Revenue,CAHD,Information Systems - Software,Software Support & Maintenance,Civica UK Limited,3500.00, 08-Mar-2018
860,Revenue,CAHD,CSC - Adoption Support Fund,Post Adoption,Individual,292.50, 13-Mar-2018
861,Revenue,CAHD,CSC - Adoption Support Fund,Post Adoption,Individual,292.50, 13-Mar-2018
862,Revenue,CAHD,CSC - Vinney Green Secure Unit,R & M by Departments,Clarke Instruments Limited,565.76, 28-Mar-2018
863,Revenue,CAHD,MH Purchasing - Younger,Permanent Residential,Claro Homes,2207.44, 13-Mar-2018
864,Revenue,CAHD,Section 117 Placements MH Younger,Permanent Residential,Claro Homes,3406.56, 13-Mar-2018
865,Revenue,CAHD,Bed Purchasing - Southmead Hospital,Respite Planned - Nursing,Claro Homes,3180.00, 13-Mar-2018
866,Revenue,CAHD,Bed Purchasing - South,Permanent Residential,Cleeve Lodge,1232.16, 13-Mar-2018
867,Revenue,CAHD,Bed Purchasing - Southmead Hospital,Permanent Residential,Cleeve Lodge,2800.00, 13-Mar-2018
868,Revenue,CAHD,Bed Purchasing - South,Permanent Residential,Cleeve Lodge,2957.96, 13-Mar-2018
869,Revenue,CAHD,Bed Purchasing - South,Permanent Residential,Cleeve Lodge,2735.12, 13-Mar-2018
870,Revenue,CAHD,Bed Purchasing - South,Permanent Residential,Cleeve Lodge,2525.84, 13-Mar-2018
871,Revenue,CAHD,Bed Purchasing - South,Permanent Residential,Cleeve Lodge,2486.76, 13-Mar-2018
872,Revenue,CAHD,Bed Purchasing - South,Permanent Residential,Clerkenleap Barn,6079.80, 13-Mar-2018
873,Revenue,CAHD,Home Care - Elderly - North,Other Small Contracts,Clover Health and Home Care Ltd,2752.40, 15-Mar-2018
874,Revenue,CAHD,Home Care - Elderly - North,Other Small Contracts,Clover Health and Home Care Ltd,669.90, 13-Mar-2018
875,Revenue,CAHD,Bed Purchasing - South,Permanent Residential,Collingwood Residential Home,2147.96, 13-Mar-2018
876,Revenue,CAHD,Bed Purchasing - Southmead Hospital,Permanent Residential,Collingwood Residential Home,2431.20, 13-Mar-2018
877,Revenue,CAHD,Bed Purchasing - South,Permanent Residential,Collingwood Residential Home,2329.92, 13-Mar-2018
878,Revenue,CAHD,Bed Purchasing - South,Permanent Residential,Collingwood Residential Home,2320.00, 13-Mar-2018
879,Revenue,CAHD,Bed Purchasing - Southmead Hospital,Permanent Residential,Collingwood Residential Home,2350.16, 13-Mar-2018
880,Revenue,CAHD,Bed Purchasing - Southmead Hospital,Respite Planned - Residential,Collingwood Residential Home,2400.00, 13-Mar-2018
881,Revenue,CAHD,Schools Specific Grant Income,Other Public Bodies,Colston`s Girls School Trust,500.00, 02-Mar-2018
882,Revenue,CAHD,Schools Specific Grant Income,Other Public Bodies,Colston`s Girls School Trust,1731.28, 27-Mar-2018
883,Revenue,CAHD,Bed Purchasing - South,Permanent Nursing,Community Integrated Care,501.75, 13-Mar-2018
884,Revenue,CAHD,Bed Purchasing - South,Fees & Charges Income - General,Community Integrated Care,1133.56, 13-Mar-2018
885,Revenue,CAHD,Home Care - Elderly - North,Other Small Contracts,Complimenting Care and Training Services (CCTS) Lt,8696.67, 15-Mar-2018
886,Revenue,CAHD,Home Care - Elderly - North,Other Small Contracts,Complimenting Care and Training Services (CCTS) Lt,7679.26, 09-Mar-2018
887,Revenue,CAHD,Home Care - Elderly - North,Other Small Contracts,Complimenting Care and Training Services (CCTS) Lt,7810.20, 09-Mar-2018
888,Revenue,CAHD,Home Care - Elderly - North,Other Small Contracts,Complimenting Care and Training Services (CCTS) Lt,7765.23, 22-Mar-2018
889,Revenue,CAHD,Home Care - Elderly - North,Other Small Contracts,Complimenting Care and Training Services (CCTS) Lt,7142.34, 23-Mar-2018
890,Revenue,CAHD,Add cost non-residential care contracts,Other Small Contracts,Complimenting Care and Training Services (CCTS) Lt,609.00, 23-Mar-2018
891,Revenue,CAHD,Statemented Support Equipment,Educational Supplies & Equipment,Connevans Limited,1921.95, 12-Mar-2018
892,Revenue,CAHD,Statemented Support Equipment,Educational Supplies & Equipment,Connevans Limited,1508.00, 12-Mar-2018
893,Revenue,CAHD,Bed and Breakfast,Bed & Breakfast,Connolly & Callaghan Limited,539.00, 01-Mar-2018
894,Revenue,CAHD,Bed and Breakfast,Bed & Breakfast,Connolly & Callaghan Limited,420.00, 01-Mar-2018
895,Revenue,CAHD,Bed and Breakfast,Bed & Breakfast,Connolly & Callaghan Limited,448.00, 01-Mar-2018
896,Revenue,CAHD,Bed and Breakfast,Bed & Breakfast,Connolly & Callaghan Limited,490.00, 01-Mar-2018
897,Revenue,CAHD,Bed and Breakfast,Bed & Breakfast,Connolly & Callaghan Limited,539.00, 01-Mar-2018
898,Revenue,CAHD,Bed and Breakfast,Bed & Breakfast,Connolly & Callaghan Limited,616.00, 06-Mar-2018
899,Revenue,CAHD,Bed and Breakfast,Bed & Breakfast,Connolly & Callaghan Limited,679.00, 01-Mar-2018
900,Revenue,CAHD,Bed and Breakfast,Bed & Breakfast,Connolly & Callaghan Limited,490.00, 01-Mar-2018
901,Revenue,CAHD,Bed and Breakfast,Bed & Breakfast,Connolly & Callaghan Limited,581.00, 01-Mar-2018
902,Revenue,CAHD,Bed and Breakfast,Bed & Breakfast,Connolly & Callaghan Limited,539.00, 08-Mar-2018
903,Revenue,CAHD,Bed and Breakfast,Bed & Breakfast,Connolly & Callaghan Limited,420.00, 08-Mar-2018
904,Revenue,CAHD,Bed and Breakfast,Bed & Breakfast,Connolly & Callaghan Limited,448.00, 08-Mar-2018
905,Revenue,CAHD,Bed and Breakfast,Bed & Breakfast,Connolly & Callaghan Limited,490.00, 08-Mar-2018
906,Revenue,CAHD,Bed and Breakfast,Bed & Breakfast,Connolly & Callaghan Limited,539.00, 08-Mar-2018
907,Revenue,CAHD,Bed and Breakfast,Bed & Breakfast,Connolly & Callaghan Limited,616.00, 15-Mar-2018
908,Revenue,CAHD,Bed and Breakfast,Bed & Breakfast,Connolly & Callaghan Limited,679.00, 08-Mar-2018
909,Revenue,CAHD,Bed and Breakfast,Bed & Breakfast,Connolly & Callaghan Limited,581.00, 08-Mar-2018
910,Revenue,CAHD,Bed and Breakfast,Bed & Breakfast,Connolly & Callaghan Limited,539.00, 08-Mar-2018
911,Revenue,CAHD,Bed and Breakfast,Bed & Breakfast,Connolly & Callaghan Limited,420.00, 09-Mar-2018
912,Revenue,CAHD,Bed and Breakfast,Bed & Breakfast,Connolly & Callaghan Limited,448.00, 08-Mar-2018
913,Revenue,CAHD,Bed and Breakfast,Bed & Breakfast,Connolly & Callaghan Limited,581.00, 12-Mar-2018
914,Revenue,CAHD,Bed and Breakfast,Bed & Breakfast,Connolly & Callaghan Limited,539.00, 08-Mar-2018
915,Revenue,CAHD,Bed and Breakfast,Bed & Breakfast,Connolly & Callaghan Limited,679.00, 08-Mar-2018
916,Revenue,CAHD,Bed and Breakfast,Bed & Breakfast,Connolly & Callaghan Limited,539.00, 14-Mar-2018
917,Revenue,CAHD,Bed and Breakfast,Bed & Breakfast,Connolly & Callaghan Limited,420.00, 16-Mar-2018
918,Revenue,CAHD,Bed and Breakfast,Bed & Breakfast,Connolly & Callaghan Limited,448.00, 14-Mar-2018
919,Revenue,CAHD,Bed and Breakfast,Bed & Breakfast,Connolly & Callaghan Limited,581.00, 14-Mar-2018
920,Revenue,CAHD,Bed and Breakfast,Bed & Breakfast,Connolly & Callaghan Limited,490.00, 16-Mar-2018
921,Revenue,CAHD,Bed and Breakfast,Bed & Breakfast,Connolly & Callaghan Limited,539.00, 14-Mar-2018
922,Revenue,CAHD,Bed and Breakfast,Bed & Breakfast,Connolly & Callaghan Limited,623.00, 15-Mar-2018
923,Revenue,CAHD,Bed and Breakfast,Bed & Breakfast,Connolly & Callaghan Limited,679.00, 14-Mar-2018
924,Revenue,CAHD,Bed and Breakfast,Bed & Breakfast,Connolly & Callaghan Limited,448.00, 26-Mar-2018
925,Revenue,CAHD,Bed and Breakfast,Bed & Breakfast,Connolly & Callaghan Limited,490.00, 21-Mar-2018
926,Revenue,CAHD,Bed and Breakfast,Bed & Breakfast,Connolly & Callaghan Limited,539.00, 22-Mar-2018
927,Revenue,CAHD,Bed and Breakfast,Bed & Breakfast,Connolly & Callaghan Limited,679.00, 22-Mar-2018
928,Revenue,CAHD,Bed and Breakfast,Bed & Breakfast,Connolly & Callaghan Limited,539.00, 21-Mar-2018
929,Revenue,CAHD,Bed and Breakfast,Bed & Breakfast,Connolly & Callaghan Limited,432.00, 21-Mar-2018
930,Revenue,CAHD,Bed and Breakfast,Bed & Breakfast,Connolly & Callaghan Limited,420.00, 21-Mar-2018
931,Revenue,CAHD,Bed and Breakfast,Bed & Breakfast,Connolly & Callaghan Limited,623.00, 21-Mar-2018
932,Revenue,CAHD,Bed and Breakfast,Bed & Breakfast,Connolly & Callaghan Limited,448.00, 27-Mar-2018
933,Revenue,CAHD,Bed and Breakfast,Bed & Breakfast,Connolly & Callaghan Limited,490.00, 26-Mar-2018
934,Revenue,CAHD,Bed and Breakfast,Bed & Breakfast,Connolly & Callaghan Limited,539.00, 29-Mar-2018
935,Revenue,CAHD,Bed and Breakfast,Bed & Breakfast,Connolly & Callaghan Limited,679.00, 29-Mar-2018
936,Revenue,CAHD,Bed and Breakfast,Bed & Breakfast,Connolly & Callaghan Limited,539.00, 26-Mar-2018
937,Revenue,CAHD,Bed and Breakfast,Bed & Breakfast,Connolly & Callaghan Limited,420.00, 26-Mar-2018
938,Revenue,CAHD,Bed and Breakfast,Bed & Breakfast,Connolly & Callaghan Limited,623.00, 26-Mar-2018
939,Revenue,CAHD,CSC - Adoption Support Fund,Post Adoption,Conscious Living,583.75, 09-Mar-2018
940,Revenue,CAHD,CSC - Vinney Green Secure Unit,Premises Maintenance by Contractor,Cool-Rite Limited,1988.00, 20-Mar-2018
941,Revenue,CAHD,Independent Special Placements - Pre 16,Other Private Contractors,Cotswold Chine School,17111.25, 26-Mar-2018
942,Revenue,CAHD,Independent Special Placements - Pre 16,Other Private Contractors,Cotswold Chine School,13689.00, 09-Mar-2018
943,Revenue,CAHD,CSC - Residential Placements,Permanent Residential,Cotswold Chine School,32359.28, 13-Mar-2018
944,Revenue,CAHD,Independent Special Placements - Pre 16,Other Private Contractors,Cotswold Chine School,14538.22, 13-Mar-2018
945,Revenue,CAHD,Independent Special Placements - Pre 16,Other Private Contractors,Cotswold Chine School,39292.50, 13-Mar-2018
946,Revenue,CAHD,CSC - Residential Placements,Permanent Residential,Cotswold Chine School,65149.50, 13-Mar-2018
947,Revenue,CAHD,Independent Special Placements - Pre 16,Other Private Contractors,Cotswold Chine School,13689.00, 26-Mar-2018
948,Revenue,CAHD,Independent Special Placements - Pre 16,Other Private Contractors,Cotswold Chine School,22815.00, 13-Mar-2018
949,Revenue,CAHD,Independent Special Placements - Pre 16,Other Private Contractors,Cotswold Chine School,23955.75, 21-Mar-2018
950,Revenue,CAHD,Home Care - Elderly - South,Supported Living,Craegmoor SYI Bristol & Wiltshire Priory,930.93, 09-Mar-2018
951,Revenue,CAHD,Home Care - Elderly - South,Supported Living,Craegmoor SYI Bristol & Wiltshire Priory,947.05, 12-Mar-2018
952,Revenue,CAHD,Home Care - Elderly - South,Supported Living,Craegmoor SYI Bristol & Wiltshire Priory,781.82, 12-Mar-2018
953,Revenue,CAHD,Home Care - Elderly - South,Supported Living,Craegmoor SYI Bristol & Wiltshire Priory,918.84, 12-Mar-2018
954,Revenue,CAHD,Home Care - Elderly - South,Supported Living,Craegmoor SYI Bristol & Wiltshire Priory,838.24, 05-Mar-2018
955,Revenue,CAHD,Bed Purchasing - North,Permanent Residential,Cream Iii Ltd,8284.00, 13-Mar-2018
956,Revenue,CAHD,18-25 Year Olds,Respite Planned - Residential,Cream Iii Ltd,9660.00, 13-Mar-2018
957,Revenue,CAHD,Bed purchasing -S28A  Under 65 - North,Permanent Residential,Creedy Court,10156.60, 13-Mar-2018
958,Revenue,CAHD,Bed Purchasing - S28A - Over 65- North,Permanent Residential,Creedy Court,8534.04, 13-Mar-2018
959,Revenue,CAHD,Bed Purchasing - North,Permanent Residential,Creedy Court,13468.68, 13-Mar-2018
960,Revenue,CAHD,Bed Purchasing - South,Permanent Residential,Daneswood,11757.84, 13-Mar-2018
961,Revenue,CAHD,Home Care - Elderly - South,Day Care / Social Activities,Daneswood,1354.56, 13-Mar-2018
962,Revenue,CAHD,Bed Purchasing - North,Permanent Residential,Daneswood,9836.56, 13-Mar-2018
963,Revenue,CAHD,Bed Purchasing - Elderly S117- North,Permanent Nursing,Danshell Healthcare Group,10419.44, 13-Mar-2018
964,Revenue,CAHD,Jointly Funded H&SC Packages,Permanent Nursing,Danshell Healthcare Group,1546.12, 13-Mar-2018
965,Revenue,CAHD,Learning Difficulties PSL,Other Supplies & Services,Individual,2267.91, 22-Mar-2018
966,Revenue,CAHD,LSE - Schools Priority Support,Consultants Fees,Individual,1000.00, 29-Mar-2018
967,Revenue,CAHD,LSE - Schools Priority Support,Consultants Fees,Individual,1000.00, 29-Mar-2018
968,Revenue,CAHD,CAHC - Complaints & Advocacy Service,Complaints External Expenses,Individual,860.00, 26-Mar-2018
969,Revenue,CAHD,Home Care - Elderly - South,Supported Living,Design House,2746.28, 13-Mar-2018
970,Revenue,CAHD,Home Care - Elderly - South,Supported Living,Design House,2935.76, 13-Mar-2018
971,Revenue,CAHD,Home Care - Elderly - South,Supported Living,Design House,3002.60, 13-Mar-2018
972,Revenue,CAHD,Home Care - Elderly - South,Supported Living,Design House,2868.88, 13-Mar-2018
973,Revenue,CAHD,Home Care - Elderly - North,Day Care / Social Activities,Design House,2339.44, 13-Mar-2018
974,Revenue,CAHD,Home Care - Elderly - South,Day Care / Social Activities,Design House,1471.60, 13-Mar-2018
975,Revenue,CAHD,Home Care - Elderly - South,Supported Living,Design House,2528.96, 13-Mar-2018
976,Revenue,CAHD,Home Care - Elderly - South,Supported Living,Design House,2528.96, 13-Mar-2018
977,Revenue,CAHD,Home Care - Elderly - South,Supported Living,Design House,2060.00, 13-Mar-2018
978,Revenue,CAHD,Home Care - Elderly - South,Supported Living,Design House,1817.72, 13-Mar-2018
979,Revenue,CAHD,Home Care - Elderly - South,Supported Living,Design House,2412.00, 13-Mar-2018
980,Revenue,CAHD,Home Care - Elderly - South,Supported Living,Design House,4128.16, 13-Mar-2018
981,Revenue,CAHD,Home Care - Elderly - South,Supported Living,Design House,2927.36, 13-Mar-2018
982,Revenue,CAHD,Home Care - Elderly - South,Day Care / Social Activities,Design House,1431.60, 13-Mar-2018
983,Revenue,CAHD,Home Care - Elderly - South,Supported Living,Design House,2779.72, 13-Mar-2018
984,Revenue,CAHD,Home Care - Elderly - South,Supported Living,Design House,2437.12, 13-Mar-2018
985,Revenue,CAHD,Home Care - Elderly - South,Supported Living,Design House,2163.68, 13-Mar-2018
986,Revenue,CAHD,Home Care - Elderly - South,Supported Living,Design House,1817.72, 13-Mar-2018
987,Revenue,CAHD,Home Care - Elderly - South,Supported Living,Design House,2163.68, 13-Mar-2018
988,Revenue,CAHD,Bed Purchasing - South,Permanent Residential,Devon & Cornwall Autistic Community Trus,9526.04, 13-Mar-2018
989,Revenue,CAHD,Home Care - Elderly - South,Other Small Contracts,Dhek Bhal,599.76, 08-Mar-2018
990,Revenue,CAHD,Home Care - Elderly - North,Other Small Contracts,Dhek Bhal,120.96, 08-Mar-2018
991,Revenue,CAHD,Home Care - Elderly - South,Other Small Contracts,Dhek Bhal,599.76, 08-Mar-2018
992,Revenue,CAHD,Home Care - Elderly - North,Other Small Contracts,Dhek Bhal,120.96, 08-Mar-2018
993,Revenue,CAHD,Home Care - Elderly - South,Other Small Contracts,Dhek Bhal,483.84, 15-Mar-2018
994,Revenue,CAHD,Home Care - Elderly - North,Other Small Contracts,Dhek Bhal,120.96, 15-Mar-2018
995,Revenue,CAHD,Home Care - Elderly - South,Other Small Contracts,Dhek Bhal,599.76, 20-Mar-2018
996,Revenue,CAHD,Home Care - Elderly - North,Other Small Contracts,Dhek Bhal,120.96, 20-Mar-2018
997,Revenue,CAHD,Home Care - Elderly - South,Other Small Contracts,Dhek Bhal,660.24, 29-Mar-2018
998,Revenue,CAHD,Home Care - Elderly - North,Other Small Contracts,Dhek Bhal,120.96, 29-Mar-2018
999,Revenue,CAHD,Home Care - Elderly - North,Supported Living,Dimensions  Suite 2,1823.24, 13-Mar-2018
1000,Revenue,CAHD,Home Care - Elderly - South,Supported Living,Dimensions  Suite 2,1823.24, 13-Mar-2018
1001,Revenue,CAHD,Home Care - Elderly - South,Supported Living,Dimensions  Suite 2,1823.24, 13-Mar-2018
1002,Revenue,CAHD,Home Care - Elderly - South,Supported Living,Dimensions  Suite 2,1823.24, 13-Mar-2018
1003,Revenue,CAHD,Home Care - Elderly - North,Supported Living,Dimensions  Suite 2,1823.24, 13-Mar-2018
1004,Revenue,CAHD,Bed Purchasing - South,Permanent Residential,Dimensions  Suite 2,5396.28, 13-Mar-2018
1005,Revenue,CAHD,Bed Purchasing - South,Permanent Residential,Dimensions  Suite 2,2689.28, 13-Mar-2018
1006,Revenue,CAHD,SACRE,Consultants Fees,Diocesan Board of Finance Limited,2262.25, 23-Mar-2018
1007,Revenue,CAHD,SACRE,Consultants Fees,Diocesan Board of Finance Limited,4362.25, 26-Mar-2018
1008,Revenue,CAHD,Community Support - South,Preventative Assistance,Dobbins Industrial Cleaning Limited,580.00, 19-Mar-2018
1009,Revenue,CAHD,Home Care - Elderly - South,Day Care / Social Activities,DoCare Limited,72.38, 08-Mar-2018
1010,Revenue,CAHD,Home Care - Elderly - South,Other Small Contracts,DoCare Limited,849.85, 08-Mar-2018
1011,Revenue,CAHD,Home Care - Elderly - North,Other Small Contracts,DoCare Limited,6498.50, 08-Mar-2018
1012,Revenue,CAHD,Home Care - Elderly - South,Day Care / Social Activities,DoCare Limited,62.04, 15-Mar-2018
1013,Revenue,CAHD,Home Care - Elderly - South,Other Small Contracts,DoCare Limited,693.73, 15-Mar-2018
1014,Revenue,CAHD,Home Care - Elderly - North,Other Small Contracts,DoCare Limited,5917.56, 15-Mar-2018
1015,Revenue,CAHD,Home Care - Elderly - South,Day Care / Social Activities,DoCare Limited,72.38, 20-Mar-2018
1016,Revenue,CAHD,Home Care - Elderly - South,Other Small Contracts,DoCare Limited,844.68, 20-Mar-2018
1017,Revenue,CAHD,Home Care - Elderly - North,Other Small Contracts,DoCare Limited,6484.52, 20-Mar-2018
1018,Revenue,CAHD,Home Care - Elderly - South,Day Care / Social Activities,DoCare Limited,72.38, 22-Mar-2018
1019,Revenue,CAHD,Home Care - Elderly - South,Other Small Contracts,DoCare Limited,736.11, 22-Mar-2018
1020,Revenue,CAHD,Home Care - Elderly - North,Other Small Contracts,DoCare Limited,6273.71, 22-Mar-2018
1021,Revenue,CAHD,Personnel Costs,Legal Fees,Douglas Leach,650.00, 12-Mar-2018
1022,Revenue,CAHD,CSC - Vinney Green Secure Unit,Complaints External Expenses,Individual,1110.00, 26-Mar-2018
1023,Revenue,CAHD,Schools Specific Grant Income,Other Public Bodies,Downend School,500.00, 02-Mar-2018
1024,Revenue,CAHD,Schools Specific Grant Income,Other Public Bodies,Downend School,1731.28, 27-Mar-2018
1025,Revenue,CAHD,Statemented Support Academies,Schools Funding,Downend School,562.86, 01-Mar-2018
1026,Revenue,CAHD,Statemented Support Academies,Schools Funding,Downend School,562.86, 27-Mar-2018
1027,Revenue,CAHD,Statemented Support Academies,Schools Funding,Downend School,948.86, 01-Mar-2018
1028,Revenue,CAHD,Statemented Support Academies,Schools Funding,Downend School,948.86, 27-Mar-2018
1029,Revenue,CAHD,Statemented Support Academies,Schools Funding,Downend School,554.82, 01-Mar-2018
1030,Revenue,CAHD,Statemented Support Academies,Schools Funding,Downend School,554.82, 27-Mar-2018
1031,Revenue,CAHD,Statemented Support Academies,Schools Funding,Downend School,570.90, 01-Mar-2018
1032,Revenue,CAHD,Statemented Support Academies,Schools Funding,Downend School,570.90, 27-Mar-2018
1033,Revenue,CAHD,Statemented Support Academies,Schools Funding,Downend School,972.98, 01-Mar-2018
1034,Revenue,CAHD,Statemented Support Academies,Schools Funding,Downend School,972.98, 27-Mar-2018
1035,Revenue,CAHD,Statemented Support Academies,Schools Funding,Downend School,643.28, 01-Mar-2018
1036,Revenue,CAHD,Statemented Support Academies,Schools Funding,Downend School,643.28, 27-Mar-2018
1037,Revenue,CAHD,Statemented Support Academies,Schools Funding,Downend School,603.07, 01-Mar-2018
1038,Revenue,CAHD,Statemented Support Academies,Schools Funding,Downend School,603.07, 27-Mar-2018
1039,Revenue,CAHD,Statemented Support Academies,Schools Funding,Downend School,562.86, 01-Mar-2018
1040,Revenue,CAHD,Statemented Support Academies,Schools Funding,Downend School,562.86, 27-Mar-2018
1041,Revenue,CAHD,Statemented Support Academies,Schools Funding,Downend School,562.86, 01-Mar-2018
1042,Revenue,CAHD,Statemented Support Academies,Schools Funding,Downend School,562.86, 27-Mar-2018
1043,Revenue,CAHD,Social Lettings Agency,Other Supplies & Services,Individual,605.64, 23-Mar-2018
1044,Revenue,CAHD,Bed Purchasing - North,Permanent Nursing,Drakes Court,2288.92, 13-Mar-2018
1045,Revenue,CAHD,South Glos Users in South Glos Homes,Permanent Nursing,Drakes Court,620.20, 13-Mar-2018
1046,Revenue,CAHD,Bed Purchasing - Southmead Hospital,Permanent Nursing,Drakes Court,2780.00, 13-Mar-2018
1047,Revenue,CAHD,Bed Purchasing - North,Permanent Nursing,Drakes Court,2700.00, 13-Mar-2018
1048,Revenue,CAHD,Bed Purchasing - Southmead Hospital,Permanent Nursing,Drakes Court,1945.28, 13-Mar-2018
1049,Revenue,CAHD,South Glos Users in South Glos Homes,Permanent Nursing,Drakes Court,620.20, 13-Mar-2018
1050,Revenue,CAHD,South Glos Users in South Glos Homes,Permanent Nursing,Drakes Court,4186.35, 13-Mar-2018
1051,Revenue,CAHD,Bed Purchasing - South,Permanent Nursing,Drakes Court,2780.00, 13-Mar-2018
1052,Revenue,CAHD,South Glos Users in South Glos Homes,Permanent Nursing,Drakes Court,620.20, 13-Mar-2018
1053,Revenue,CAHD,South Glos Users in South Glos Homes,Permanent Nursing,Drakes Court,4186.35, 13-Mar-2018
1054,Revenue,CAHD,South Glos Users in South Glos Homes,Permanent Nursing,Drakes Court,620.20, 13-Mar-2018
1055,Revenue,CAHD,South Glos Users in South Glos Homes,Permanent Nursing,Drakes Court,2414.35, 13-Mar-2018
1056,Revenue,CAHD,Bed Purchasing - Southmead Hospital,Permanent Nursing,Drakes Court,2780.00, 13-Mar-2018
1057,Revenue,CAHD,South Glos Users in South Glos Homes,Permanent Nursing,Drakes Court,620.20, 13-Mar-2018
1058,Revenue,CAHD,South Glos Users in South Glos Homes,Permanent Nursing,Drakes Court,620.20, 13-Mar-2018
1059,Revenue,CAHD,Bed Purchasing - North,Permanent Nursing,Drakes Court,1945.28, 13-Mar-2018
1060,Revenue,CAHD,Bed Purchasing - Southmead Hospital,Permanent Nursing,Drakes Court,1945.28, 13-Mar-2018
1061,Revenue,CAHD,South Glos Users in South Glos Homes,Permanent Nursing,Drakes Court,620.20, 13-Mar-2018
1062,Revenue,CAHD,South Glos Users in South Glos Homes,Permanent Nursing,Drakes Court,620.20, 13-Mar-2018
1063,Revenue,CAHD,South Glos Users in South Glos Homes,Permanent Nursing,Drakes Court,620.20, 13-Mar-2018
1064,Revenue,CAHD,South Glos Users in South Glos Homes,Permanent Nursing,Drakes Court,620.20, 13-Mar-2018
1065,Revenue,CAHD,South Glos Users in South Glos Homes,Permanent Nursing,Drakes Court,2259.30, 13-Mar-2018
1066,Revenue,CAHD,South Glos Users in South Glos Homes,Permanent Nursing,Drakes Court,620.20, 13-Mar-2018
1067,Revenue,CAHD,Bed Purchasing - North,Permanent Residential,Drakes Court,1886.24, 13-Mar-2018
1068,Revenue,CAHD,Bed Purchasing - North,Permanent Nursing,Drakes Court,2633.80, 13-Mar-2018
1069,Revenue,CAHD,South Glos Users in South Glos Homes,Permanent Nursing,Drakes Court,620.20, 13-Mar-2018
1070,Revenue,CAHD,South Glos Users in South Glos Homes,Permanent Nursing,Drakes Court,620.20, 13-Mar-2018
1071,Revenue,CAHD,South Glos Users in South Glos Homes,Permanent Nursing,Drakes Court,620.20, 13-Mar-2018
1072,Revenue,CAHD,South Glos Users in South Glos Homes,Permanent Nursing,Drakes Court,620.20, 13-Mar-2018
1073,Revenue,CAHD,MH Purchasing - Younger,Permanent Residential,Dunraven House,2272.96, 13-Mar-2018
1074,Revenue,CAHD,Bed and Breakfast,Bed & Breakfast,Individual,532.00, 09-Mar-2018
1075,Revenue,CAHD,Bed and Breakfast,Bed & Breakfast,Individual,441.00, 01-Mar-2018
1076,Revenue,CAHD,Bed and Breakfast,Bed & Breakfast,Individual,532.00, 09-Mar-2018
1077,Revenue,CAHD,Bed and Breakfast,Bed & Breakfast,Individual,860.00, 01-Mar-2018
1078,Revenue,CAHD,Bed and Breakfast,Bed & Breakfast,Individual,441.00, 07-Mar-2018
1079,Revenue,CAHD,Bed and Breakfast,Bed & Breakfast,Individual,532.00, 12-Mar-2018
1080,Revenue,CAHD,Bed and Breakfast,Bed & Breakfast,Individual,602.00, 07-Mar-2018
1081,Revenue,CAHD,Bed and Breakfast,Bed & Breakfast,Individual,441.00, 14-Mar-2018
1082,Revenue,CAHD,Bed and Breakfast,Bed & Breakfast,Individual,532.00, 14-Mar-2018
1083,Revenue,CAHD,Bed and Breakfast,Bed & Breakfast,Individual,602.00, 13-Mar-2018
1084,Revenue,CAHD,Bed and Breakfast,Bed & Breakfast,Individual,532.00, 21-Mar-2018
1085,Revenue,CAHD,Bed and Breakfast,Bed & Breakfast,Individual,602.00, 22-Mar-2018
1086,Revenue,CAHD,Bed and Breakfast,Bed & Breakfast,Individual,608.00, 27-Mar-2018
1087,Revenue,CAHD,Bed and Breakfast,Bed & Breakfast,Individual,532.00, 27-Mar-2018
1088,Revenue,CAHD,Bed and Breakfast,Bed & Breakfast,Individual,602.00, 29-Mar-2018
1089,Revenue,CAHD,Bed Purchasing - North,Permanent Residential,East Court,2648.48, 13-Mar-2018
1090,Revenue,CAHD,Bed Purchasing - Southmead Hospital,Permanent Residential,Edgecumbe Lodge,2072.00, 13-Mar-2018
1091,Revenue,CAHD,Bed Purchasing - Southmead Hospital,Permanent Residential,Edgecumbe Lodge,2400.00, 13-Mar-2018
1092,Revenue,CAHD,Bed Purchasing - North,Respite Planned - Residential,Edgecumbe Lodge,3040.00, 13-Mar-2018
1093,Revenue,CAHD,Bed Purchasing - Southmead Hospital,Permanent Residential,Edgecumbe Lodge,2431.20, 13-Mar-2018
1094,Revenue,CAHD,Bed Purchasing - South,Permanent Residential,Edgecumbe Lodge,2156.24, 13-Mar-2018
1095,Revenue,CAHD,Bed Purchasing - North,Permanent Residential,Edgecumbe Lodge,2320.48, 13-Mar-2018
1096,Revenue,CAHD,Bed Purchasing - South,Permanent Residential,Edgecumbe Lodge,2400.00, 13-Mar-2018
1097,Revenue,CAHD,Bed Purchasing - South,Permanent Residential,Edgecumbe Lodge,2156.24, 13-Mar-2018
1098,Revenue,CAHD,Bed Purchasing - South,Permanent Residential,Edgecumbe Lodge,2431.20, 13-Mar-2018
1099,Revenue,CAHD,Bed Purchasing - South,Permanent Residential,Edgecumbe Lodge,2400.00, 13-Mar-2018
1100,Revenue,CAHD,Bed Purchasing - Southmead Hospital,Permanent Residential,Edgecumbe Lodge,2431.20, 13-Mar-2018
1101,Revenue,CAHD,Bed Purchasing - North,Permanent Residential,Edgecumbe Lodge,2156.24, 13-Mar-2018
1102,Revenue,CAHD,Bed purchasing - Elderly S117 - South,Permanent Residential,Edgecumbe Lodge,2400.00, 13-Mar-2018
1103,Revenue,CAHD,Bed Purchasing - Southmead Hospital,Permanent Residential,Edgemont House Ltd,1879.20, 13-Mar-2018
1104,Revenue,CAHD,Bed Purchasing - South,Permanent Residential,Edgemont House Ltd,2188.08, 13-Mar-2018
1105,Revenue,CAHD,Bed Purchasing - North,Respite Planned - Residential,Edgemont House Ltd,1578.57, 13-Mar-2018
1106,Revenue,CAHD,Bed Purchasing - North,Respite Planned - Residential,Edgemont House Ltd,1021.43, 13-Mar-2018
1107,Revenue,CAHD,South Glos Users in South Glos Homes,Permanent Nursing,Edgemont View Nursing Home,620.20, 13-Mar-2018
1108,Revenue,CAHD,Bed Purchasing - South,Permanent Nursing,Edgemont View Nursing Home,3400.00, 13-Mar-2018
1109,Revenue,CAHD,South Glos Users in South Glos Homes,Permanent Nursing,Edgemont View Nursing Home,620.20, 13-Mar-2018
1110,Revenue,CAHD,South Glos Users in South Glos Homes,Permanent Nursing,Edgemont View Nursing Home,620.20, 13-Mar-2018
1111,Revenue,CAHD,South Glos Users in South Glos Homes,Permanent Nursing,Edgemont View Nursing Home,620.20, 13-Mar-2018
1112,Revenue,CAHD,Bed Purchasing - South,Permanent Nursing,Edgemont View Nursing Home,2917.44, 13-Mar-2018
1113,Revenue,CAHD,South Glos Users in South Glos Homes,Permanent Nursing,Edgemont View Nursing Home,620.20, 13-Mar-2018
1114,Revenue,CAHD,South Glos Users in South Glos Homes,Permanent Nursing,Edgemont View Nursing Home,620.20, 13-Mar-2018
1115,Revenue,CAHD,South Glos Users in South Glos Homes,Permanent Nursing,Edgemont View Nursing Home,620.20, 13-Mar-2018
1116,Revenue,CAHD,South Glos Users in South Glos Homes,Permanent Nursing,Edgemont View Nursing Home,620.20, 13-Mar-2018
1117,Revenue,CAHD,Bed Purchasing - South,Permanent Nursing,Edgemont View Nursing Home,2880.00, 13-Mar-2018
1118,Revenue,CAHD,South Glos Users in South Glos Homes,Permanent Nursing,Edgemont View Nursing Home,620.20, 13-Mar-2018
1119,Revenue,CAHD,South Glos Users in South Glos Homes,Permanent Nursing,Edgemont View Nursing Home,620.20, 13-Mar-2018
1120,Revenue,CAHD,South Glos Users in South Glos Homes,Permanent Nursing,Edgemont View Nursing Home,819.55, 13-Mar-2018
1121,Revenue,CAHD,South Glos Users in South Glos Homes,Permanent Nursing,Edgemont View Nursing Home,620.20, 13-Mar-2018
1122,Revenue,CAHD,South Glos Users in South Glos Homes,Permanent Nursing,Edgemont View Nursing Home,620.20, 13-Mar-2018
1123,Revenue,CAHD,Bed Purchasing - South,Permanent Nursing,Edgemont View Nursing Home,2880.00, 13-Mar-2018
1124,Revenue,CAHD,Bed Purchasing - South,Permanent Nursing,Edgemont View Nursing Home,2228.00, 13-Mar-2018
1125,Revenue,CAHD,South Glos Users in South Glos Homes,Permanent Nursing,Edgemont View Nursing Home,620.20, 13-Mar-2018
1126,Revenue,CAHD,South Glos Users in South Glos Homes,Permanent Nursing,Edgemont View Nursing Home,620.20, 13-Mar-2018
1127,Revenue,CAHD,Planning and Partnerships Procurement,Other Supplies & Services,Eldercare,3010.35, 15-Mar-2018
1128,Revenue,CAHD,Planning and Partnerships Procurement,Other Supplies & Services,Eldercare,3010.35, 02-Mar-2018
1129,Revenue,CAHD,Planning and Partnerships Procurement,Other Supplies & Services,Eldercare,2960.94, 29-Mar-2018
1130,Revenue,CAHD,Planning and Partnerships Procurement,Other Supplies & Services,Eldercare,2239.76, 02-Mar-2018
1131,Revenue,CAHD,Planning and Partnerships Procurement,Other Supplies & Services,Eldercare,2007.93, 29-Mar-2018
1132,Revenue,CAHD,Supporting People Programme,Grants to Voluntary Bodies,Elim Housing Association Limited,5139.16, 01-Mar-2018
1133,Revenue,CAHD,Home Care - Elderly - South,Other Small Contracts,Elite Home Care Ltd,8714.32, 15-Mar-2018
1134,Revenue,CAHD,Home Care - Elderly - South,Supported Living,Elite Home Care Ltd,54.48, 15-Mar-2018
1135,Revenue,CAHD,Home Care - Elderly - North,Other Small Contracts,Elite Home Care Ltd,1312.06, 15-Mar-2018
1136,Revenue,CAHD,Home Care - Elderly - South,Other Small Contracts,Elite Home Care Ltd,8128.52, 15-Mar-2018
1137,Revenue,CAHD,Home Care - Elderly - South,Supported Living,Elite Home Care Ltd,18.16, 15-Mar-2018
1138,Revenue,CAHD,Home Care - Elderly - North,Other Small Contracts,Elite Home Care Ltd,1094.14, 15-Mar-2018
1139,Revenue,CAHD,Home Care - Elderly - South,Other Small Contracts,Elite Home Care Ltd,8981.42, 20-Mar-2018
1140,Revenue,CAHD,Home Care - Elderly - South,Supported Living,Elite Home Care Ltd,54.48, 20-Mar-2018
1141,Revenue,CAHD,Home Care - Elderly - North,Other Small Contracts,Elite Home Care Ltd,1316.60, 20-Mar-2018
1142,Revenue,CAHD,Home Care - Elderly - South,Other Small Contracts,Elite Home Care Ltd,8988.22, 29-Mar-2018
1143,Revenue,CAHD,Home Care - Elderly - South,Supported Living,Elite Home Care Ltd,54.48, 29-Mar-2018
1144,Revenue,CAHD,Home Care - Elderly - North,Other Small Contracts,Elite Home Care Ltd,1343.84, 29-Mar-2018
1145,Revenue,CAHD,CSC - Vinney Green Secure Unit,Training Expenses,Elysium Healthcare Ltd,1050.00, 07-Mar-2018
1146,Revenue,CAHD,CSC - Agency Fostering,Foster Parent Allowances,Enhanced Foster Care Ltd,4650.00, 22-Mar-2018
1147,Revenue,CAHD,CSC - LAC Placements,Other Transport Costs,Exclusive Secure Care Services,1056.20, 08-Mar-2018
1148,Revenue,CAHD,Independent Special Placements - Pre 16,Other Private Contractors,Exeter Royal Academy For Deaf Education,15857.00, 29-Mar-2018
1149,Revenue,CAHD,Independent Special Placements - Pre 16,Other Private Contractors,Exeter Royal Academy For Deaf Education,26144.00, 29-Mar-2018
1150,Revenue,CAHD,Homeless - Private Sector Leasing,Prop.Serv. General Repairs,Express Property Services Limited,7023.22, 13-Mar-2018
1151,Revenue,CAHD,Homeless - Private Sector Leasing,Prop.Serv. General Repairs,Express Property Services Limited,7845.40, 13-Mar-2018
1152,Revenue,CAHD,Homeless - Private Sector Leasing,Prop.Serv. General Repairs,Express Property Services Limited,4911.08, 13-Mar-2018
1153,Revenue,CAHD,CSC - Fostering Carer Support,Advertising - General,Exterion Media (UK) Limited,600.00, 26-Mar-2018
1154,Revenue,CAHD,Accreditation and Duke of Edinburgh,Project Funding,FACE,1400.00, 20-Mar-2018
1155,Revenue,CAHD,South Glos Users in South Glos Homes,Permanent Nursing,Fairview Court,620.20, 13-Mar-2018
1156,Revenue,CAHD,South Glos Users in South Glos Homes,Permanent Nursing,Fairview Court,620.20, 13-Mar-2018
1157,Revenue,CAHD,South Glos Users in South Glos Homes,Permanent Nursing,Fairview Court,620.20, 13-Mar-2018
1158,Revenue,CAHD,South Glos Users in South Glos Homes,Permanent Nursing,Fairview Court,620.20, 13-Mar-2018
1159,Revenue,CAHD,Bed Purchasing - Southmead Hospital,Permanent Nursing,Fairview Court,3400.00, 13-Mar-2018
1160,Revenue,CAHD,South Glos Users in South Glos Homes,Permanent Nursing,Fairview Court,1329.00, 13-Mar-2018
1161,Revenue,CAHD,South Glos Users in South Glos Homes,Permanent Nursing,Fairview Court,620.20, 13-Mar-2018
1162,Revenue,CAHD,Bed Purchasing - Southmead Hospital,Permanent Nursing,Fairview Court,3360.00, 13-Mar-2018
1163,Revenue,CAHD,South Glos Users in South Glos Homes,Permanent Nursing,Fairview Court,620.20, 13-Mar-2018
1164,Revenue,CAHD,South Glos Users in South Glos Homes,Permanent Nursing,Fairview Court,620.20, 13-Mar-2018
1165,Revenue,CAHD,Bed purchasing - Elderly S117 - South,Permanent Nursing,Fairview Court,4000.00, 13-Mar-2018
1166,Revenue,CAHD,South Glos Users in South Glos Homes,Permanent Nursing,Fairview Court,620.20, 13-Mar-2018
1167,Revenue,CAHD,South Glos Users in South Glos Homes,Permanent Nursing,Fairview Court,3411.10, 13-Mar-2018
1168,Revenue,CAHD,South Glos Users in South Glos Homes,Permanent Nursing,Fairview Court,620.20, 13-Mar-2018
1169,Revenue,CAHD,South Glos Users in South Glos Homes,Permanent Nursing,Fairview Court,620.20, 13-Mar-2018
1170,Revenue,CAHD,Bed Purchasing - Southmead Hospital,Permanent Nursing,Fairview Court,3400.00, 13-Mar-2018
1171,Revenue,CAHD,Bed Purchasing - South,Permanent Nursing,Fairview Court,3241.60, 13-Mar-2018
1172,Revenue,CAHD,South Glos Users in South Glos Homes,Permanent Nursing,Fairview Court,620.20, 13-Mar-2018
1173,Revenue,CAHD,South Glos Users in South Glos Homes,Permanent Nursing,Fairview Court,620.20, 13-Mar-2018
1174,Revenue,CAHD,Bed Purchasing - Southmead Hospital,Permanent Nursing,Fairview Court,3241.60, 13-Mar-2018
1175,Revenue,CAHD,South Glos Users in South Glos Homes,Permanent Nursing,Fairview Court,620.20, 13-Mar-2018
1176,Revenue,CAHD,Bed Purchasing - Southmead Hospital,Permanent Nursing,Fairview Court,3400.00, 13-Mar-2018
1177,Revenue,CAHD,South Glos Users in South Glos Homes,Permanent Nursing,Fairview Court,620.20, 13-Mar-2018
1178,Revenue,CAHD,South Glos Users in South Glos Homes,Permanent Nursing,Fairview Court,620.20, 13-Mar-2018
1179,Revenue,CAHD,Bed Purchasing - Southmead Hospital,Permanent Nursing,Fairview Court,3400.00, 13-Mar-2018
1180,Revenue,CAHD,South Glos Users in South Glos Homes,Permanent Nursing,Fairview Court,620.20, 13-Mar-2018
1181,Revenue,CAHD,South Glos Users in South Glos Homes,Permanent Nursing,Fairview Court,620.20, 13-Mar-2018
1182,Revenue,CAHD,South Glos Users in South Glos Homes,Permanent Nursing,Fairview Court,620.20, 13-Mar-2018
1183,Revenue,CAHD,Bed Purchasing - Southmead Hospital,Permanent Nursing,Fairview Court,3400.00, 13-Mar-2018
1184,Revenue,CAHD,South Glos Users in South Glos Homes,Permanent Nursing,Fairview Court,620.20, 13-Mar-2018
1185,Revenue,CAHD,South Glos Users in South Glos Homes,Permanent Nursing,Fairview Court,3831.95, 13-Mar-2018
1186,Revenue,CAHD,Bed Purchasing - Southmead Hospital,Permanent Nursing,Fairview Court,607.14, 13-Mar-2018
1187,Revenue,CAHD,South Glos Users in South Glos Homes,Permanent Nursing,Fairview Court,620.20, 13-Mar-2018
1188,Revenue,CAHD,South Glos Users in South Glos Homes,Permanent Nursing,Fairview Court,620.20, 13-Mar-2018
1189,Revenue,CAHD,Bed Purchasing - North,Permanent Nursing,Fairview Court,3400.00, 13-Mar-2018
1190,Revenue,CAHD,South Glos Users in South Glos Homes,Permanent Nursing,Fairview Court,620.20, 13-Mar-2018
1191,Revenue,CAHD,Bed Purchasing - Southmead Hospital,Permanent Nursing,Fairview Court,5221.43, 13-Mar-2018
1192,Revenue,CAHD,Bed Purchasing - Southmead Hospital,Permanent Nursing,Fairview Court,3400.00, 13-Mar-2018
1193,Revenue,CAHD,South Glos Users in South Glos Homes,Permanent Nursing,Fairview Court,1860.60, 13-Mar-2018
1194,Revenue,CAHD,South Glos Users in South Glos Homes,Permanent Nursing,Fairview Court,620.20, 13-Mar-2018
1195,Revenue,CAHD,South Glos Users in South Glos Homes,Permanent Nursing,Fairview Court,620.20, 13-Mar-2018
1196,Revenue,CAHD,Bed Purchasing - South,Permanent Nursing,Fairview Court,3000.00, 13-Mar-2018
1197,Revenue,CAHD,South Glos Users in South Glos Homes,Permanent Nursing,Fairview Court,620.20, 13-Mar-2018
1198,Revenue,CAHD,South Glos Users in South Glos Homes,Permanent Nursing,Fairview Court,620.20, 13-Mar-2018
1199,Revenue,CAHD,South Glos Users in South Glos Homes,Permanent Nursing,Fairview Court,620.20, 13-Mar-2018
1200,Revenue,CAHD,Bed Purchasing - Southmead Hospital,Permanent Nursing,Fairview Court,3400.00, 13-Mar-2018
1201,Revenue,CAHD,South Glos Users in South Glos Homes,Permanent Nursing,Fairview Court,620.20, 13-Mar-2018
1202,Revenue,CAHD,South Glos Users in South Glos Homes,Permanent Nursing,Fairview Court,620.20, 13-Mar-2018
1203,Revenue,CAHD,South Glos Users in South Glos Homes,Permanent Nursing,Fairview Court,620.20, 13-Mar-2018
1204,Revenue,CAHD,Bed purchasing - Elderly S117 - South,Permanent Residential,Fairview House,2140.00, 13-Mar-2018
1205,Revenue,CAHD,Bed purchasing - Elderly S117 - South,Permanent Residential,Fairview House,8942.14, 13-Mar-2018
1206,Revenue,CAHD,Bed Purchasing - Southmead Hospital,Permanent Residential,Fairview House,2400.00, 13-Mar-2018
1207,Revenue,CAHD,Bed Purchasing - South,Permanent Residential,Fairview House,2094.64, 13-Mar-2018
1208,Revenue,CAHD,Bed Purchasing - South,Permanent Residential,Fairview House,2140.00, 13-Mar-2018
1209,Revenue,CAHD,Bed Purchasing - South,Permanent Residential,Fairview House,8942.14, 13-Mar-2018
1210,Revenue,CAHD,Bed Purchasing - South,Fees & Charges Income - General,Fairview House,4428.28, 13-Mar-2018
1211,Revenue,CAHD,Bed Purchasing - South,Permanent Residential,Fairview House,2127.32, 13-Mar-2018
1212,Revenue,CAHD,Bed Purchasing - Southmead Hospital,Permanent Residential,Fairview House,2700.00, 13-Mar-2018
1213,Revenue,CAHD,Bed Purchasing - Southmead Hospital,Permanent Residential,Fairview House,675.00, 13-Mar-2018
1214,Revenue,CAHD,Bed Purchasing - South,Permanent Residential,Fairview House,2072.00, 13-Mar-2018
1215,Revenue,CAHD,Bed Purchasing - South,Permanent Residential,Fairview House,8658.00, 13-Mar-2018
1216,Revenue,CAHD,Bed Purchasing - South,Fees & Charges Income - General,Fairview House,3478.24, 13-Mar-2018
1217,Revenue,CAHD,Bed Purchasing - South,Permanent Residential,Fairview House,2140.00, 13-Mar-2018
1218,Revenue,CAHD,Bed Purchasing - South,Permanent Residential,Fairview House,8942.14, 13-Mar-2018
1219,Revenue,CAHD,Bed Purchasing - South,Fees & Charges Income - General,Fairview House,2793.46, 13-Mar-2018
1220,Revenue,CAHD,Bed Purchasing - South,Permanent Residential,Fairview House,2072.00, 13-Mar-2018
1221,Revenue,CAHD,Bed Purchasing - South,Permanent Residential,Fairview House,8658.00, 13-Mar-2018
1222,Revenue,CAHD,Bed Purchasing - South,Permanent Residential,Fairview House,2117.24, 13-Mar-2018
1223,Revenue,CAHD,Bed Purchasing - Southmead Hospital,Permanent Residential,Fairview House,2500.00, 13-Mar-2018
1224,Revenue,CAHD,Bed Purchasing - Southmead Hospital,Respite Planned - Residential,Faith House,2055.00, 13-Mar-2018
1225,Revenue,CAHD,Bed Purchasing - North,Permanent Residential,Faith House,2740.00, 13-Mar-2018
1226,Revenue,CAHD,Bed Purchasing - North,Permanent Residential,Faith House,2740.00, 13-Mar-2018
1227,Revenue,CAHD,Tenancy Start Up Scheme,Other Supplies & Services,Farringtons Sales & Lettings,685.00, 01-Mar-2018
1228,Revenue,CAHD,Tenancy Start Up Scheme,Other Supplies & Services,Farringtons Sales & Lettings,685.00, 29-Mar-2018
1229,Revenue,CAHD,South Glos Users in South Glos Homes,Permanent Nursing,Field House Care Home,620.20, 13-Mar-2018
1230,Revenue,CAHD,Bed Purchasing - Southmead Hospital,Permanent Nursing,Field House Care Home,3261.88, 13-Mar-2018
1231,Revenue,CAHD,Bed Purchasing - Southmead Hospital,Permanent Nursing,Field House Care Home,3280.00, 13-Mar-2018
1232,Revenue,CAHD,Bed Purchasing - Southmead Hospital,Respite Planned - Nursing,Field House Care Home,3982.86, 13-Mar-2018
1233,Revenue,CAHD,Bed Purchasing - Southmead Hospital,Respite Planned - Nursing,Field House Care Home,3280.00, 13-Mar-2018
1234,Revenue,CAHD,Bed Purchasing - North,Permanent Nursing,Field House Care Home,3280.00, 13-Mar-2018
1235,Revenue,CAHD,South Glos Users in South Glos Homes,Permanent Nursing,Field House Care Home,2569.40, 13-Mar-2018
1236,Revenue,CAHD,South Glos Users in South Glos Homes,Permanent Nursing,Field House Care Home,620.20, 13-Mar-2018
1237,Revenue,CAHD,Bed Purchasing - Southmead Hospital,Permanent Nursing,Field House Care Home,2520.00, 13-Mar-2018
1238,Revenue,CAHD,Bed Purchasing - Southmead Hospital,Permanent Nursing,Field House Care Home,2520.00, 13-Mar-2018
1239,Revenue,CAHD,Bed Purchasing - Southmead Hospital,Permanent Nursing,Field House Care Home,840.00, 13-Mar-2018
1240,Revenue,CAHD,Bed Purchasing - North,Permanent Nursing,Field House Care Home,3360.00, 13-Mar-2018
1241,Revenue,CAHD,Bed Purchasing - North,Permanent Residential,Fieldview,2836.40, 13-Mar-2018
1242,Revenue,CAHD,Bed Purchasing - North,Permanent Residential,Fieldview,3600.00, 13-Mar-2018
1243,Revenue,CAHD,Bed Purchasing - Southmead Hospital,Permanent Residential,Fieldview,2800.00, 13-Mar-2018
1244,Revenue,CAHD,MH Purchasing - Younger,Permanent Nursing,Fieldview,5267.60, 13-Mar-2018
1245,Revenue,CAHD,Bed Purchasing - South,Permanent Residential,Fig House,2836.40, 13-Mar-2018
1246,Revenue,CAHD,Statemented Support Payments to OLAs,Other L.A.'s - General,Filton Avenue Primary School,1125.78, 01-Mar-2018
1247,Revenue,CAHD,Statemented Support Payments to OLAs,Other L.A.'s - General,Filton Avenue Primary School,1125.78, 27-Mar-2018
1248,Revenue,CAHD,Minor Adaptations Service,Prop.Serv. General Repairs,First Class Builders Limited,3240.00, 12-Mar-2018
1249,Revenue,CAHD,Home Care - Elderly - South,Other Small Contracts,Firstpoint Homecare Ltd,638.00, 08-Mar-2018
1250,Revenue,CAHD,CSC - Agency Fostering,Foster Parent Allowances,Five Rivers Child Care Limited,4069.86, 29-Mar-2018
1251,Revenue,CAHD,Planning & Development,Training Expenses,Focus on Training,939.00, 26-Mar-2018
1252,Revenue,CAHD,CSC - Agency Fostering,Foster Parent Allowances,Foster Care Associates Limited,4131.68, 22-Mar-2018
1253,Revenue,CAHD,CSC - Asylum Seekers - Unaccompanied,Foster Parent Allowances,Foster Care Associates Limited,3578.02, 22-Mar-2018
1254,Revenue,CAHD,Home Care - Elderly - South,Day Care / Social Activities,Fourways Care Limited,39.12, 08-Mar-2018
1255,Revenue,CAHD,Home Care - Elderly - South,Other Small Contracts,Fourways Care Limited,6692.95, 08-Mar-2018
1256,Revenue,CAHD,Home Care - Elderly - North,Other Small Contracts,Fourways Care Limited,4679.73, 08-Mar-2018
1257,Revenue,CAHD,Younger MH non-res purchasing,Other Small Contracts,Fourways Care Limited,298.29, 08-Mar-2018
1258,Revenue,CAHD,Home care - Elderly MH - North,Other Small Contracts,Fourways Care Limited,674.82, 08-Mar-2018
1259,Revenue,CAHD,Home Care - Elderly - South,Day Care / Social Activities,Fourways Care Limited,39.12, 15-Mar-2018
1260,Revenue,CAHD,Home Care - Elderly - South,Other Small Contracts,Fourways Care Limited,4962.15, 15-Mar-2018
1261,Revenue,CAHD,Home Care - Elderly - North,Other Small Contracts,Fourways Care Limited,3266.52, 15-Mar-2018
1262,Revenue,CAHD,Younger MH non-res purchasing,Other Small Contracts,Fourways Care Limited,117.36, 15-Mar-2018
1263,Revenue,CAHD,Home care - Elderly MH - North,Other Small Contracts,Fourways Care Limited,454.77, 15-Mar-2018
1264,Revenue,CAHD,Home Care - Elderly - South,Day Care / Social Activities,Fourways Care Limited,39.12, 20-Mar-2018
1265,Revenue,CAHD,Home Care - Elderly - South,Other Small Contracts,Fourways Care Limited,6287.76, 20-Mar-2018
1266,Revenue,CAHD,Home Care - Elderly - North,Other Small Contracts,Fourways Care Limited,4591.71, 20-Mar-2018
1267,Revenue,CAHD,Younger MH non-res purchasing,Other Small Contracts,Fourways Care Limited,356.97, 20-Mar-2018
1268,Revenue,CAHD,Home care - Elderly MH - North,Other Small Contracts,Fourways Care Limited,723.72, 20-Mar-2018
1269,Revenue,CAHD,Home Care - Elderly - South,Day Care / Social Activities,Fourways Care Limited,78.24, 26-Mar-2018
1270,Revenue,CAHD,Home Care - Elderly - South,Other Small Contracts,Fourways Care Limited,6034.29, 26-Mar-2018
1271,Revenue,CAHD,Home Care - Elderly - North,Other Small Contracts,Fourways Care Limited,4166.28, 26-Mar-2018
1272,Revenue,CAHD,Younger MH non-res purchasing,Other Small Contracts,Fourways Care Limited,268.95, 26-Mar-2018
1273,Revenue,CAHD,Home care - Elderly MH - North,Other Small Contracts,Fourways Care Limited,650.37, 26-Mar-2018
1274,Revenue,CAHD,Supporting People Programme,Grants to Voluntary Bodies,Freeways Trust Limited,5575.74, 01-Mar-2018
1275,Revenue,CAHD,Freeways,Permanent Residential,Freeways Trust Limited,3677.48, 29-Mar-2018
1276,Revenue,CAHD,Freeways,Permanent Residential,Freeways Trust Limited,2364.64, 29-Mar-2018
1277,Revenue,CAHD,Freeways,Permanent Residential,Freeways Trust Limited,2364.64, 29-Mar-2018
1278,Revenue,CAHD,Freeways,Permanent Residential,Freeways Trust Limited,3441.12, 29-Mar-2018
1279,Revenue,CAHD,Freeways,Permanent Residential,Freeways Trust Limited,2364.64, 29-Mar-2018
1280,Revenue,CAHD,Freeways,Permanent Residential,Freeways Trust Limited,3491.60, 29-Mar-2018
1281,Revenue,CAHD,Freeways,Permanent Residential,Freeways Trust Limited,2629.12, 29-Mar-2018
1282,Revenue,CAHD,Freeways,Permanent Residential,Freeways Trust Limited,3649.08, 29-Mar-2018
1283,Revenue,CAHD,Freeways,Permanent Residential,Freeways Trust Limited,2229.44, 29-Mar-2018
1284,Revenue,CAHD,Freeways,Permanent Residential,Freeways Trust Limited,2792.80, 29-Mar-2018
1285,Revenue,CAHD,Freeways,Permanent Residential,Freeways Trust Limited,2767.24, 29-Mar-2018
1286,Revenue,CAHD,Freeways,Permanent Residential,Freeways Trust Limited,3122.76, 29-Mar-2018
1287,Revenue,CAHD,Freeways,Permanent Residential,Freeways Trust Limited,2364.64, 29-Mar-2018
1288,Revenue,CAHD,Freeways,Permanent Residential,Freeways Trust Limited,2517.36, 29-Mar-2018
1289,Revenue,CAHD,Freeways,Permanent Residential,Freeways Trust Limited,2517.36, 29-Mar-2018
1290,Revenue,CAHD,Freeways,Permanent Residential,Freeways Trust Limited,899.06, 29-Mar-2018
1291,Revenue,CAHD,Freeways,Permanent Residential,Freeways Trust Limited,1618.30, 29-Mar-2018
1292,Revenue,CAHD,Freeways,Permanent Residential,Freeways Trust Limited,1258.68, 29-Mar-2018
1293,Revenue,CAHD,Freeways,Permanent Residential,Freeways Trust Limited,3677.48, 06-Mar-2018
1294,Revenue,CAHD,Freeways,Permanent Residential,Freeways Trust Limited,2364.64, 06-Mar-2018
1295,Revenue,CAHD,Freeways,Permanent Residential,Freeways Trust Limited,2364.64, 06-Mar-2018
1296,Revenue,CAHD,Freeways,Permanent Residential,Freeways Trust Limited,3441.12, 06-Mar-2018
1297,Revenue,CAHD,Freeways,Permanent Residential,Freeways Trust Limited,2364.64, 06-Mar-2018
1298,Revenue,CAHD,Freeways,Permanent Residential,Freeways Trust Limited,3491.60, 06-Mar-2018
1299,Revenue,CAHD,Freeways,Permanent Residential,Freeways Trust Limited,2629.12, 06-Mar-2018
1300,Revenue,CAHD,Freeways,Permanent Residential,Freeways Trust Limited,3649.08, 06-Mar-2018
1301,Revenue,CAHD,Freeways,Permanent Residential,Freeways Trust Limited,2229.44, 06-Mar-2018
1302,Revenue,CAHD,Freeways,Permanent Residential,Freeways Trust Limited,2792.80, 06-Mar-2018
1303,Revenue,CAHD,Freeways,Permanent Residential,Freeways Trust Limited,2767.24, 06-Mar-2018
1304,Revenue,CAHD,Freeways,Permanent Residential,Freeways Trust Limited,3122.76, 06-Mar-2018
1305,Revenue,CAHD,Freeways,Permanent Residential,Freeways Trust Limited,2364.64, 06-Mar-2018
1306,Revenue,CAHD,Freeways,Permanent Residential,Freeways Trust Limited,7552.08, 06-Mar-2018
1307,Revenue,CAHD,Home Care - Elderly - South,Other Small Contracts,Freeways Trust Limited,516.32, 15-Mar-2018
1308,Revenue,CAHD,Home Care - Elderly - North,Other Small Contracts,Freeways Trust Limited,774.48, 14-Mar-2018
1309,Revenue,CAHD,Home Care - Elderly - North,Other Small Contracts,Freeways Trust Limited,811.36, 15-Mar-2018
1310,Revenue,CAHD,Home Care - Elderly - North,Supported Living,Freeways Trust Ltd,810.40, 13-Mar-2018
1311,Revenue,CAHD,Bed purchasing - S28A Under 65 - South,Permanent Residential,Freeways Trust Ltd,3724.80, 13-Mar-2018
1312,Revenue,CAHD,Bed Purchasing - North,Permanent Residential,Freeways Trust Ltd,3606.68, 13-Mar-2018
1313,Revenue,CAHD,Bed Purchasing - South,Permanent Residential,Freeways Trust Ltd,3825.16, 13-Mar-2018
1314,Revenue,CAHD,Bed Purchasing - North,Permanent Residential,Freeways Trust Ltd,2888.32, 13-Mar-2018
1315,Revenue,CAHD,Bed Purchasing - South,Permanent Residential,Freeways Trust Ltd,3043.64, 13-Mar-2018
1316,Revenue,CAHD,Bed Purchasing - North,Permanent Residential,Freeways Trust Ltd,3190.00, 13-Mar-2018
1317,Revenue,CAHD,Bed Purchasing - North,Permanent Residential,Freeways Trust Ltd,3818.20, 13-Mar-2018
1318,Revenue,CAHD,18-25 Year Olds,Permanent Residential,Freeways Trust Ltd,3527.20, 13-Mar-2018
1319,Revenue,CAHD,Section 117 Placements MH Younger,Permanent Residential,Freeways Trust Ltd,3200.00, 13-Mar-2018
1320,Revenue,CAHD,Home Care - Elderly - North,Day Care / Social Activities,Frenchay Beckspool Building,864.00, 13-Mar-2018
1321,Revenue,CAHD,Home Care - Elderly - South,Day Care / Social Activities,Frenchay Beckspool Building,864.00, 13-Mar-2018
1322,Revenue,CAHD,Pathway 3 - (Complex Beds),Permanent Nursing,Frenchay House,3204.00, 28-Mar-2018
1323,Revenue,CAHD,Bed Purchasing - Southmead Hospital,Permanent Nursing,Frenchay Park Nursing Home,3200.00, 13-Mar-2018
1324,Revenue,CAHD,Early Years High Needs Support,Other Private Contractors,Frenchay Pre School Playgroup,822.05, 01-Mar-2018
1325,Revenue,CAHD,Early Years High Needs Support,Other Private Contractors,Frenchay Pre School Playgroup,910.13, 27-Mar-2018
1326,Revenue,CAHD,CSC - Residential Placements,Permanent Residential,Friends Therapeutic Community Trust,15500.00, 22-Mar-2018
1327,Revenue,CAHD,South Glos Users in South Glos Homes,Permanent Nursing,Fshc  1St Floor,620.20, 13-Mar-2018
1328,Revenue,CAHD,Bed Purchasing - South,Permanent Nursing,Fshc  1St Floor,2621.16, 13-Mar-2018
1329,Revenue,CAHD,South Glos Users in South Glos Homes,Permanent Nursing,Fshc  1St Floor,620.20, 13-Mar-2018
1330,Revenue,CAHD,Bed Purchasing - South,Permanent Nursing,Fshc  1St Floor,2228.00, 13-Mar-2018
1331,Revenue,CAHD,Bed Purchasing - Southmead Hospital,Permanent Nursing,Fshc  1St Floor,2281.28, 13-Mar-2018
1332,Revenue,CAHD,South Glos Users in South Glos Homes,Permanent Nursing,Fshc  1St Floor,5683.46, 13-Mar-2018
1333,Revenue,CAHD,South Glos Users in South Glos Homes,Permanent Nursing,Fshc  1St Floor,5667.93, 13-Mar-2018
1334,Revenue,CAHD,South Glos Users in South Glos Homes,Permanent Nursing,Fshc  1St Floor,5667.93, 13-Mar-2018
1335,Revenue,CAHD,South Glos Users in South Glos Homes,Permanent Nursing,Fshc  1St Floor,5542.79, 13-Mar-2018
1336,Revenue,CAHD,South Glos Users in South Glos Homes,Permanent Nursing,Fshc  1St Floor,5412.43, 13-Mar-2018
1337,Revenue,CAHD,Bed Purchasing - South,Permanent Nursing,Fshc  1St Floor,2228.00, 13-Mar-2018
1338,Revenue,CAHD,South Glos Users in South Glos Homes,Permanent Nursing,Fshc  1St Floor,620.20, 13-Mar-2018
1339,Revenue,CAHD,Bed Purchasing - Southmead Hospital,Permanent Nursing,Fshc  1St Floor,2390.68, 13-Mar-2018
1340,Revenue,CAHD,South Glos Users in South Glos Homes,Permanent Nursing,Fshc  1St Floor,620.20, 13-Mar-2018
1341,Revenue,CAHD,Bed Purchasing - Southmead Hospital,Permanent Nursing,Fshc  1St Floor,2228.00, 13-Mar-2018
1342,Revenue,CAHD,South Glos Users in South Glos Homes,Permanent Nursing,Fshc  1St Floor,620.20, 13-Mar-2018
1343,Revenue,CAHD,Bed Purchasing - South,Permanent Residential,Fshc  1St Floor,1938.57, 13-Mar-2018
1344,Revenue,CAHD,Bed Purchasing - Southmead Hospital,Permanent Nursing,Fshc  1St Floor,2281.28, 13-Mar-2018
1345,Revenue,CAHD,South Glos Users in South Glos Homes,Permanent Nursing,Fshc  1St Floor,620.20, 13-Mar-2018
1346,Revenue,CAHD,Bed Purchasing - South,Permanent Nursing,Fshc  1St Floor,4114.29, 13-Mar-2018
1347,Revenue,CAHD,Bed Purchasing - South,Permanent Nursing,Fshc  1St Floor,2560.00, 13-Mar-2018
1348,Revenue,CAHD,South Glos Users in South Glos Homes,Permanent Nursing,Fshc  1St Floor,620.20, 13-Mar-2018
1349,Revenue,CAHD,South Glos Users in South Glos Homes,Permanent Nursing,Fshc  1St Floor,1639.10, 13-Mar-2018
1350,Revenue,CAHD,South Glos Users in South Glos Homes,Permanent Nursing,Fshc  1St Floor,620.20, 13-Mar-2018
1351,Revenue,CAHD,Bed Purchasing - Southmead Hospital,Permanent Nursing,Fshc  1St Floor,2228.00, 13-Mar-2018
1352,Revenue,CAHD,Bed Purchasing - Southmead Hospital,Permanent Nursing,Fshc  1St Floor,2360.00, 13-Mar-2018
1353,Revenue,CAHD,South Glos Users in South Glos Homes,Permanent Nursing,Fshc  1St Floor,620.20, 13-Mar-2018
1354,Revenue,CAHD,Bed Purchasing - Southmead Hospital,Permanent Nursing,Fshc  1St Floor,2560.00, 13-Mar-2018
1355,Revenue,CAHD,Bed Purchasing - South,Permanent Nursing,Fshc  1St Floor,2613.56, 13-Mar-2018
1356,Revenue,CAHD,South Glos Users in South Glos Homes,Permanent Nursing,Fshc  1St Floor,620.20, 13-Mar-2018
1357,Revenue,CAHD,South Glos Users in South Glos Homes,Permanent Nursing,Fshc  1St Floor,620.20, 13-Mar-2018
1358,Revenue,CAHD,South Glos Users in South Glos Homes,Permanent Nursing,Fshc  1St Floor,620.20, 13-Mar-2018
1359,Revenue,CAHD,Bed Purchasing - Southmead Hospital,Respite Planned - Nursing,Fshc  1St Floor,3040.00, 13-Mar-2018
1360,Revenue,CAHD,Bed Purchasing - Southmead Hospital,Respite Planned - Nursing,Fshc  1St Floor,651.43, 13-Mar-2018
1361,Revenue,CAHD,South Glos Users in South Glos Homes,Permanent Nursing,Fshc  1St Floor,620.20, 13-Mar-2018
1362,Revenue,CAHD,Bed Purchasing - South,Permanent Nursing,Fshc  1St Floor,2360.00, 13-Mar-2018
1363,Revenue,CAHD,South Glos Users in South Glos Homes,Permanent Nursing,Fshc  1St Floor,1528.35, 13-Mar-2018
1364,Revenue,CAHD,South Glos Users in South Glos Homes,Permanent Nursing,Fshc  1St Floor,620.20, 13-Mar-2018
1365,Revenue,CAHD,Bed Purchasing - Southmead Hospital,Permanent Nursing,Fshc  1St Floor,2281.28, 13-Mar-2018
1366,Revenue,CAHD,South Glos Users in South Glos Homes,Permanent Nursing,Fshc  1St Floor,620.20, 13-Mar-2018
1367,Revenue,CAHD,Bed Purchasing - Southmead Hospital,Permanent Nursing,Fshc  1St Floor,2360.00, 13-Mar-2018
1368,Revenue,CAHD,South Glos Users in South Glos Homes,Permanent Nursing,Fshc  1St Floor,620.20, 13-Mar-2018
1369,Revenue,CAHD,Bed Purchasing - South,Permanent Nursing,Fshc  1St Floor,2228.00, 13-Mar-2018
1370,Revenue,CAHD,South Glos Users in South Glos Homes,Permanent Nursing,Fshc  1St Floor,620.20, 13-Mar-2018
1371,Revenue,CAHD,Bed Purchasing - Southmead Hospital,Permanent Nursing,Fshc  1St Floor,2228.00, 13-Mar-2018
1372,Revenue,CAHD,South Glos Users in South Glos Homes,Permanent Nursing,Fshc  1St Floor,620.20, 13-Mar-2018
1373,Revenue,CAHD,Bed Purchasing - South,Respite Emergency - Residential,Fshc  1St Floor,822.86, 13-Mar-2018
1374,Revenue,CAHD,Bed Purchasing - South,Permanent Nursing,Fshc  1St Floor,2228.00, 13-Mar-2018
1375,Revenue,CAHD,South Glos Users in South Glos Homes,Permanent Nursing,Fshc  1St Floor,620.20, 13-Mar-2018
1376,Revenue,CAHD,Bed Purchasing - South,Permanent Nursing,Fshc  1St Floor,2281.28, 13-Mar-2018
1377,Revenue,CAHD,South Glos Users in South Glos Homes,Permanent Nursing,Fshc  1St Floor,620.20, 13-Mar-2018
1378,Revenue,CAHD,Bed Purchasing - Southmead Hospital,Respite Planned - Nursing,Fshc  1St Floor,2560.00, 13-Mar-2018
1379,Revenue,CAHD,Bed Purchasing - Southmead Hospital,Permanent Nursing,Fshc  1St Floor,2400.00, 13-Mar-2018
1380,Revenue,CAHD,Bed Purchasing - North,Permanent Nursing,Fshc  1St Floor,2312.32, 13-Mar-2018
1381,Revenue,CAHD,South Glos Users in South Glos Homes,Permanent Nursing,Fshc  1St Floor,620.20, 13-Mar-2018
1382,Revenue,CAHD,Bed Purchasing - Southmead Hospital,Respite Planned - Nursing,Fshc  1St Floor,3000.00, 13-Mar-2018
1383,Revenue,CAHD,Bed Purchasing - Southmead Hospital,Respite Planned - Nursing,Fshc  1St Floor,2035.71, 13-Mar-2018
1384,Revenue,CAHD,Bed Purchasing - South,Permanent Nursing,Fshc  1St Floor,2360.00, 13-Mar-2018
1385,Revenue,CAHD,South Glos Users in South Glos Homes,Permanent Nursing,Fshc  1St Floor,1151.80, 13-Mar-2018
1386,Revenue,CAHD,South Glos Users in South Glos Homes,Permanent Nursing,Fshc  1St Floor,620.20, 13-Mar-2018
1387,Revenue,CAHD,Bed Purchasing - Southmead Hospital,Permanent Nursing,Fshc  1St Floor,2810.84, 13-Mar-2018
1388,Revenue,CAHD,Bed Purchasing - Southmead Hospital,Permanent Residential,Fshc  1St Floor,2256.96, 13-Mar-2018
1389,Revenue,CAHD,South Glos Users in South Glos Homes,Permanent Nursing,Fshc  1St Floor,620.20, 13-Mar-2018
1390,Revenue,CAHD,Bed Purchasing - Southmead Hospital,Permanent Nursing,Fshc  1St Floor,2228.00, 13-Mar-2018
1391,Revenue,CAHD,South Glos Users in South Glos Homes,Permanent Nursing,Fshc  1St Floor,620.20, 13-Mar-2018
1392,Revenue,CAHD,Bed Purchasing - Southmead Hospital,Fees & Charges Income - General,Fshc  1St Floor,1686.36, 13-Mar-2018
1393,Revenue,CAHD,Bed Purchasing - Southmead Hospital,Permanent Nursing,Fshc  1St Floor,2296.00, 13-Mar-2018
1394,Revenue,CAHD,South Glos Users in South Glos Homes,Permanent Nursing,Fshc  1St Floor,620.20, 13-Mar-2018
1395,Revenue,CAHD,Bed Purchasing - North,Permanent Nursing,Fshc  1St Floor,2228.00, 13-Mar-2018
1396,Revenue,CAHD,South Glos Users in South Glos Homes,Permanent Nursing,Fshc  1St Floor,620.20, 13-Mar-2018
1397,Revenue,CAHD,Bed Purchasing - Southmead Hospital,Permanent Nursing,Fshc  1St Floor,2296.00, 13-Mar-2018
1398,Revenue,CAHD,South Glos Users in South Glos Homes,Permanent Nursing,Fshc  1St Floor,620.20, 13-Mar-2018
1399,Revenue,CAHD,Bed Purchasing - Southmead Hospital,Permanent Nursing,Fshc  1St Floor,2228.00, 13-Mar-2018
1400,Revenue,CAHD,South Glos Users in South Glos Homes,Permanent Nursing,Fshc  1St Floor,620.20, 13-Mar-2018
1401,Revenue,CAHD,Bed Purchasing - Southmead Hospital,Permanent Residential,Fshc  1St Floor,2072.00, 13-Mar-2018
1402,Revenue,CAHD,South Glos Users in South Glos Homes,Permanent Nursing,Fshc  1St Floor,620.20, 13-Mar-2018
1403,Revenue,CAHD,Bed Purchasing - North,Permanent Residential,Fshc  1St Floor,2780.00, 13-Mar-2018
1404,Revenue,CAHD,Bed Purchasing - North,Fees & Charges Income - General,Fshc  1St Floor,667.06, 13-Mar-2018
1405,Revenue,CAHD,Bed Purchasing - North,Fees & Charges Income - General,Fshc  1St Floor,576.21, 13-Mar-2018
1406,Revenue,CAHD,Bed Purchasing - South,Permanent Residential,Fshc  1St Floor,2700.00, 13-Mar-2018
1407,Revenue,CAHD,Bed Purchasing - South,Fees & Charges Income - General,Fshc  1St Floor,1152.43, 13-Mar-2018
1408,Revenue,CAHD,Bed Purchasing - North,Permanent Nursing,Fshc  1St Floor,2296.00, 13-Mar-2018
1409,Revenue,CAHD,South Glos Users in South Glos Homes,Permanent Nursing,Fshc  1St Floor,620.20, 13-Mar-2018
1410,Revenue,CAHD,South Glos Users in South Glos Homes,Permanent Nursing,Fshc  1St Floor,620.20, 13-Mar-2018
1411,Revenue,CAHD,Bed Purchasing - Southmead Hospital,Permanent Nursing,Fshc  1St Floor,2256.96, 13-Mar-2018
1412,Revenue,CAHD,South Glos Users in South Glos Homes,Permanent Nursing,Fshc  1St Floor,620.20, 13-Mar-2018
1413,Revenue,CAHD,Bed Purchasing - Southmead Hospital,Permanent Nursing,Fshc  1St Floor,2228.00, 13-Mar-2018
1414,Revenue,CAHD,South Glos Users in South Glos Homes,Permanent Nursing,Fshc  1St Floor,620.20, 13-Mar-2018
1415,Revenue,CAHD,South Glos Users in South Glos Homes,Permanent Nursing,Fshc  1St Floor,3078.85, 13-Mar-2018
1416,Revenue,CAHD,Bed Purchasing - North,Permanent Nursing,Fshc  1St Floor,2228.00, 13-Mar-2018
1417,Revenue,CAHD,South Glos Users in South Glos Homes,Permanent Nursing,Fshc  1St Floor,620.20, 13-Mar-2018
1418,Revenue,CAHD,Bed Purchasing - North,Permanent Nursing,Fshc  1St Floor,2228.00, 13-Mar-2018
1419,Revenue,CAHD,Bed Purchasing - North,Fees & Charges Income - General,Fshc  1St Floor,716.19, 13-Mar-2018
1420,Revenue,CAHD,Bed Purchasing - North,Fees & Charges Income - General,Fshc  1St Floor,921.94, 13-Mar-2018
1421,Revenue,CAHD,South Glos Users in South Glos Homes,Permanent Nursing,Fshc  1St Floor,620.20, 13-Mar-2018
1422,Revenue,CAHD,Bed Purchasing - North,Permanent Nursing,Fshc  1St Floor,2296.00, 13-Mar-2018
1423,Revenue,CAHD,South Glos Users in South Glos Homes,Permanent Nursing,Fshc  1St Floor,620.20, 13-Mar-2018
1424,Revenue,CAHD,Bed Purchasing - North,Permanent Nursing,Fshc  1St Floor,2228.00, 13-Mar-2018
1425,Revenue,CAHD,South Glos Users in South Glos Homes,Permanent Nursing,Fshc  1St Floor,620.20, 13-Mar-2018
1426,Revenue,CAHD,South Glos Users in South Glos Homes,Permanent Nursing,Fshc  1St Floor,620.20, 13-Mar-2018
1427,Revenue,CAHD,Bed Purchasing - North,Permanent Residential,Fshc  1St Floor,2700.00, 13-Mar-2018
1428,Revenue,CAHD,Bed Purchasing - Southmead Hospital,Permanent Nursing,Fshc  1St Floor,2296.00, 13-Mar-2018
1429,Revenue,CAHD,South Glos Users in South Glos Homes,Permanent Nursing,Fshc  1St Floor,620.20, 13-Mar-2018
1430,Revenue,CAHD,Bed Purchasing - North,Permanent Nursing,Fshc  1St Floor,2228.00, 13-Mar-2018
1431,Revenue,CAHD,South Glos Users in South Glos Homes,Permanent Nursing,Fshc  1St Floor,620.20, 13-Mar-2018
1432,Revenue,CAHD,South Glos Users in South Glos Homes,Permanent Nursing,Fshc  1St Floor,620.20, 13-Mar-2018
1433,Revenue,CAHD,Bed Purchasing - Southmead Hospital,Respite Emergency - Residential,Fshc  1St Floor,686.65, 13-Mar-2018
1434,Revenue,CAHD,South Glos Users in South Glos Homes,Permanent Nursing,Fshc  1St Floor,620.20, 13-Mar-2018
1435,Revenue,CAHD,South Glos Users in South Glos Homes,Permanent Nursing,Fshc  1St Floor,620.20, 13-Mar-2018
1436,Revenue,CAHD,Bed Purchasing - Southmead Hospital,Permanent Nursing,Fshc  1St Floor,2228.00, 13-Mar-2018
1437,Revenue,CAHD,South Glos Users in South Glos Homes,Permanent Nursing,Fshc  1St Floor,620.20, 13-Mar-2018
1438,Revenue,CAHD,South Glos Users in South Glos Homes,Permanent Nursing,Fshc  1St Floor,620.20, 13-Mar-2018
1439,Revenue,CAHD,South Glos Users in South Glos Homes,Permanent Nursing,Fshc  1St Floor,620.20, 13-Mar-2018
1440,Revenue,CAHD,Bed Purchasing - North,Permanent Nursing,Fshc  1St Floor,2228.00, 13-Mar-2018
1441,Revenue,CAHD,South Glos Users in South Glos Homes,Permanent Nursing,Fshc  1St Floor,620.20, 13-Mar-2018
1442,Revenue,CAHD,Bed Purchasing - North,Permanent Nursing,Fshc  1St Floor,2228.00, 13-Mar-2018
1443,Revenue,CAHD,South Glos Users in South Glos Homes,Permanent Nursing,Fshc  1St Floor,620.20, 13-Mar-2018
1444,Revenue,CAHD,Bed Purchasing - North,Permanent Nursing,Fshc  1St Floor,2228.00, 13-Mar-2018
1445,Revenue,CAHD,South Glos Users in South Glos Homes,Permanent Nursing,Fshc  1St Floor,620.20, 13-Mar-2018
1446,Revenue,CAHD,Bed Purchasing - North,Permanent Nursing,Fshc  1St Floor,2228.00, 13-Mar-2018
1447,Revenue,CAHD,South Glos Users in South Glos Homes,Permanent Nursing,Fshc  1St Floor,620.20, 13-Mar-2018
1448,Revenue,CAHD,Bed Purchasing - North,Permanent Nursing,Fshc  1St Floor,2228.00, 13-Mar-2018
1449,Revenue,CAHD,South Glos Users in South Glos Homes,Permanent Nursing,Fshc  1St Floor,620.20, 13-Mar-2018
1450,Revenue,CAHD,South Glos Users in South Glos Homes,Permanent Nursing,Fshc  1St Floor,620.20, 13-Mar-2018
1451,Revenue,CAHD,Bed Purchasing - Southmead Hospital,Permanent Nursing,Fshc  1St Floor,2228.00, 13-Mar-2018
1452,Revenue,CAHD,South Glos Users in South Glos Homes,Permanent Nursing,Fshc  1St Floor,620.20, 13-Mar-2018
1453,Revenue,CAHD,Bed Purchasing - North,Permanent Nursing,Fshc  1St Floor,2296.00, 13-Mar-2018
1454,Revenue,CAHD,South Glos Users in South Glos Homes,Permanent Nursing,Fshc  1St Floor,620.20, 13-Mar-2018
1455,Revenue,CAHD,Bed Purchasing - North,Permanent Nursing,Fshc  1St Floor,2296.00, 13-Mar-2018
1456,Revenue,CAHD,South Glos Users in South Glos Homes,Permanent Nursing,Fshc  1St Floor,620.20, 13-Mar-2018
1457,Revenue,CAHD,Bed Purchasing - North,Fees & Charges Income - General,Fshc  1St Floor,1777.76, 13-Mar-2018
1458,Revenue,CAHD,South Glos Users in South Glos Homes,Permanent Nursing,Fshc  1St Floor,620.20, 13-Mar-2018
1459,Revenue,CAHD,Bed Purchasing - Southmead Hospital,Permanent Nursing,Fshc  1St Floor,2382.56, 13-Mar-2018
1460,Revenue,CAHD,South Glos Users in South Glos Homes,Permanent Nursing,Fshc  1St Floor,620.20, 13-Mar-2018
1461,Revenue,CAHD,South Glos Users in South Glos Homes,Permanent Nursing,Fshc  1St Floor,620.20, 13-Mar-2018
1462,Revenue,CAHD,Bed Purchasing - North,Permanent Nursing,Fshc  1St Floor,2228.00, 13-Mar-2018
1463,Revenue,CAHD,South Glos Users in South Glos Homes,Permanent Nursing,Fshc  1St Floor,620.20, 13-Mar-2018
1464,Revenue,CAHD,Bed Purchasing - North,Permanent Nursing,Fshc  1St Floor,3723.24, 13-Mar-2018
1465,Revenue,CAHD,Bed Purchasing - North,Permanent Nursing,Fshc  1St Floor,2228.00, 13-Mar-2018
1466,Revenue,CAHD,South Glos Users in South Glos Homes,Permanent Nursing,Fshc  1St Floor,620.20, 13-Mar-2018
1467,Revenue,CAHD,South Glos Users in South Glos Homes,Permanent Nursing,Fshc  1St Floor,598.05, 13-Mar-2018
1468,Revenue,CAHD,Bed Purchasing - Southmead Hospital,Permanent Nursing,Fshc  1St Floor,3100.00, 13-Mar-2018
1469,Revenue,CAHD,South Glos Users in South Glos Homes,Permanent Nursing,Fshc  1St Floor,620.20, 13-Mar-2018
1470,Revenue,CAHD,South Glos Users in South Glos Homes,Permanent Nursing,Fshc  1St Floor,620.20, 13-Mar-2018
1471,Revenue,CAHD,South Glos Users in South Glos Homes,Permanent Nursing,Fshc  1St Floor,620.20, 13-Mar-2018
1472,Revenue,CAHD,Bed Purchasing - North,Respite Planned - Residential,Fshc  1St Floor,1389.90, 13-Mar-2018
1473,Revenue,CAHD,Bed Purchasing - Southmead Hospital,Respite Emergency - Residential,Fshc  1St Floor,925.65, 13-Mar-2018
1474,Revenue,CAHD,South Glos Users in South Glos Homes,Permanent Nursing,Fshc  1St Floor,620.20, 13-Mar-2018
1475,Revenue,CAHD,Bed Purchasing - South,Permanent Nursing,Fshc  1St Floor,2507.16, 13-Mar-2018
1476,Revenue,CAHD,South Glos Users in South Glos Homes,Permanent Nursing,Fshc  1St Floor,620.20, 13-Mar-2018
1477,Revenue,CAHD,Bed Purchasing - North,Fees & Charges Income - General,Fshc  1St Floor,1469.50, 13-Mar-2018
1478,Revenue,CAHD,South Glos Users in South Glos Homes,Permanent Nursing,Fshc  1St Floor,620.20, 13-Mar-2018
1479,Revenue,CAHD,South Glos Users in South Glos Homes,Permanent Nursing,Fshc  1St Floor,620.20, 13-Mar-2018
1480,Revenue,CAHD,South Glos Users in South Glos Homes,Permanent Nursing,Fshc  1St Floor,620.20, 13-Mar-2018
1481,Revenue,CAHD,South Glos Users in South Glos Homes,Permanent Nursing,Fshc  1St Floor,620.20, 13-Mar-2018
1482,Revenue,CAHD,Bed Purchasing - North,Permanent Nursing,Fshc  1St Floor,2279.80, 13-Mar-2018
1483,Revenue,CAHD,Bed Purchasing - North,Permanent Nursing,Fshc  1St Floor,895.64, 13-Mar-2018
1484,Revenue,CAHD,South Glos Users in South Glos Homes,Permanent Nursing,Fshc  1St Floor,620.20, 13-Mar-2018
1485,Revenue,CAHD,Bed Purchasing - North,Respite Planned - Nursing,Fshc  1St Floor,2479.80, 13-Mar-2018
1486,Revenue,CAHD,South Glos Users in South Glos Homes,Permanent Nursing,Fshc  1St Floor,620.20, 13-Mar-2018
1487,Revenue,CAHD,Bed Purchasing - Southmead Hospital,Permanent Nursing,Fshc  1St Floor,2405.88, 13-Mar-2018
1488,Revenue,CAHD,South Glos Users in South Glos Homes,Permanent Nursing,Fshc  1St Floor,620.20, 13-Mar-2018
1489,Revenue,CAHD,South Glos Users in South Glos Homes,Permanent Nursing,Fshc  1St Floor,620.20, 13-Mar-2018
1490,Revenue,CAHD,Bed Purchasing - Southmead Hospital,Permanent Nursing,Fshc  1St Floor,7500.00, 13-Mar-2018
1491,Revenue,CAHD,Bed Purchasing - Southmead Hospital,Permanent Nursing,Fshc  1St Floor,2500.00, 13-Mar-2018
1492,Revenue,CAHD,South Glos Users in South Glos Homes,Permanent Nursing,Fshc  1St Floor,1484.05, 13-Mar-2018
1493,Revenue,CAHD,South Glos Users in South Glos Homes,Permanent Nursing,Fshc  1St Floor,620.20, 13-Mar-2018
1494,Revenue,CAHD,Bed Purchasing - Southmead Hospital,Fees & Charges Income - General,Fshc  1St Floor,787.49, 13-Mar-2018
1495,Revenue,CAHD,South Glos Users in South Glos Homes,Permanent Nursing,Fshc  1St Floor,620.20, 13-Mar-2018
1496,Revenue,CAHD,Bed Purchasing - North,Permanent Nursing,Fshc  1St Floor,2549.24, 13-Mar-2018
1497,Revenue,CAHD,South Glos Users in South Glos Homes,Permanent Nursing,Fshc  1St Floor,620.20, 13-Mar-2018
1498,Revenue,CAHD,Bed Purchasing - Southmead Hospital,Permanent Nursing,Fshc  1St Floor,2507.16, 13-Mar-2018
1499,Revenue,CAHD,South Glos Users in South Glos Homes,Permanent Nursing,Fshc  1St Floor,620.20, 13-Mar-2018
1500,Revenue,CAHD,Bed Purchasing - Southmead Hospital,Permanent Nursing,Fshc  1St Floor,2179.80, 13-Mar-2018
1501,Revenue,CAHD,Bed Purchasing - Southmead Hospital,Permanent Nursing,Fshc  1St Floor,2024.10, 13-Mar-2018
1502,Revenue,CAHD,Bed Purchasing - North,Permanent Nursing,Fshc  1St Floor,2296.00, 13-Mar-2018
1503,Revenue,CAHD,South Glos Users in South Glos Homes,Permanent Nursing,Fshc  1St Floor,620.20, 13-Mar-2018
1504,Revenue,CAHD,South Glos Users in South Glos Homes,Permanent Nursing,Fshc  1St Floor,620.20, 13-Mar-2018
1505,Revenue,CAHD,Bed Purchasing - Southmead Hospital,Permanent Nursing,Fshc  1St Floor,3100.00, 13-Mar-2018
1506,Revenue,CAHD,South Glos Users in South Glos Homes,Permanent Nursing,Fshc  1St Floor,620.20, 13-Mar-2018
1507,Revenue,CAHD,South Glos Users in South Glos Homes,Permanent Nursing,Fshc  1St Floor,620.20, 13-Mar-2018
1508,Revenue,CAHD,Bed Purchasing - North,Permanent Nursing,Fshc  1St Floor,2410.72, 13-Mar-2018
1509,Revenue,CAHD,South Glos Users in South Glos Homes,Permanent Nursing,Fshc  1St Floor,620.20, 13-Mar-2018
1510,Revenue,CAHD,Bed Purchasing - North,Permanent Nursing,Fshc  1St Floor,2228.00, 13-Mar-2018
1511,Revenue,CAHD,South Glos Users in South Glos Homes,Permanent Nursing,Fshc  1St Floor,620.20, 13-Mar-2018
1512,Revenue,CAHD,Bed Purchasing - South,Permanent Nursing,Fshc  1St Floor,2507.16, 13-Mar-2018
1513,Revenue,CAHD,South Glos Users in South Glos Homes,Permanent Nursing,Fshc  1St Floor,620.20, 13-Mar-2018
1514,Revenue,CAHD,Bed Purchasing - Southmead Hospital,Permanent Nursing,Fshc  1St Floor,2296.00, 13-Mar-2018
1515,Revenue,CAHD,South Glos Users in South Glos Homes,Permanent Nursing,Fshc  1St Floor,620.20, 13-Mar-2018
1516,Revenue,CAHD,Bed Purchasing - South,Permanent Nursing,Fshc  1St Floor,2431.20, 13-Mar-2018
1517,Revenue,CAHD,South Glos Users in South Glos Homes,Permanent Nursing,Fshc  1St Floor,620.20, 13-Mar-2018
1518,Revenue,CAHD,South Glos Users in South Glos Homes,Permanent Nursing,Fshc  1St Floor,620.20, 13-Mar-2018
1519,Revenue,CAHD,Bed Purchasing - South,Permanent Nursing,Fshc  1St Floor,2500.00, 13-Mar-2018
1520,Revenue,CAHD,South Glos Users in South Glos Homes,Permanent Nursing,Fshc  1St Floor,620.20, 13-Mar-2018
1521,Revenue,CAHD,Bed Purchasing - Southmead Hospital,Permanent Nursing,Fshc  1St Floor,2228.00, 13-Mar-2018
1522,Revenue,CAHD,South Glos Users in South Glos Homes,Permanent Nursing,Fshc  1St Floor,620.20, 13-Mar-2018
1523,Revenue,CAHD,South Glos Users in South Glos Homes,Permanent Nursing,Fshc  1St Floor,620.20, 13-Mar-2018
1524,Revenue,CAHD,South Glos Users in South Glos Homes,Permanent Nursing,Fshc  1St Floor,620.20, 13-Mar-2018
1525,Revenue,CAHD,Bed Purchasing - South,Permanent Nursing,Fshc  1St Floor,2300.00, 13-Mar-2018
1526,Revenue,CAHD,Bed Purchasing - Southmead Hospital,Permanent Residential,Fshc  1St Floor,2072.00, 13-Mar-2018
1527,Revenue,CAHD,South Glos Users in South Glos Homes,Permanent Nursing,Fshc  1St Floor,620.20, 13-Mar-2018
1528,Revenue,CAHD,Bed Purchasing - South,Permanent Nursing,Fshc  1St Floor,2228.00, 13-Mar-2018
1529,Revenue,CAHD,South Glos Users in South Glos Homes,Permanent Nursing,Fshc  1St Floor,620.20, 13-Mar-2018
1530,Revenue,CAHD,South Glos Users in South Glos Homes,Permanent Nursing,Fshc  1St Floor,620.20, 13-Mar-2018
1531,Revenue,CAHD,Bed Purchasing - Southmead Hospital,Permanent Nursing,Fshc  1St Floor,8228.57, 13-Mar-2018
1532,Revenue,CAHD,Bed Purchasing - Southmead Hospital,Permanent Nursing,Fshc  1St Floor,2400.00, 13-Mar-2018
1533,Revenue,CAHD,South Glos Users in South Glos Homes,Permanent Nursing,Fshc  1St Floor,620.20, 13-Mar-2018
1534,Revenue,CAHD,South Glos Users in South Glos Homes,Permanent Nursing,Fshc  1St Floor,620.20, 13-Mar-2018
1535,Revenue,CAHD,Bed Purchasing - Southmead Hospital,Permanent Residential,Fshc  1St Floor,2300.00, 13-Mar-2018
1536,Revenue,CAHD,South Glos Users in South Glos Homes,Permanent Nursing,Fshc  1St Floor,620.20, 13-Mar-2018
1537,Revenue,CAHD,Bed Purchasing - Southmead Hospital,Permanent Nursing,Fshc  1St Floor,2258.92, 13-Mar-2018
1538,Revenue,CAHD,South Glos Users in South Glos Homes,Permanent Nursing,Fshc  1St Floor,620.20, 13-Mar-2018
1539,Revenue,CAHD,South Glos Users in South Glos Homes,Permanent Nursing,Fshc  1St Floor,620.20, 13-Mar-2018
1540,Revenue,CAHD,South Glos Users in South Glos Homes,Permanent Nursing,Fshc  1St Floor,620.20, 13-Mar-2018
1541,Revenue,CAHD,Bed Purchasing - Southmead Hospital,Permanent Residential,Fshc  1St Floor,2300.00, 13-Mar-2018
1542,Revenue,CAHD,Bed Purchasing - South,Permanent Residential,Fshc  1St Floor,2140.00, 13-Mar-2018
1543,Revenue,CAHD,Bed Purchasing - Southmead Hospital,Permanent Nursing,Fshc  1St Floor,2296.00, 13-Mar-2018
1544,Revenue,CAHD,South Glos Users in South Glos Homes,Permanent Nursing,Fshc  1St Floor,620.20, 13-Mar-2018
1545,Revenue,CAHD,Bed Purchasing - Southmead Hospital,Permanent Nursing,Fshc  1St Floor,2228.00, 13-Mar-2018
1546,Revenue,CAHD,South Glos Users in South Glos Homes,Permanent Nursing,Fshc  1St Floor,620.20, 13-Mar-2018
1547,Revenue,CAHD,Bed Purchasing - South,Permanent Nursing,Fshc  1St Floor,2633.80, 13-Mar-2018
1548,Revenue,CAHD,South Glos Users in South Glos Homes,Permanent Nursing,Fshc  1St Floor,620.20, 13-Mar-2018
1549,Revenue,CAHD,Bed Purchasing - South,Permanent Nursing,Fshc  1St Floor,2228.00, 13-Mar-2018
1550,Revenue,CAHD,South Glos Users in South Glos Homes,Permanent Nursing,Fshc  1St Floor,620.20, 13-Mar-2018
1551,Revenue,CAHD,Bed Purchasing - South,Permanent Nursing,Fshc  1St Floor,2354.28, 13-Mar-2018
1552,Revenue,CAHD,South Glos Users in South Glos Homes,Permanent Nursing,Fshc  1St Floor,620.20, 13-Mar-2018
1553,Revenue,CAHD,Bed Purchasing - South,Permanent Nursing,Fshc  1St Floor,2228.00, 13-Mar-2018
1554,Revenue,CAHD,South Glos Users in South Glos Homes,Permanent Nursing,Fshc  1St Floor,620.20, 13-Mar-2018
1555,Revenue,CAHD,South Glos Users in South Glos Homes,Permanent Nursing,Fshc  1St Floor,620.20, 13-Mar-2018
1556,Revenue,CAHD,Bed Purchasing - South,Permanent Residential,Fshc  1St Floor,2182.36, 13-Mar-2018
1557,Revenue,CAHD,Bed Purchasing - South,Permanent Nursing,Fshc  1St Floor,2192.12, 13-Mar-2018
1558,Revenue,CAHD,Bed Purchasing - Southmead Hospital,Permanent Nursing,Fshc  1St Floor,2874.96, 13-Mar-2018
1559,Revenue,CAHD,Bed purchasing - Elderly S117 - South,Permanent Nursing,Fshc  1St Floor,2192.12, 13-Mar-2018
1560,Revenue,CAHD,Bed Purchasing - South,Permanent Nursing,Fshc  1St Floor,3444.20, 13-Mar-2018
1561,Revenue,CAHD,Bed Purchasing - South,Permanent Nursing,Fshc  1St Floor,3849.40, 13-Mar-2018
1562,Revenue,CAHD,Bed Purchasing - Southmead Hospital,Permanent Nursing,Fshc  1St Floor,2192.12, 13-Mar-2018
1563,Revenue,CAHD,Bed Purchasing - Southmead Hospital,Permanent Nursing,Fshc  1St Floor,3100.00, 13-Mar-2018
1564,Revenue,CAHD,Bed Purchasing - Southmead Hospital,Permanent Nursing,Fshc  1St Floor,2192.12, 13-Mar-2018
1565,Revenue,CAHD,Bed Purchasing - Southmead Hospital,Permanent Nursing,Fshc  1St Floor,2192.12, 13-Mar-2018
1566,Revenue,CAHD,Bed Purchasing - South,Permanent Nursing,Fshc  1St Floor,2192.12, 13-Mar-2018
1567,Revenue,CAHD,Bed Purchasing - South,Permanent Residential,Fshc  1St Floor,3588.12, 13-Mar-2018
1568,Revenue,CAHD,Bed Purchasing - Southmead Hospital,Permanent Residential,Fshc  1St Floor,2014.64, 13-Mar-2018
1569,Revenue,CAHD,Bed Purchasing - North,Permanent Nursing,Fshc  1St Floor,2194.20, 13-Mar-2018
1570,Revenue,CAHD,Bed Purchasing - North,Permanent Nursing,Fshc  1St Floor,2066.00, 13-Mar-2018
1571,Revenue,CAHD,South Glos Users in South Glos Homes,Permanent Nursing,Fshc  1St Floor,620.20, 13-Mar-2018
1572,Revenue,CAHD,Bed Purchasing - Southmead Hospital,Permanent Nursing,Fshc  1St Floor,4000.00, 13-Mar-2018
1573,Revenue,CAHD,Bed Purchasing - North,Permanent Nursing,Fshc  1St Floor,2222.72, 13-Mar-2018
1574,Revenue,CAHD,Bed Purchasing - North,Permanent Nursing,Fshc  1St Floor,2266.00, 13-Mar-2018
1575,Revenue,CAHD,Bed Purchasing - South,Permanent Residential,Fshc  1St Floor,2228.60, 13-Mar-2018
1576,Revenue,CAHD,Bed Purchasing - North,Permanent Residential,Fshc  1St Floor,1855.12, 13-Mar-2018
1577,Revenue,CAHD,Cambrian Green Day Service,Furniture & Fittings Loose,Geoff Lewis Flooring Limited,3700.00, 26-Mar-2018
1578,Revenue,CAHD,Bed Purchasing - South,Permanent Residential,Gladstone House,5749.96, 13-Mar-2018
1579,Revenue,CAHD,Bed Purchasing - North,Permanent Residential,Glan Y Felin,6520.08, 13-Mar-2018
1580,Revenue,CAHD,Bed Purchasing - South,Permanent Residential,Glasallt Fawr,5121.84, 13-Mar-2018
1581,Revenue,CAHD,Bed Purchasing - North,Permanent Nursing,Glebe House Nursing Home,3511.56, 13-Mar-2018
1582,Revenue,CAHD,South Glos Users in South Glos Homes,Permanent Nursing,Glebe House Nursing Home,620.20, 13-Mar-2018
1583,Revenue,CAHD,South Glos Users in South Glos Homes,Permanent Nursing,Glebe House Nursing Home,620.20, 13-Mar-2018
1584,Revenue,CAHD,South Glos Users in South Glos Homes,Permanent Nursing,Glebe House Nursing Home,620.20, 13-Mar-2018
1585,Revenue,CAHD,South Glos Users in South Glos Homes,Permanent Nursing,Glebe House Nursing Home,620.20, 13-Mar-2018
1586,Revenue,CAHD,South Glos Users in South Glos Homes,Permanent Nursing,Glebe House Nursing Home,620.20, 13-Mar-2018
1587,Revenue,CAHD,South Glos Users in South Glos Homes,Permanent Nursing,Glebe House Nursing Home,620.20, 13-Mar-2018
1588,Revenue,CAHD,South Glos Users in South Glos Homes,Permanent Nursing,Glebe House Nursing Home,620.20, 13-Mar-2018
1589,Revenue,CAHD,South Glos Users in South Glos Homes,Permanent Nursing,Glebe House Nursing Home,620.20, 13-Mar-2018
1590,Revenue,CAHD,Bed Purchasing - North,Permanent Residential,Glebe House Nursing Home,11416.26, 13-Mar-2018
1591,Revenue,CAHD,Bed Purchasing - North,Permanent Residential,Glebe House Nursing Home,11416.26, 13-Mar-2018
1592,Revenue,CAHD,Bed Purchasing - North,Permanent Residential,Glebe House Nursing Home,3674.20, 13-Mar-2018
1593,Revenue,CAHD,Bed Purchasing - North,Fees & Charges Income - General,Glebe House Nursing Home,1876.80, 13-Mar-2018
1594,Revenue,CAHD,Bed Purchasing - North,Fees & Charges Income - General,Glebe House Nursing Home,1876.80, 13-Mar-2018
1595,Revenue,CAHD,Bed Purchasing - North,Fees & Charges Income - General,Glebe House Nursing Home,906.04, 13-Mar-2018
1596,Revenue,CAHD,Bed Purchasing - North,Fees & Charges Income - General,Glebe House Nursing Home,1167.77, 13-Mar-2018
1597,Revenue,CAHD,Bed Purchasing - North,Permanent Nursing,Glebe House Nursing Home,3043.36, 13-Mar-2018
1598,Revenue,CAHD,South Glos Users in South Glos Homes,Permanent Nursing,Glebe House Nursing Home,620.20, 13-Mar-2018
1599,Revenue,CAHD,South Glos Users in South Glos Homes,Permanent Nursing,Glebe House Nursing Home,620.20, 13-Mar-2018
1600,Revenue,CAHD,South Glos Users in South Glos Homes,Permanent Nursing,Glebe House Nursing Home,620.20, 13-Mar-2018
1601,Revenue,CAHD,South Glos Users in South Glos Homes,Permanent Nursing,Glebe House Nursing Home,620.20, 13-Mar-2018
1602,Revenue,CAHD,South Glos Users in South Glos Homes,Permanent Nursing,Glebe House Nursing Home,620.20, 13-Mar-2018
1603,Revenue,CAHD,South Glos Users in South Glos Homes,Permanent Nursing,Glebe House Nursing Home,620.20, 13-Mar-2018
1604,Revenue,CAHD,South Glos Users in South Glos Homes,Permanent Nursing,Glebe House Nursing Home,620.20, 13-Mar-2018
1605,Revenue,CAHD,Bed Purchasing - Southmead Hospital,Permanent Nursing,Glebe House Nursing Home,6177.14, 13-Mar-2018
1606,Revenue,CAHD,Bed Purchasing - Southmead Hospital,Permanent Nursing,Glebe House Nursing Home,3680.00, 13-Mar-2018
1607,Revenue,CAHD,South Glos Users in South Glos Homes,Permanent Nursing,Glebe House Nursing Home,620.20, 13-Mar-2018
1608,Revenue,CAHD,Community Support - North,Preventative Assistance,Gloucestershire County Council,2613.45, 09-Mar-2018
1609,Revenue,CAHD,0-25 Education Support Team,Professional Fees,Gloucestershire County Council,500.00, 13-Mar-2018
1610,Revenue,CAHD,Schools Specific Grant Income,Other Public Bodies,Gloucestershire County Council,500.00, 05-Mar-2018
1611,Revenue,CAHD,Bed Purchasing - South,Permanent Residential,Goldcare House,4539.28, 13-Mar-2018
1612,Revenue,CAHD,Bed Purchasing - Southmead Hospital,Permanent Residential,Gordena Care Home,3852.48, 13-Mar-2018
1613,Revenue,CAHD,Bed Purchasing - South,Permanent Residential,Gordena Care Home,2586.80, 13-Mar-2018
1614,Revenue,CAHD,Bed Purchasing - South,Permanent Residential,Gordena Care Home,3682.84, 13-Mar-2018
1615,Revenue,CAHD,Bed Purchasing - South,Permanent Residential,Gordena Care Home,3694.04, 13-Mar-2018
1616,Revenue,CAHD,Bed Purchasing - South,Permanent Residential,Gordena Care Limited,4826.88, 13-Mar-2018
1617,Revenue,CAHD,Bed Purchasing - South,Permanent Residential,Gordena Care Limited,5271.46, 13-Mar-2018
1618,Revenue,CAHD,Jointly Funded H&SC Packages,Permanent Residential,Gordena Care Limited,2072.00, 13-Mar-2018
1619,Revenue,CAHD,Bed Purchasing - South,Fees & Charges Income - General,Gordena Care Limited,1671.02, 13-Mar-2018
1620,Revenue,CAHD,Bed purchasing - S28A Under 65 - South,Permanent Residential,Gordena Care Limited,4694.40, 13-Mar-2018
1621,Revenue,CAHD,Bed Purchasing - North,Permanent Residential,Gordena Care Limited,4892.64, 13-Mar-2018
1622,Revenue,CAHD,Bed Purchasing - South,Permanent Nursing,Gracefields Nursing Home,2486.52, 13-Mar-2018
1623,Revenue,CAHD,South Glos Users in South Glos Homes,Permanent Nursing,Gracefields Nursing Home,620.20, 13-Mar-2018
1624,Revenue,CAHD,South Glos Users in South Glos Homes,Permanent Nursing,Gracefields Nursing Home,620.20, 13-Mar-2018
1625,Revenue,CAHD,South Glos Users in South Glos Homes,Permanent Nursing,Gracefields Nursing Home,2392.20, 13-Mar-2018
1626,Revenue,CAHD,South Glos Users in South Glos Homes,Permanent Nursing,Gracefields Nursing Home,620.20, 13-Mar-2018
1627,Revenue,CAHD,South Glos Users in South Glos Homes,Permanent Nursing,Gracefields Nursing Home,620.20, 13-Mar-2018
1628,Revenue,CAHD,Bed Purchasing - Southmead Hospital,Permanent Nursing,Gracefields Nursing Home,3500.00, 13-Mar-2018
1629,Revenue,CAHD,South Glos Users in South Glos Homes,Permanent Nursing,Gracefields Nursing Home,620.20, 13-Mar-2018
1630,Revenue,CAHD,South Glos Users in South Glos Homes,Permanent Nursing,Gracefields Nursing Home,620.20, 13-Mar-2018
1631,Revenue,CAHD,South Glos Users in South Glos Homes,Permanent Nursing,Gracefields Nursing Home,620.20, 13-Mar-2018
1632,Revenue,CAHD,Bed purchasing - Elderly S117 - South,Permanent Nursing,Gracefields Nursing Home,2445.68, 13-Mar-2018
1633,Revenue,CAHD,South Glos Users in South Glos Homes,Permanent Nursing,Gracefields Nursing Home,620.20, 13-Mar-2018
1634,Revenue,CAHD,Bed Purchasing - North,Fees & Charges Income - General,Gracefields Nursing Home,611.51, 13-Mar-2018
1635,Revenue,CAHD,Bed Purchasing - South,Permanent Nursing,Gracefields Nursing Home,3600.00, 13-Mar-2018
1636,Revenue,CAHD,Bed Purchasing - South,Permanent Nursing,Gracefields Nursing Home,1157.14, 13-Mar-2018
1637,Revenue,CAHD,South Glos Users in South Glos Homes,Permanent Nursing,Gracefields Nursing Home,620.20, 13-Mar-2018
1638,Revenue,CAHD,Bed Purchasing - South,Permanent Nursing,Gracefields Nursing Home,3094.72, 13-Mar-2018
1639,Revenue,CAHD,South Glos Users in South Glos Homes,Permanent Nursing,Gracefields Nursing Home,620.20, 13-Mar-2018
1640,Revenue,CAHD,Bed Purchasing - South,Permanent Nursing,Gracefields Nursing Home,3952.20, 13-Mar-2018
1641,Revenue,CAHD,South Glos Users in South Glos Homes,Permanent Nursing,Gracefields Nursing Home,620.20, 13-Mar-2018
1642,Revenue,CAHD,South Glos Users in South Glos Homes,Permanent Nursing,Gracefields Nursing Home,620.20, 13-Mar-2018
1643,Revenue,CAHD,South Glos Users in South Glos Homes,Permanent Nursing,Gracefields Nursing Home,620.20, 13-Mar-2018
1644,Revenue,CAHD,Bed Purchasing - South,Permanent Nursing,Gracefields Nursing Home,3400.00, 13-Mar-2018
1645,Revenue,CAHD,South Glos Users in South Glos Homes,Permanent Nursing,Gracefields Nursing Home,620.20, 13-Mar-2018
1646,Revenue,CAHD,Bed Purchasing - Southmead Hospital,Permanent Nursing,Gracefields Nursing Home,3400.00, 13-Mar-2018
1647,Revenue,CAHD,South Glos Users in South Glos Homes,Permanent Nursing,Gracefields Nursing Home,620.20, 13-Mar-2018
1648,Revenue,CAHD,Bed Purchasing - Southmead Hospital,Permanent Nursing,Gracefields Nursing Home,3500.00, 13-Mar-2018
1649,Revenue,CAHD,South Glos Users in South Glos Homes,Permanent Nursing,Gracefields Nursing Home,620.20, 13-Mar-2018
1650,Revenue,CAHD,South Glos Users in South Glos Homes,Permanent Nursing,Gracefields Nursing Home,620.20, 13-Mar-2018
1651,Revenue,CAHD,South Glos Users in South Glos Homes,Permanent Nursing,Gracefields Nursing Home,620.20, 13-Mar-2018
1652,Revenue,CAHD,South Glos Users in South Glos Homes,Permanent Nursing,Gracefields Nursing Home,620.20, 13-Mar-2018
1653,Revenue,CAHD,South Glos Users in South Glos Homes,Permanent Nursing,Gracefields Nursing Home,620.20, 13-Mar-2018
1654,Revenue,CAHD,Bed Purchasing - Southmead Hospital,Permanent Nursing,Gracefields Nursing Home,3500.00, 13-Mar-2018
1655,Revenue,CAHD,South Glos Users in South Glos Homes,Permanent Nursing,Gracefields Nursing Home,1461.90, 13-Mar-2018
1656,Revenue,CAHD,South Glos Users in South Glos Homes,Permanent Nursing,Gracefields Nursing Home,620.20, 13-Mar-2018
1657,Revenue,CAHD,South Glos Users in South Glos Homes,Permanent Nursing,Gracefields Nursing Home,620.20, 13-Mar-2018
1658,Revenue,CAHD,Bed Purchasing - Southmead Hospital,Permanent Nursing,Gracefields Nursing Home,3500.00, 13-Mar-2018
1659,Revenue,CAHD,South Glos Users in South Glos Homes,Permanent Nursing,Gracefields Nursing Home,620.20, 13-Mar-2018
1660,Revenue,CAHD,South Glos Users in South Glos Homes,Permanent Nursing,Gracefields Nursing Home,620.20, 13-Mar-2018
1661,Revenue,CAHD,Bed Purchasing - South,Permanent Nursing,Gracefields Nursing Home,3071.40, 13-Mar-2018
1662,Revenue,CAHD,South Glos Users in South Glos Homes,Permanent Nursing,Gracefields Nursing Home,620.20, 13-Mar-2018
1663,Revenue,CAHD,South Glos Users in South Glos Homes,Permanent Nursing,Gracefields Nursing Home,620.20, 13-Mar-2018
1664,Revenue,CAHD,South Glos Users in South Glos Homes,Permanent Nursing,Gracefields Nursing Home,620.20, 13-Mar-2018
1665,Revenue,CAHD,Bed Purchasing - Southmead Hospital,Permanent Nursing,Gracefields Nursing Home,3400.00, 13-Mar-2018
1666,Revenue,CAHD,South Glos Users in South Glos Homes,Permanent Nursing,Gracefields Nursing Home,2569.40, 13-Mar-2018
1667,Revenue,CAHD,South Glos Users in South Glos Homes,Permanent Nursing,Gracefields Nursing Home,620.20, 13-Mar-2018
1668,Revenue,CAHD,Bed Purchasing - Southmead Hospital,Permanent Nursing,Gracefields Nursing Home,3094.72, 13-Mar-2018
1669,Revenue,CAHD,South Glos Users in South Glos Homes,Permanent Nursing,Gracefields Nursing Home,620.20, 13-Mar-2018
1670,Revenue,CAHD,South Glos Users in South Glos Homes,Permanent Nursing,Gracefields Nursing Home,620.20, 13-Mar-2018
1671,Revenue,CAHD,Bed Purchasing - South,Permanent Nursing,Gracefields Nursing Home,2970.12, 13-Mar-2018
1672,Revenue,CAHD,South Glos Users in South Glos Homes,Permanent Nursing,Gracefields Nursing Home,620.20, 13-Mar-2018
1673,Revenue,CAHD,South Glos Users in South Glos Homes,Permanent Nursing,Gracefields Nursing Home,620.20, 13-Mar-2018
1674,Revenue,CAHD,South Glos Users in South Glos Homes,Permanent Nursing,Gracefields Nursing Home,620.20, 13-Mar-2018
1675,Revenue,CAHD,South Glos Users in South Glos Homes,Permanent Nursing,Gracefields Nursing Home,620.20, 13-Mar-2018
1676,Revenue,CAHD,South Glos Users in South Glos Homes,Permanent Nursing,Gracefields Nursing Home,620.20, 13-Mar-2018
1677,Revenue,CAHD,South Glos Users in South Glos Homes,Permanent Nursing,Gracefields Nursing Home,2768.75, 13-Mar-2018
1678,Revenue,CAHD,South Glos Users in South Glos Homes,Permanent Nursing,Gracefields Nursing Home,620.20, 13-Mar-2018
1679,Revenue,CAHD,South Glos Users in South Glos Homes,Permanent Nursing,Gracefields Nursing Home,620.20, 13-Mar-2018
1680,Revenue,CAHD,Bed Purchasing - South,Permanent Nursing,Gracefields Nursing Home,2445.68, 13-Mar-2018
1681,Revenue,CAHD,South Glos Users in South Glos Homes,Permanent Nursing,Gracefields Nursing Home,620.20, 13-Mar-2018
1682,Revenue,CAHD,Bed Purchasing - South,Permanent Nursing,Gracefields Nursing Home,3400.00, 13-Mar-2018
1683,Revenue,CAHD,South Glos Users in South Glos Homes,Permanent Nursing,Gracefields Nursing Home,620.20, 13-Mar-2018
1684,Revenue,CAHD,South Glos Users in South Glos Homes,Permanent Nursing,Gracefields Nursing Home,620.20, 13-Mar-2018
1685,Revenue,CAHD,South Glos Users in South Glos Homes,Permanent Nursing,Gracefields Nursing Home,620.20, 13-Mar-2018
1686,Revenue,CAHD,South Glos Users in South Glos Homes,Permanent Nursing,Gracefields Nursing Home,620.20, 13-Mar-2018
1687,Revenue,CAHD,South Glos Users in South Glos Homes,Permanent Nursing,Gracefields Nursing Home,620.20, 13-Mar-2018
1688,Revenue,CAHD,Bed Purchasing - Southmead Hospital,Permanent Nursing,Gracefields Nursing Home,3274.00, 13-Mar-2018
1689,Revenue,CAHD,South Glos Users in South Glos Homes,Permanent Nursing,Gracefields Nursing Home,620.20, 13-Mar-2018
1690,Revenue,CAHD,CSC - Asylum Seekers - Unaccompanied,Foster Parent Allowances,Greenfields Adolecent Development Limited,2282.70, 02-Mar-2018
1691,Revenue,CAHD,CSC - Residential Placements,Permanent Residential,Greenfields Adolecent Development Limited,1997.36, 29-Mar-2018
1692,Revenue,CAHD,EARLY YEARS DEPRIVATION PAYMENT,Preventative Assistance,Greenshaw Learning Trust T/A Yate Academy,685.72, 16-Mar-2018
1693,Revenue,CAHD,Schools Specific Grant Income,Other Public Bodies,Greenshaw Learning Trust T/A Yate Academy,500.00, 02-Mar-2018
1694,Revenue,CAHD,Academy Resource Base Funding,Other Public Bodies,Greenshaw Learning Trust T/A Yate Academy,1036.50, 26-Mar-2018
1695,Revenue,CAHD,Academy Resource Base Funding,Other Public Bodies,Greenshaw Learning Trust T/A Yate Academy,1741.27, 26-Mar-2018
1696,Revenue,CAHD,Academy Resource Base Funding,Other Public Bodies,Greenshaw Learning Trust T/A Yate Academy,1575.48, 26-Mar-2018
1697,Revenue,CAHD,Academy Resource Base Funding,Other Public Bodies,Greenshaw Learning Trust T/A Yate Academy,1202.29, 26-Mar-2018
1698,Revenue,CAHD,Academy Resource Base Funding,Other Public Bodies,Greenshaw Learning Trust T/A Yate Academy,1202.29, 26-Mar-2018
1699,Revenue,CAHD,Academy Resource Base Funding,Other Public Bodies,Greenshaw Learning Trust T/A Yate Academy,663.32, 26-Mar-2018
1700,Revenue,CAHD,Academy Resource Base Funding,Other Public Bodies,Greenshaw Learning Trust T/A Yate Academy,1741.27, 26-Mar-2018
1701,Revenue,CAHD,Academy Resource Base Funding,Other Public Bodies,Greenshaw Learning Trust T/A Yate Academy,1575.48, 26-Mar-2018
1702,Revenue,CAHD,Statemented Support Academies,Schools Funding,Greenshaw Learning Trust T/A Yate Academy,659.36, 01-Mar-2018
1703,Revenue,CAHD,Statemented Support Academies,Schools Funding,Greenshaw Learning Trust T/A Yate Academy,659.36, 27-Mar-2018
1704,Revenue,CAHD,Statemented Support Academies,Schools Funding,Greenshaw Learning Trust T/A Yate Academy,1334.86, 01-Mar-2018
1705,Revenue,CAHD,Statemented Support Academies,Schools Funding,Greenshaw Learning Trust T/A Yate Academy,1334.86, 27-Mar-2018
1706,Revenue,CAHD,Statemented Support Academies,Schools Funding,Greenshaw Learning Trust T/A Yate Academy,1013.19, 01-Mar-2018
1707,Revenue,CAHD,Statemented Support Academies,Schools Funding,Greenshaw Learning Trust T/A Yate Academy,1013.19, 27-Mar-2018
1708,Revenue,CAHD,Statemented Support Academies,Schools Funding,Greenshaw Learning Trust T/A Yate Academy,763.90, 01-Mar-2018
1709,Revenue,CAHD,Statemented Support Academies,Schools Funding,Greenshaw Learning Trust T/A Yate Academy,763.90, 27-Mar-2018
1710,Revenue,CAHD,Statemented Support Academies,Schools Funding,Greenshaw Learning Trust T/A Yate Academy,1182.07, 01-Mar-2018
1711,Revenue,CAHD,Statemented Support Academies,Schools Funding,Greenshaw Learning Trust T/A Yate Academy,1182.07, 27-Mar-2018
1712,Revenue,CAHD,Statemented Support Academies,Schools Funding,Greenshaw Learning Trust T/A Yate Academy,1013.19, 01-Mar-2018
1713,Revenue,CAHD,Statemented Support Academies,Schools Funding,Greenshaw Learning Trust T/A Yate Academy,1013.19, 27-Mar-2018
1714,Revenue,CAHD,Statemented Support Academies,Schools Funding,Greenshaw Learning Trust T/A Yate Academy,522.65, 01-Mar-2018
1715,Revenue,CAHD,Statemented Support Academies,Schools Funding,Greenshaw Learning Trust T/A Yate Academy,522.65, 27-Mar-2018
1716,Revenue,CAHD,Statemented Support Academies,Schools Funding,Greenshaw Learning Trust T/A Yate Academy,1013.19, 01-Mar-2018
1717,Revenue,CAHD,Statemented Support Academies,Schools Funding,Greenshaw Learning Trust T/A Yate Academy,1013.19, 27-Mar-2018
1718,Revenue,CAHD,Statemented Support Academies,Schools Funding,Greenshaw Learning Trust T/A Yate Academy,852.36, 01-Mar-2018
1719,Revenue,CAHD,Statemented Support Academies,Schools Funding,Greenshaw Learning Trust T/A Yate Academy,852.36, 27-Mar-2018
1720,Revenue,CAHD,Statemented Support Academies,Schools Funding,Greenshaw Learning Trust T/A Yate Academy,828.23, 01-Mar-2018
1721,Revenue,CAHD,Statemented Support Academies,Schools Funding,Greenshaw Learning Trust T/A Yate Academy,828.23, 27-Mar-2018
1722,Revenue,CAHD,Statemented Support Academies,Schools Funding,Greenshaw Learning Trust T/A Yate Academy,788.03, 01-Mar-2018
1723,Revenue,CAHD,Statemented Support Academies,Schools Funding,Greenshaw Learning Trust T/A Yate Academy,788.03, 27-Mar-2018
1724,Revenue,CAHD,Statemented Support Academies,Schools Funding,Greenshaw Learning Trust T/A Yate Academy,683.48, 01-Mar-2018
1725,Revenue,CAHD,Statemented Support Academies,Schools Funding,Greenshaw Learning Trust T/A Yate Academy,683.48, 27-Mar-2018
1726,Revenue,CAHD,Statemented Support Academies,Schools Funding,Greenshaw Learning Trust T/A Yate Academy,707.61, 01-Mar-2018
1727,Revenue,CAHD,Statemented Support Academies,Schools Funding,Greenshaw Learning Trust T/A Yate Academy,707.61, 27-Mar-2018
1728,Revenue,CAHD,Statemented Support Academies,Schools Funding,Greenshaw Learning Trust T/A Yate Academy,659.36, 01-Mar-2018
1729,Revenue,CAHD,Statemented Support Academies,Schools Funding,Greenshaw Learning Trust T/A Yate Academy,659.36, 27-Mar-2018
1730,Revenue,CAHD,Statemented Support Academies,Schools Funding,Greenshaw Learning Trust T/A Yate Academy,989.07, 01-Mar-2018
1731,Revenue,CAHD,Statemented Support Academies,Schools Funding,Greenshaw Learning Trust T/A Yate Academy,989.07, 27-Mar-2018
1732,Revenue,CAHD,Statemented Support Academies,Schools Funding,Greenshaw Learning Trust T/A Yate Academy,1013.19, 01-Mar-2018
1733,Revenue,CAHD,Statemented Support Academies,Schools Funding,Greenshaw Learning Trust T/A Yate Academy,1013.19, 27-Mar-2018
1734,Revenue,CAHD,Bed Purchasing - North,Permanent Residential,Greensleeves,2036.72, 13-Mar-2018
1735,Revenue,CAHD,Bed Purchasing - South,Permanent Residential,Gwendoline House,2459.08, 13-Mar-2018
1736,Revenue,CAHD,Bed Purchasing - South,Permanent Residential,Gwendoline House,3400.00, 13-Mar-2018
1737,Revenue,CAHD,Bed Purchasing - South,Permanent Residential,Gwendoline House,2380.00, 13-Mar-2018
1738,Revenue,CAHD,Bed Purchasing - South,Respite Planned - Residential,Gwendoline House,1190.00, 13-Mar-2018
1739,Revenue,CAHD,Bed Purchasing - South,Permanent Residential,Gwendoline House,2370.40, 13-Mar-2018
1740,Revenue,CAHD,Bed Purchasing - South,Permanent Residential,Gwendoline House,2380.00, 13-Mar-2018
1741,Revenue,CAHD,Bed Purchasing - Southmead Hospital,Permanent Residential,Gwendoline House,2068.24, 13-Mar-2018
1742,Revenue,CAHD,Supporting People Programme,Grants to Voluntary Bodies,Habinteg Housing Association,666.00, 01-Mar-2018
1743,Revenue,CAHD,CSC - Vinney Green Secure Unit,R & M by Departments,HAG Shutters & Grilles Limited,2436.24, 14-Mar-2018
1744,Revenue,CAHD,Social Lettings Agency,Fees - General,Individual,13.13, 27-Mar-2018
1745,Revenue,CAHD,Social Lettings Agency,Other Supplies & Services,Individual,577.72, 27-Mar-2018
1746,Revenue,CAHD,Care Management Team - South,Other Supplies & Services,Hands Free Computing Ltd,478.00, 05-Mar-2018
1747,Revenue,CAHD,CSC - Social Work Team - NORTH,Training Expenses,Hands Free Computing Ltd,573.60, 07-Mar-2018
1748,Revenue,CAHD,Early Years Inclusion Fund,Other Public Bodies,Hanham Toddlers Pre School,2050.00, 15-Mar-2018
1749,Revenue,CAHD,CSC - Professional Fees Foster Carers,Special Fostering Scheme,Individual,8974.43, 16-Mar-2018
1750,Revenue,CAHD,Supporting People Programme,Grants to Voluntary Bodies,Hanover Housing Association,996.16, 01-Mar-2018
1751,Revenue,CAHD,Section 117 Placements MH Younger,Permanent Residential,Harefield Hall,3039.00, 13-Mar-2018
1752,Revenue,CAHD,Bed Purchasing - South,Permanent Residential,Harefield Hall,2669.60, 13-Mar-2018
1753,Revenue,CAHD,Bed Purchasing - South,Permanent Residential,Harefield Hall,2252.96, 13-Mar-2018
1754,Revenue,CAHD,Bed Purchasing - South,Permanent Residential,Harefield Hall,2443.48, 13-Mar-2018
1755,Revenue,CAHD,Bed Purchasing - South,Permanent Residential,Harefield Hall,2594.64, 13-Mar-2018
1756,Revenue,CAHD,CSC - Care Leavers Support Costs,Adults - Family Support,Harwood Shropshire Rentals,990.00, 29-Mar-2018
1757,Revenue,CAHD,Home Care Monitoring (CM2000),Other Supplies & Services,HAS Technology Limited T/A CM2000,9598.49, 29-Mar-2018
1758,Revenue,CAHD,Bed Purchasing - Southmead Hospital,Permanent Nursing,Hazelwood Gardens Nursing Home,2800.00, 13-Mar-2018
1759,Revenue,CAHD,Bed Purchasing - Southmead Hospital,Permanent Nursing,Hazelwood Gardens Nursing Home,2608.48, 13-Mar-2018
1760,Revenue,CAHD,Bed Purchasing - Southmead Hospital,Permanent Nursing,Hazelwood Gardens Nursing Home,2245.88, 13-Mar-2018
1761,Revenue,CAHD,Bed Purchasing - Southmead Hospital,Permanent Residential,Hc-One Ltd,2140.32, 13-Mar-2018
1762,Revenue,CAHD,Bed Purchasing - Southmead Hospital,Fees & Charges Income - General,Hc-One Ltd,3133.94, 13-Mar-2018
1763,Revenue,CAHD,Bed Purchasing - Southmead Hospital,Permanent Nursing,Hc-One Ltd,2763.76, 13-Mar-2018
1764,Revenue,CAHD,Bed Purchasing - North,Permanent Nursing,Hc-One Ltd,2130.64, 13-Mar-2018
1765,Revenue,CAHD,Bed Purchasing - North,Permanent Nursing,Hc-One Ltd,2116.36, 13-Mar-2018
1766,Revenue,CAHD,South Glos Users in South Glos Homes,Permanent Nursing,Hc-One Ltd,620.20, 13-Mar-2018
1767,Revenue,CAHD,Bed Purchasing - North,Permanent Nursing,Hc-One Ltd,2130.60, 13-Mar-2018
1768,Revenue,CAHD,Bed Purchasing - Southmead Hospital,Permanent Nursing,Hc-One Ltd,2804.48, 13-Mar-2018
1769,Revenue,CAHD,Bed Purchasing - Southmead Hospital,Permanent Nursing,Hc-One Ltd,2560.80, 13-Mar-2018
1770,Revenue,CAHD,Bed Purchasing - Southmead Hospital,Permanent Nursing,Head Office,2367.88, 13-Mar-2018
1771,Revenue,CAHD,Home Care - Elderly - North,Day Care / Social Activities,Head Office,829.44, 13-Mar-2018
1772,Revenue,CAHD,Bed Purchasing - South,Permanent Nursing,Head Office,658.08, 13-Mar-2018
1773,Revenue,CAHD,CSC - Residential Placements,Permanent Residential,Headway Adolescent Resources Limited,11657.00, 27-Mar-2018
1774,Revenue,CAHD,Home Care - Elderly - South,Day Care / Social Activities,Headway Bristol,540.00, 02-Mar-2018
1775,Revenue,CAHD,Home Care - Elderly - South,Other Small Contracts,Headway Bristol,194.40, 02-Mar-2018
1776,Revenue,CAHD,Home Care - Elderly - North,Day Care / Social Activities,Headway Bristol,1382.40, 02-Mar-2018
1777,Revenue,CAHD,Home Care - Elderly - North,Other Small Contracts,Headway Bristol,334.80, 02-Mar-2018
1778,Revenue,CAHD,Younger MH non-res purchasing,Day Care / Social Activities,Headway Bristol,86.40, 02-Mar-2018
1779,Revenue,CAHD,Home Care - Elderly - South,Day Care / Social Activities,Headway Bristol,540.00, 09-Mar-2018
1780,Revenue,CAHD,Home Care - Elderly - South,Other Small Contracts,Headway Bristol,64.80, 09-Mar-2018
1781,Revenue,CAHD,Home Care - Elderly - North,Day Care / Social Activities,Headway Bristol,1296.00, 09-Mar-2018
1782,Revenue,CAHD,Home Care - Elderly - North,Other Small Contracts,Headway Bristol,324.00, 09-Mar-2018
1783,Revenue,CAHD,Younger MH non-res purchasing,Day Care / Social Activities,Headway Bristol,86.40, 09-Mar-2018
1784,Revenue,CAHD,Home Care - Elderly - South,Day Care / Social Activities,Headway Bristol,475.20, 16-Mar-2018
1785,Revenue,CAHD,Home Care - Elderly - South,Other Small Contracts,Headway Bristol,129.60, 16-Mar-2018
1786,Revenue,CAHD,Home Care - Elderly - North,Day Care / Social Activities,Headway Bristol,1036.80, 16-Mar-2018
1787,Revenue,CAHD,Home Care - Elderly - North,Other Small Contracts,Headway Bristol,324.00, 16-Mar-2018
1788,Revenue,CAHD,Younger MH non-res purchasing,Day Care / Social Activities,Headway Bristol,86.40, 16-Mar-2018
1789,Revenue,CAHD,Home Care - Elderly - South,Day Care / Social Activities,Headway Bristol,540.00, 26-Mar-2018
1790,Revenue,CAHD,Home Care - Elderly - South,Other Small Contracts,Headway Bristol,64.80, 26-Mar-2018
1791,Revenue,CAHD,Home Care - Elderly - North,Day Care / Social Activities,Headway Bristol,1247.40, 26-Mar-2018
1792,Revenue,CAHD,Home Care - Elderly - North,Other Small Contracts,Headway Bristol,324.00, 26-Mar-2018
1793,Revenue,CAHD,Younger MH non-res purchasing,Day Care / Social Activities,Headway Bristol,86.40, 26-Mar-2018
1794,Revenue,CAHD,Home Care - Elderly - South,Day Care / Social Activities,Headway Bristol,432.00, 29-Mar-2018
1795,Revenue,CAHD,Home Care - Elderly - South,Other Small Contracts,Headway Bristol,194.40, 29-Mar-2018
1796,Revenue,CAHD,Home Care - Elderly - North,Day Care / Social Activities,Headway Bristol,912.60, 29-Mar-2018
1797,Revenue,CAHD,Home Care - Elderly - North,Other Small Contracts,Headway Bristol,194.40, 29-Mar-2018
1798,Revenue,CAHD,Younger MH non-res purchasing,Day Care / Social Activities,Headway Bristol,43.20, 29-Mar-2018
1799,Revenue,CAHD,Home Care - Elderly - South,Other Small Contracts,Helping Hands Homecare,788.48, 01-Mar-2018
1800,Revenue,CAHD,Home Care - Elderly - North,Day Care / Social Activities,Helping Hands Homecare,152.32, 01-Mar-2018
1801,Revenue,CAHD,Home Care - Elderly - North,Other Small Contracts,Helping Hands Homecare,4818.68, 01-Mar-2018
1802,Revenue,CAHD,Younger MH non-res purchasing,Other Small Contracts,Helping Hands Homecare,66.84, 01-Mar-2018
1803,Revenue,CAHD,Home Care - Elderly - South,Other Small Contracts,Helping Hands Homecare,994.56, 16-Mar-2018
1804,Revenue,CAHD,Home Care - Elderly - North,Day Care / Social Activities,Helping Hands Homecare,156.80, 16-Mar-2018
1805,Revenue,CAHD,Home Care - Elderly - North,Other Small Contracts,Helping Hands Homecare,5630.78, 16-Mar-2018
1806,Revenue,CAHD,Younger MH non-res purchasing,Other Small Contracts,Helping Hands Homecare,66.84, 16-Mar-2018
1807,Revenue,CAHD,Home Care - Elderly - South,Other Small Contracts,Helping Hands Homecare,913.92, 01-Mar-2018
1808,Revenue,CAHD,Home Care - Elderly - North,Day Care / Social Activities,Helping Hands Homecare,219.52, 01-Mar-2018
1809,Revenue,CAHD,Home Care - Elderly - North,Other Small Contracts,Helping Hands Homecare,5648.78, 01-Mar-2018
1810,Revenue,CAHD,Younger MH non-res purchasing,Other Small Contracts,Helping Hands Homecare,66.84, 01-Mar-2018
1811,Revenue,CAHD,Home Care - Elderly - South,Other Small Contracts,Helping Hands Homecare,999.04, 23-Mar-2018
1812,Revenue,CAHD,Home Care - Elderly - North,Day Care / Social Activities,Helping Hands Homecare,228.48, 23-Mar-2018
1813,Revenue,CAHD,Home Care - Elderly - North,Other Small Contracts,Helping Hands Homecare,5392.63, 23-Mar-2018
1814,Revenue,CAHD,Younger MH non-res purchasing,Other Small Contracts,Helping Hands Homecare,66.84, 23-Mar-2018
1815,Revenue,CAHD,Home Care - Elderly - South,Other Small Contracts,Helping Hands Homecare,927.36, 16-Mar-2018
1816,Revenue,CAHD,Home Care - Elderly - North,Day Care / Social Activities,Helping Hands Homecare,228.48, 16-Mar-2018
1817,Revenue,CAHD,Home Care - Elderly - North,Other Small Contracts,Helping Hands Homecare,5585.98, 16-Mar-2018
1818,Revenue,CAHD,Younger MH non-res purchasing,Other Small Contracts,Helping Hands Homecare,66.84, 16-Mar-2018
1819,Revenue,CAHD,Home Care - Elderly - South,Other Small Contracts,Helping Hands Homecare,725.76, 16-Mar-2018
1820,Revenue,CAHD,Home Care - Elderly - North,Day Care / Social Activities,Helping Hands Homecare,228.48, 16-Mar-2018
1821,Revenue,CAHD,Home Care - Elderly - North,Other Small Contracts,Helping Hands Homecare,5182.62, 16-Mar-2018
